OrganisationNameLabel,OrganisationURI,EffectiveDate,Directorate/ServiceWhereExpenditureIncurred,ServiceCategoryLabel,ServiceCategoryURI,Supplier,SupplierRegisteredCompany Number,PaymentDate,TransactionNumber,NetAmount,IrrecoverableVAT,PurposeOfSpend,ProcurementClassification:ProclassLabel,ProcrementClassification:ProClassCode
South Lakeland District Council,http://opendatacommunities.org/id/district-council/south-lakeland,13/03/2016,ICT Group,Central Services,http://opendatacommunities.org/def/concept/finance/sercop/objective/102,NORTHGATE PUBLIC SERVICES (UK) LTD,968498,08/02/2016,48092,7500,0,Information @ Work Migration,271600,ICT Software Customised & Bespoke
South Lakeland District Council,http://opendatacommunities.org/id/district-council/south-lakeland,13/03/2016,Human Resources,Central Services,http://opendatacommunities.org/def/concept/finance/sercop/objective/102,IOSH SERVICES LTD,1816826,03/02/2016,54363,230,0,Course notification ref: tbc,221100,Health & Safety� Maintenance
South Lakeland District Council,http://opendatacommunities.org/id/district-council/south-lakeland,13/03/2016,Social Enterprise Admin,Cultural Environmental Regulatory & Planning Services,http://opendatacommunities.org/def/concept/finance/sercop/objective/104,Cleartrack (EvL) Ltd,3881690,24/02/2016,54643,964.71,0,"Land adjacent to 100 Greenside, Kendal,",199999,Facilities Not Elsewhere Classified
South Lakeland District Council,http://opendatacommunities.org/id/district-council/south-lakeland,13/03/2016,Business Support Community Services,Cultural Environmental Regulatory & Planning Services,http://opendatacommunities.org/def/concept/finance/sercop/objective/104,NEWSQUEST MEDIA GROUP LTD,3102566,03/02/2016,54819,648.9,0,Half page advert in the Westmorland,191000,Facilities Advertising
South Lakeland District Council,http://opendatacommunities.org/id/district-council/south-lakeland,13/03/2016,Business Support Community Services,Cultural Environmental Regulatory & Planning Services,http://opendatacommunities.org/def/concept/finance/sercop/objective/104,FURNESS NEWSPAPERS LTD,1155841,03/02/2016,54882,745,0,Half page advert in the Evening Mail on,191000,Facilities Advertising
South Lakeland District Council,http://opendatacommunities.org/id/district-council/south-lakeland,13/03/2016,Business Support Community Services,Internal Trading Accounts,,EK MOTOR FACTORS LTD,838524,08/02/2016,54887,30.05,0,Brake pads,381400,Vehicle Mgt Maintenance
South Lakeland District Council,http://opendatacommunities.org/id/district-council/south-lakeland,13/03/2016,Business Support Community Services,Internal Trading Accounts,,EK MOTOR FACTORS LTD,838524,08/02/2016,54891,23.23,0,Brake pads,381400,Vehicle Mgt Maintenance
South Lakeland District Council,http://opendatacommunities.org/id/district-council/south-lakeland,13/03/2016,Business Support Community Services,Internal Trading Accounts,,EK MOTOR FACTORS LTD,838524,08/02/2016,54899,83,0,Brake pads,381400,Vehicle Mgt Maintenance
South Lakeland District Council,http://opendatacommunities.org/id/district-council/south-lakeland,13/03/2016,Business Support Community Services,Internal Trading Accounts,,DENNIS EAGLE LTD,3794455,03/02/2016,54900,86.84,0,Brake pads,381300,Vehicle Mgt Industrial
South Lakeland District Council,http://opendatacommunities.org/id/district-council/south-lakeland,13/03/2016,Business Support Community Services,Internal Trading Accounts,,EK MOTOR FACTORS LTD,838524,08/02/2016,54901,13.48,0,Brake pads,381400,Vehicle Mgt Maintenance
South Lakeland District Council,http://opendatacommunities.org/id/district-council/south-lakeland,13/03/2016,Business Support Community Services,Internal Trading Accounts,,EK MOTOR FACTORS LTD,838524,08/02/2016,54902,5.95,0,Brake pads,381400,Vehicle Mgt Maintenance
South Lakeland District Council,http://opendatacommunities.org/id/district-council/south-lakeland,13/03/2016,Kendal Town Hall,Cultural Environmental Regulatory & Planning Services,http://opendatacommunities.org/def/concept/finance/sercop/objective/104,THE LAUNDRY SHOP LTD,5421366,22/02/2016,55013,114.08,0,Laundry service charges for cleaning the,131311,Cleaning & Janitorial Laundry Service
South Lakeland District Council,http://opendatacommunities.org/id/district-council/south-lakeland,13/03/2016,Business Support Community Services,Central Services,http://opendatacommunities.org/def/concept/finance/sercop/objective/102,DISCLOSURE AND BARRING SERVICE,,03/02/2016,55073,44,0,DBS Checks for Taxi Drivers,202100,Financial Services Subscriptions
South Lakeland District Council,http://opendatacommunities.org/id/district-council/south-lakeland,13/03/2016,Business Support Community Services,SLDC as Agent,,DISCLOSURE AND BARRING SERVICE,,03/02/2016,55073,220,0,DBS Checks for Taxi Drivers,202100,Financial Services Subscriptions
South Lakeland District Council,http://opendatacommunities.org/id/district-council/south-lakeland,13/03/2016,Social Enterprise Admin,Transport,http://opendatacommunities.org/def/concept/finance/sercop/objective/107,NPS NORTH WEST LTD,6614601,15/02/2016,55113,1150,0,The extension for the existing,391110,Construction Buildings Construction
South Lakeland District Council,http://opendatacommunities.org/id/district-council/south-lakeland,13/03/2016,Business Support Community Services,Internal Trading Accounts,,AINSWORTH'S GARAGE,,22/02/2016,55127,255,0,Recover vehicle,381400,Vehicle Mgt Maintenance
South Lakeland District Council,http://opendatacommunities.org/id/district-council/south-lakeland,13/03/2016,Business Support Community Services,Internal Trading Accounts,,RIBBLE FUEL OILS,,01/02/2016,55191,970,0,Gas oil - Ulverston,381100,Vehicle Mgt Fuel
South Lakeland District Council,http://opendatacommunities.org/id/district-council/south-lakeland,13/03/2016,Kendal Town Hall,Cultural Environmental Regulatory & Planning Services,http://opendatacommunities.org/def/concept/finance/sercop/objective/104,CUMBRIA WASTE RECYCLING LTD,3162439,22/02/2016,55215,30,0,Weekly collection of the bins at Kendal,182012,Environment Waste Management Recycling
South Lakeland District Council,http://opendatacommunities.org/id/district-council/south-lakeland,13/03/2016,Social Enterprise Admin,Central Services,http://opendatacommunities.org/def/concept/finance/sercop/objective/102,CUMBRIA WASTE RECYCLING LTD,3162439,03/02/2016,55217,35.75,0,Langstone House Wheelie bin collection,182012,Environment Waste Management Recycling
South Lakeland District Council,http://opendatacommunities.org/id/district-council/south-lakeland,13/03/2016,Lake Wardens,Cultural Environmental Regulatory & Planning Services,http://opendatacommunities.org/def/concept/finance/sercop/objective/104,CUMBRIA WASTE RECYCLING LTD,3162439,29/02/2016,55222,145.18,0,Emptying of Refuse Wheelie Bins held at,182012,Environment Waste Management Recycling
South Lakeland District Council,http://opendatacommunities.org/id/district-council/south-lakeland,13/03/2016,Social Enterprise Admin,Central Services,http://opendatacommunities.org/def/concept/finance/sercop/objective/102,CUMBRIA WASTE RECYCLING LTD,3162439,10/02/2016,55225,255.72,0,SLH wheelie bin and skip emptying,182012,Environment Waste Management Recycling
South Lakeland District Council,http://opendatacommunities.org/id/district-council/south-lakeland,13/03/2016,Printing Section,Central Services,http://opendatacommunities.org/def/concept/finance/sercop/objective/102,Konica Minolta Bus Solutions (UK) Ltd,,03/02/2016,55320,4351.56,0,Lease for Konica Office Printers 1st,192000,Facilities Reprographics
South Lakeland District Council,http://opendatacommunities.org/id/district-council/south-lakeland,13/03/2016,Business Support Community Services,Housing Services,http://opendatacommunities.org/def/concept/finance/sercop/objective/108,James Andrews Recruitment Solutions,6834852,03/02/2016,55325,862.5,0,Payment for JH - Housing,261400,HR Temporary & Agency Staff
South Lakeland District Council,http://opendatacommunities.org/id/district-council/south-lakeland,13/03/2016,Business Support Community Services,Internal Trading Accounts,,ARCO LIMITED,133804,03/02/2016,55386,390,0,PPE 2015/16,141100,Clothing Protective
South Lakeland District Council,http://opendatacommunities.org/id/district-council/south-lakeland,13/03/2016,Kendal Town Hall,Transport,http://opendatacommunities.org/def/concept/finance/sercop/objective/107,NPS NORTH WEST LTD,6614601,01/02/2016,55409,3929.4,0,Services costs for concrete repairs,391110,Construction Buildings Construction
South Lakeland District Council,http://opendatacommunities.org/id/district-council/south-lakeland,13/03/2016,Business Support Community Services,Cultural Environmental Regulatory & Planning Services,http://opendatacommunities.org/def/concept/finance/sercop/objective/104,UNITED UTILITIES WATER PLC,2366678,08/02/2016,55416,312.27,0,Private Water Analysis - December 2015,371300,Utilities Water
South Lakeland District Council,http://opendatacommunities.org/id/district-council/south-lakeland,13/03/2016,Democratic Services,Central Services,http://opendatacommunities.org/def/concept/finance/sercop/objective/102,Addleshaw Goddard LLP,,03/02/2016,55417,15899,0,External legal support for Customer,280000,Legal Services
South Lakeland District Council,http://opendatacommunities.org/id/district-council/south-lakeland,13/03/2016,Business Support Community Services,Transport Planning Policy,http://opendatacommunities.org/def/concept/finance/sercop/objective/107,ARCO LIMITED,133804,03/02/2016,55456,18.72,0,PPE 2015/16,141100,Clothing Protective
South Lakeland District Council,http://opendatacommunities.org/id/district-council/south-lakeland,13/03/2016,Business Support Community Services,Internal Trading Accounts,,ARCO LIMITED,133804,03/02/2016,55456,11.98,0,PPE 2015/16,141100,Clothing Protective
South Lakeland District Council,http://opendatacommunities.org/id/district-council/south-lakeland,13/03/2016,Business Support Community Services,Transport Planning Policy,http://opendatacommunities.org/def/concept/finance/sercop/objective/107,ARCO LIMITED,133804,03/02/2016,55457,8.78,0,PPE 2015/16,141100,Clothing Protective
South Lakeland District Council,http://opendatacommunities.org/id/district-council/south-lakeland,13/03/2016,Business Support Community Services,Central Services,http://opendatacommunities.org/def/concept/finance/sercop/objective/102,ARCO LIMITED,133804,03/02/2016,55457,567.18,0,PPE 2015/16,141100,Clothing Protective
South Lakeland District Council,http://opendatacommunities.org/id/district-council/south-lakeland,13/03/2016,Business Support Community Services,Internal Trading Accounts,,ARCO LIMITED,133804,03/02/2016,55457,22.3,0,PPE 2015/16,141100,Clothing Protective
South Lakeland District Council,http://opendatacommunities.org/id/district-council/south-lakeland,13/03/2016,Business Support Community Services,Internal Trading Accounts,,ARCO LIMITED,133804,03/02/2016,55457,311.68,0,PPE 2015/16,141100,Clothing Protective
South Lakeland District Council,http://opendatacommunities.org/id/district-council/south-lakeland,13/03/2016,Environmental Protection,Cultural Environmental Regulatory & Planning Services,http://opendatacommunities.org/def/concept/finance/sercop/objective/104,COOPER ENGRAVING,,03/02/2016,55460,38,0,1 off S/S seat plaque NEGUS/FINN as your,102400,Building Signage
South Lakeland District Council,http://opendatacommunities.org/id/district-council/south-lakeland,13/03/2016,Development Management,Cultural Environmental Regulatory & Planning Services,http://opendatacommunities.org/def/concept/finance/sercop/objective/104,SALFORD CITY COUNCIL,,01/02/2016,55462,78.66,0,Checking of Structural Information in,908000,Public Bodies Council support services
South Lakeland District Council,http://opendatacommunities.org/id/district-council/south-lakeland,13/03/2016,ICT Group,Central Services,http://opendatacommunities.org/def/concept/finance/sercop/objective/102,NORTHGATE VEHICLE HIRE LTD,1434157,08/02/2016,55477,57.6,0,Car hire for 19th Jan to,381600,Vehicle Mgt Leasing
South Lakeland District Council,http://opendatacommunities.org/id/district-council/south-lakeland,13/03/2016,Social Enterprise Admin,Cultural Environmental Regulatory & Planning Services,http://opendatacommunities.org/def/concept/finance/sercop/objective/104,NEWSQUEST MEDIA GROUP LTD,3102566,08/02/2016,55485,77,0,PUBLIC NOTICES FOR PLANNING 1 APRIL - 31,191000,Facilities Advertising
South Lakeland District Council,http://opendatacommunities.org/id/district-council/south-lakeland,13/03/2016,Policy & Partnerships,Cultural Environmental Regulatory & Planning Services,http://opendatacommunities.org/def/concept/finance/sercop/objective/104,ABSOLUTE DIGITAL PRINT LTD,4705547,08/02/2016,55509,478,0,Town hall banner and flag banners,191600,Facilities Printing
South Lakeland District Council,http://opendatacommunities.org/id/district-council/south-lakeland,13/03/2016,Development Implementation,Cultural Environmental Regulatory & Planning Services,http://opendatacommunities.org/def/concept/finance/sercop/objective/104,CUMBRIA COUNTY COUNCIL,,03/02/2016,55510,200,0,Contribution to Lakes Line Community,908000,Public Bodies Council support services
South Lakeland District Council,http://opendatacommunities.org/id/district-council/south-lakeland,13/03/2016,Social Enterprise Admin,Central Services,http://opendatacommunities.org/def/concept/finance/sercop/objective/102,B & K Builders Ltd,5655979,01/02/2016,55511,6773.92,0,To replace fire doos at Coronation Hall,221100,Health & Safety� Maintenance
South Lakeland District Council,http://opendatacommunities.org/id/district-council/south-lakeland,13/03/2016,Environment and Housing,Housing Services,http://opendatacommunities.org/def/concept/finance/sercop/objective/108,BOROUGH OF BARROW IN FURNESS,,03/02/2016,55513,10500,0,DFG officer 1 day per week (Dec15-Mar16),908999,Public Bodies Not Elsewhere Classified
South Lakeland District Council,http://opendatacommunities.org/id/district-council/south-lakeland,13/03/2016,Business Support Community Services,Internal Trading Accounts,,BPI RECYCLED PRODUCTS,350729,03/02/2016,55514,5020.34,0,Black liners - 455x785x990 50/F 400/PK,182013,Environment Waste Mgt Waste Collection
South Lakeland District Council,http://opendatacommunities.org/id/district-council/south-lakeland,13/03/2016,Business Support Community Services,Internal Trading Accounts,,BRIAN ARMISTEAD LTD T/A SINKFALL RECYCLI,4133280,03/02/2016,55515,1623.6,0,Green waste tipping - 2015/16,391110,Construction Buildings Construction
South Lakeland District Council,http://opendatacommunities.org/id/district-council/south-lakeland,13/03/2016,Policy & Partnerships,Central Services,http://opendatacommunities.org/def/concept/finance/sercop/objective/102,RIVERBANK HOSPITALITY CATERING,,08/02/2016,55534,190,0,Catering supplies for the Procurement,111000,Catering Banquet & Catering
South Lakeland District Council,http://opendatacommunities.org/id/district-council/south-lakeland,13/03/2016,Business Support Community Services,Internal Trading Accounts,,TAYLOR ENGINEERING & FABRICATIONS LTD,4989359,03/02/2016,55535,309.5,0,Bolts,391200,Construction Engineering
South Lakeland District Council,http://opendatacommunities.org/id/district-council/south-lakeland,13/03/2016,Business Support Community Services,Internal Trading Accounts,,TAYLOR ENGINEERING & FABRICATIONS LTD,4989359,17/02/2016,55536,191.5,0,Valves,391200,Construction Engineering
South Lakeland District Council,http://opendatacommunities.org/id/district-council/south-lakeland,13/03/2016,Business Support Community Services,Internal Trading Accounts,,VOLVO GROUP UK LTD,2190944,03/02/2016,55539,1025,0,Pump,381000,Vehicle Mgt Commercial
South Lakeland District Council,http://opendatacommunities.org/id/district-council/south-lakeland,13/03/2016,Development Implementation,Cultural Environmental Regulatory & Planning Services,http://opendatacommunities.org/def/concept/finance/sercop/objective/104,A RICHARDSON - CRACKING SPREAD,,01/02/2016,55545,79,0,Refreshments for Windermere Futures,291000,Arts & Leisure Services Events
South Lakeland District Council,http://opendatacommunities.org/id/district-council/south-lakeland,13/03/2016,Business Support Community Services,Cultural Environmental Regulatory & Planning Services,http://opendatacommunities.org/def/concept/finance/sercop/objective/104,INSTITUTE OF LICENSING (EVENTS) LTD,5710898,01/02/2016,55546,145,0,Taxi Hackney Carriage & Private Hire,202100,Financial Services Subscriptions
South Lakeland District Council,http://opendatacommunities.org/id/district-council/south-lakeland,13/03/2016,Business Support Community Services,Central Services,http://opendatacommunities.org/def/concept/finance/sercop/objective/102,INSTITUTE OF LICENSING (EVENTS) LTD,5710898,01/02/2016,55547,95,0,Licensing Hearings - Preston (17 June,202100,Financial Services Subscriptions
South Lakeland District Council,http://opendatacommunities.org/id/district-council/south-lakeland,13/03/2016,Business Support Community Services,Central Services,http://opendatacommunities.org/def/concept/finance/sercop/objective/102,Thomson Hayton Winkley,,01/02/2016,55548,1250,0,Bond ,250010,Housing Letting Agents
South Lakeland District Council,http://opendatacommunities.org/id/district-council/south-lakeland,13/03/2016,Business Support Community Services,Central Services,http://opendatacommunities.org/def/concept/finance/sercop/objective/102,Landlord,,01/02/2016,55549,570,0,Rent payment ,250000,Housing
South Lakeland District Council,http://opendatacommunities.org/id/district-council/south-lakeland,13/03/2016,Development Implementation,Cultural Environmental Regulatory & Planning Services,http://opendatacommunities.org/def/concept/finance/sercop/objective/104,NPS NORTH WEST LTD,6614601,03/02/2016,55550,87,0,Attendance at 124 Highgate Meetings,391110,Construction Buildings Construction
South Lakeland District Council,http://opendatacommunities.org/id/district-council/south-lakeland,13/03/2016,Social Enterprise Admin,Highways & Transport Services,http://opendatacommunities.org/def/concept/finance/sercop/objective/107,Masterstaff Limited,2777593,03/02/2016,55551,455.1,0,Staff for Westmorland SC car park inc,261300,HR Recruitment & Assessment
South Lakeland District Council,http://opendatacommunities.org/id/district-council/south-lakeland,13/03/2016,ICT Group,Central Services,http://opendatacommunities.org/def/concept/finance/sercop/objective/102,Insight Direct (Uk) Ltd,2579852,03/02/2016,55552,96.25,0,Insight #: 0001399072 Iiyama ProLite,271200,ICT Hardware
South Lakeland District Council,http://opendatacommunities.org/id/district-council/south-lakeland,13/03/2016,Business Support Community Services,Internal Trading Accounts,,ARCO LIMITED,133804,03/02/2016,55553,53.73,0,PPE 2015/16,141100,Clothing Protective
South Lakeland District Council,http://opendatacommunities.org/id/district-council/south-lakeland,13/03/2016,Development Implementation,Cultural Environmental Regulatory & Planning Services,http://opendatacommunities.org/def/concept/finance/sercop/objective/104,Orian Solutions Ltd,8237164,03/02/2016,55554,336,0,"Cleaning Services at 124 Highgate,",131310,Cleaning & Janitorial Cleaning Service
South Lakeland District Council,http://opendatacommunities.org/id/district-council/south-lakeland,13/03/2016,Social Enterprise Admin,Highways & Transport Services,http://opendatacommunities.org/def/concept/finance/sercop/objective/107,NORTHGATE VEHICLE HIRE LTD,1434157,08/02/2016,55555,384.4,0,To hire a van for 30 days as discussed,381600,Vehicle Mgt Leasing
South Lakeland District Council,http://opendatacommunities.org/id/district-council/south-lakeland,13/03/2016,Social Enterprise Admin,Highways & Transport Services,http://opendatacommunities.org/def/concept/finance/sercop/objective/107,NORTHGATE VEHICLE HIRE LTD,1434157,08/02/2016,55556,372,0,To hire a van for 30 days as discussed,381600,Vehicle Mgt Leasing
South Lakeland District Council,http://opendatacommunities.org/id/district-council/south-lakeland,13/03/2016,Lake Wardens,Cultural Environmental Regulatory & Planning Services,http://opendatacommunities.org/def/concept/finance/sercop/objective/104,CPC,,03/02/2016,55557,3.41,0,2 x Writing Pads,271200,ICT Hardware
South Lakeland District Council,http://opendatacommunities.org/id/district-council/south-lakeland,13/03/2016,Social Enterprise Admin,Cultural Environmental Regulatory & Planning Services,http://opendatacommunities.org/def/concept/finance/sercop/objective/104,Cleartrack (EvL) Ltd,3881690,10/02/2016,55558,2400,0,Bluebell Wood  -Partially collapsed,199999,Facilities Not Elsewhere Classified
South Lakeland District Council,http://opendatacommunities.org/id/district-council/south-lakeland,13/03/2016,Social Enterprise Admin,Cultural Environmental Regulatory & Planning Services,http://opendatacommunities.org/def/concept/finance/sercop/objective/104,Cleartrack (EvL) Ltd,3881690,10/02/2016,55559,877.5,0,Tree work in Towns View Field,199999,Facilities Not Elsewhere Classified
South Lakeland District Council,http://opendatacommunities.org/id/district-council/south-lakeland,13/03/2016,Social Enterprise Admin,Cultural Environmental Regulatory & Planning Services,http://opendatacommunities.org/def/concept/finance/sercop/objective/104,Cleartrack (EvL) Ltd,3881690,10/02/2016,55560,1325,0,Emergency tree work - Windermere,199999,Facilities Not Elsewhere Classified
South Lakeland District Council,http://opendatacommunities.org/id/district-council/south-lakeland,13/03/2016,Development Implementation,Cultural Environmental Regulatory & Planning Services,http://opendatacommunities.org/def/concept/finance/sercop/objective/104,ADECCO UK LIMITED,593232,03/02/2016,55561,596.75,0,Economic Development Project Officer -,261400,HR Temporary & Agency Staff
South Lakeland District Council,http://opendatacommunities.org/id/district-council/south-lakeland,13/03/2016,Development Implementation,Central Services,http://opendatacommunities.org/def/concept/finance/sercop/objective/102,ADECCO UK LIMITED,593232,03/02/2016,55562,141.52,0,Economic Development Officer - ,261400,HR Temporary & Agency Staff
South Lakeland District Council,http://opendatacommunities.org/id/district-council/south-lakeland,13/03/2016,Development Implementation,Cultural Environmental Regulatory & Planning Services,http://opendatacommunities.org/def/concept/finance/sercop/objective/104,ADECCO UK LIMITED,593232,03/02/2016,55562,480.81,0,Economic Development Officer - ,261400,HR Temporary & Agency Staff
South Lakeland District Council,http://opendatacommunities.org/id/district-council/south-lakeland,13/03/2016,Revenues and Benefits,Central Services,http://opendatacommunities.org/def/concept/finance/sercop/objective/102,BADENOCH & CLARK,1356186,03/02/2016,55563,493.4,0,DC May 2015,261300,HR Recruitment & Assessment
South Lakeland District Council,http://opendatacommunities.org/id/district-council/south-lakeland,13/03/2016,Revenues and Benefits,Central Services,http://opendatacommunities.org/def/concept/finance/sercop/objective/102,BADENOCH & CLARK,1356186,03/02/2016,55564,533.4,0,DC May 2015,261300,HR Recruitment & Assessment
South Lakeland District Council,http://opendatacommunities.org/id/district-council/south-lakeland,13/03/2016,Kendal Town Hall,Cultural Environmental Regulatory & Planning Services,http://opendatacommunities.org/def/concept/finance/sercop/objective/104,W MCCLURE LTD,685360,03/02/2016,55565,73.25,0,5 boxes of foxes favourites biscuits for,111200,Catering Food & Beverages
South Lakeland District Council,http://opendatacommunities.org/id/district-council/south-lakeland,13/03/2016,Business Support Community Services,Central Services,http://opendatacommunities.org/def/concept/finance/sercop/objective/102,KENDAL HOSTEL,,03/02/2016,55566,80,0,Emergency  Accommodation ,261000,HR Accommodation
South Lakeland District Council,http://opendatacommunities.org/id/district-council/south-lakeland,13/03/2016,Business Support Community Services,Central Services,http://opendatacommunities.org/def/concept/finance/sercop/objective/102,STONECROSS MANOR HOTEL,,03/02/2016,55567,1050,0,Emergency accommodation ,261500,HR Training & Conferences
South Lakeland District Council,http://opendatacommunities.org/id/district-council/south-lakeland,13/03/2016,Business Support Community Services,Housing Services,http://opendatacommunities.org/def/concept/finance/sercop/objective/108,Neil Morland Housing Consultant Ltd,7776084,01/02/2016,55568,625,0,Full day training for Housing Options,150000,Consultancy
South Lakeland District Council,http://opendatacommunities.org/id/district-council/south-lakeland,13/03/2016,Business Support Community Services,Housing Services,http://opendatacommunities.org/def/concept/finance/sercop/objective/108,My Dream Cleaners Ltd,9839482,03/02/2016,55569,150,0,Cleaner at Town View Fields,131320,Cleaning & Janitorial Cleaning Service
South Lakeland District Council,http://opendatacommunities.org/id/district-council/south-lakeland,13/03/2016,Electoral Services,Central Services,http://opendatacommunities.org/def/concept/finance/sercop/objective/102,SCI PRINT LTD,,03/02/2016,55570,193.68,0,Weekly Mailings for Annual Canvass,191600,Facilities Printing
South Lakeland District Council,http://opendatacommunities.org/id/district-council/south-lakeland,13/03/2016,Environment and Housing,Housing,http://opendatacommunities.org/def/concept/finance/sercop/objective/108,C W COX & SONS (KENDAL) LTD,3498844,01/02/2016,55571,3538.58,0,"Helmside Road, Oxenholme, Kendal,",101000,Building Bathrooms
South Lakeland District Council,http://opendatacommunities.org/id/district-council/south-lakeland,13/03/2016,Financial Services,Central Services,http://opendatacommunities.org/def/concept/finance/sercop/objective/102,Capita Secure Information Solutions Ltd,1593831,22/02/2016,55572,1033,0,Crystal Reports Server Embedded 2013 -,271600,ICT Software Customised & Bespoke
South Lakeland District Council,http://opendatacommunities.org/id/district-council/south-lakeland,13/03/2016,Financial Services,Central Services,http://opendatacommunities.org/def/concept/finance/sercop/objective/102,Capita Secure Information Solutions Ltd,1593831,22/02/2016,55572,0,0,Crystal Reports Server Embedded 2013 -,271600,ICT Software Customised & Bespoke
South Lakeland District Council,http://opendatacommunities.org/id/district-council/south-lakeland,13/03/2016,Human Resources,Central Services,http://opendatacommunities.org/def/concept/finance/sercop/objective/102,Forge Training,,03/02/2016,55573,1935,0,16 - 18th March 2016,261500,HR Training & Conferences
South Lakeland District Council,http://opendatacommunities.org/id/district-council/south-lakeland,13/03/2016,Social Enterprise Admin,Highways & Transport Services,http://opendatacommunities.org/def/concept/finance/sercop/objective/107,HYGIENE CLEANING SUPPLIES LTD,4753934,03/02/2016,55574,70.15,0,Bulk pack toilet tissue 2 ply,131011,Cleaning & Janitorial Cleaning Materials
South Lakeland District Council,http://opendatacommunities.org/id/district-council/south-lakeland,13/03/2016,Environment and Housing,Housing,http://opendatacommunities.org/def/concept/finance/sercop/objective/108,ENVIRONMENT & HOUSING GRANTS,,01/02/2016,55575,1000.08,0,"Valley Drive, Kendal, LA9 7SJ",201700,Financial Services Grants
South Lakeland District Council,http://opendatacommunities.org/id/district-council/south-lakeland,13/03/2016,Lake Wardens,Cultural Environmental Regulatory & Planning Services,http://opendatacommunities.org/def/concept/finance/sercop/objective/104,RS COMPONENTS LTD,1002091,03/02/2016,55576,71.5,0,1 x Aluminium Rod 1-1/2in x 24 inch,101100,Building Electrical
South Lakeland District Council,http://opendatacommunities.org/id/district-council/south-lakeland,13/03/2016,Human Resources,Central Services,http://opendatacommunities.org/def/concept/finance/sercop/objective/102,GBS Corporate Training,6452080,03/02/2016,55577,995,0,Project Management - 11th June 2015,261500,HR Training & Conferences
South Lakeland District Council,http://opendatacommunities.org/id/district-council/south-lakeland,13/03/2016,Environment and Housing,Housing,http://opendatacommunities.org/def/concept/finance/sercop/objective/108,ENVIRONMENT & HOUSING GRANTS,,01/02/2016,55578,1040,0,"Valley Drive, Kendal, LA9 7SJ",201700,Financial Services Grants
South Lakeland District Council,http://opendatacommunities.org/id/district-council/south-lakeland,13/03/2016,Revenues and Benefits,SLDC as Agent,,ROYAL MAIL GROUP PLC,,03/02/2016,55582,1882.09,0,2015-2016 Postal Charges a/c 0198123013,301200,Mail Services� Postage
South Lakeland District Council,http://opendatacommunities.org/id/district-council/south-lakeland,13/03/2016,Policy & Partnerships,Cultural Environmental Regulatory & Planning Services,http://opendatacommunities.org/def/concept/finance/sercop/objective/104,Photobooth Cumbria,,03/02/2016,55584,500,0,Air graffiti wall deposit,191010,Facilities Advertising Promo & Recruit
South Lakeland District Council,http://opendatacommunities.org/id/district-council/south-lakeland,13/03/2016,Business Support Community Services,Internal Trading Accounts,,THOMAS GRAHAM & SONS (IRON & STEEL) LTD,656879,17/02/2016,55585,41.6,0,Oil,101400,Building General Materials
South Lakeland District Council,http://opendatacommunities.org/id/district-council/south-lakeland,13/03/2016,Revenues and Benefits,Central Services,http://opendatacommunities.org/def/concept/finance/sercop/objective/102,TAMESIDE METROPOLITAN BOROUGH,,08/02/2016,55587,808.64,0,2015-2016   NAFN credit and other,202100,Financial Services Subscriptions
South Lakeland District Council,http://opendatacommunities.org/id/district-council/south-lakeland,13/03/2016,ICT Group,Central Services,http://opendatacommunities.org/def/concept/finance/sercop/objective/102,Insight Direct (Uk) Ltd,2579852,03/02/2016,55588,9950,0,NPS Info@Work Documents Hub,271200,ICT Hardware
South Lakeland District Council,http://opendatacommunities.org/id/district-council/south-lakeland,13/03/2016,Social Enterprise Admin,Cultural Environmental Regulatory & Planning Services,http://opendatacommunities.org/def/concept/finance/sercop/objective/104,LAKE DISTRICT NATIONAL PARK AUTHORITY,,10/02/2016,55589,5000,0,Contribution towards costs of,201700,Financial Services Grants
South Lakeland District Council,http://opendatacommunities.org/id/district-council/south-lakeland,13/03/2016,ICT Group,Central Services,http://opendatacommunities.org/def/concept/finance/sercop/objective/102,RandomStorm Ltd,6229788,17/02/2016,55591,20700,0,3 yrs Annual IT Health Check as per the,279999,ICT Not Elsewhere Classified
South Lakeland District Council,http://opendatacommunities.org/id/district-council/south-lakeland,13/03/2016,Business Support Community Services,Internal Trading Accounts,,ARCO LIMITED,133804,08/02/2016,55592,53.73,0,PPE 2015/16,141100,Clothing Protective
South Lakeland District Council,http://opendatacommunities.org/id/district-council/south-lakeland,13/03/2016,Business Support Community Services,Central Services,http://opendatacommunities.org/def/concept/finance/sercop/objective/102,ARCO LIMITED,133804,08/02/2016,55593,690.73,0,Gloves,141100,Clothing Protective
South Lakeland District Council,http://opendatacommunities.org/id/district-council/south-lakeland,13/03/2016,Business Support Community Services,Internal Trading Accounts,,NORTHGATE VEHICLE HIRE LTD,1434157,03/02/2016,55594,510.6,0,Mercedes sprinter,381600,Vehicle Mgt Leasing
South Lakeland District Council,http://opendatacommunities.org/id/district-council/south-lakeland,13/03/2016,Business Support Community Services,Central Services,http://opendatacommunities.org/def/concept/finance/sercop/objective/102,Masterstaff Limited,2777593,08/02/2016,55595,1211.26,0,Agency staff - January 2016,261300,HR Recruitment & Assessment
South Lakeland District Council,http://opendatacommunities.org/id/district-council/south-lakeland,13/03/2016,Business Support Community Services,Internal Trading Accounts,,Masterstaff Limited,2777593,08/02/2016,55595,4596.69,0,Agency staff - January 2016,261300,HR Recruitment & Assessment
South Lakeland District Council,http://opendatacommunities.org/id/district-council/south-lakeland,13/03/2016,Policy & Partnerships,Cultural Environmental Regulatory & Planning Services,http://opendatacommunities.org/def/concept/finance/sercop/objective/104,Silent Disco Direct,,03/02/2016,55596,194.5,0,Silent Disco for White Noise (plus 100,291000,Arts & Leisure Services Events
South Lakeland District Council,http://opendatacommunities.org/id/district-council/south-lakeland,13/03/2016,Policy & Partnerships,Central Services,http://opendatacommunities.org/def/concept/finance/sercop/objective/102,NORTHGATE VEHICLE HIRE LTD,1434157,03/02/2016,55597,15.14,0,Transport for LC on 28/1/16,381600,Vehicle Mgt Leasing
South Lakeland District Council,http://opendatacommunities.org/id/district-council/south-lakeland,13/03/2016,Social Enterprise Admin,Highways & Transport Services,http://opendatacommunities.org/def/concept/finance/sercop/objective/107,NORTHGATE VEHICLE HIRE LTD,1434157,10/02/2016,55598,384.4,0,To hire a van for 30 days as discussed,381600,Vehicle Mgt Leasing
South Lakeland District Council,http://opendatacommunities.org/id/district-council/south-lakeland,13/03/2016,Social Enterprise Admin,Highways & Transport Services,http://opendatacommunities.org/def/concept/finance/sercop/objective/107,NORTHGATE VEHICLE HIRE LTD,1434157,10/02/2016,55599,396.8,0,To hire a van for 30 days as discussed,381600,Vehicle Mgt Leasing
South Lakeland District Council,http://opendatacommunities.org/id/district-council/south-lakeland,13/03/2016,Social Enterprise Admin,Cultural Environmental Regulatory & Planning Services,http://opendatacommunities.org/def/concept/finance/sercop/objective/104,FURNESS NEWSPAPERS LTD,1155841,10/02/2016,55602,103.6,0,PUBLIC NOTICES FOR PLANNING 1 APRIL 2015,191000,Facilities Advertising
South Lakeland District Council,http://opendatacommunities.org/id/district-council/south-lakeland,13/03/2016,ICT Group,Central Services,http://opendatacommunities.org/def/concept/finance/sercop/objective/102,DataPact (London) Ltd,,08/02/2016,55603,7034.6,0,20 x Lenovo B50-80 Laptops I5 processor,271200,ICT Hardware
South Lakeland District Council,http://opendatacommunities.org/id/district-council/south-lakeland,13/03/2016,Business Support Community Services,Internal Trading Accounts,,FURNESS FLUID POWER LTD,5675728,08/02/2016,55604,189.99,0,Repair hydaulic rams,260000,HR
South Lakeland District Council,http://opendatacommunities.org/id/district-council/south-lakeland,13/03/2016,Business Support Community Services,Cultural Environmental Regulatory & Planning Services,http://opendatacommunities.org/def/concept/finance/sercop/objective/104,PIER 1 METALWORKS LTD,4291520,03/02/2016,55605,885,0,Repair recycling banks,391200,Construction Engineering
South Lakeland District Council,http://opendatacommunities.org/id/district-council/south-lakeland,13/03/2016,Business Support Community Services,Internal Trading Accounts,,VOLVO GROUP UK LTD,2190944,03/02/2016,55606,375,0,Pump,381000,Vehicle Mgt Commercial
South Lakeland District Council,http://opendatacommunities.org/id/district-council/south-lakeland,13/03/2016,Business Support Community Services,Internal Trading Accounts,,FURNESS FLUID POWER LTD,5675728,08/02/2016,55607,50.06,0,Repair hydaulic rams,260000,HR
South Lakeland District Council,http://opendatacommunities.org/id/district-council/south-lakeland,13/03/2016,Business Support Community Services,Central Services,http://opendatacommunities.org/def/concept/finance/sercop/objective/102,ALLSTAR BUSINESS SOLUTIONS LTD (NCR),2631112,29/02/2016,55608,441.94,0,PX12 ZCV - 01/01,381600,Vehicle Mgt Leasing
South Lakeland District Council,http://opendatacommunities.org/id/district-council/south-lakeland,13/03/2016,Business Support Community Services,Internal Trading Accounts,,ALLSTAR BUSINESS SOLUTIONS LTD (NCR),2631112,29/02/2016,55608,15962.19,0,PX12 ZCV - 01/01,381600,Vehicle Mgt Leasing
South Lakeland District Council,http://opendatacommunities.org/id/district-council/south-lakeland,13/03/2016,Social Enterprise Admin,Highways & Transport Services,http://opendatacommunities.org/def/concept/finance/sercop/objective/107,ALLSTAR BUSINESS SOLUTIONS LTD (NCR),2631112,29/02/2016,55609,106.01,0,Fuel for car parks' vehicles starting 1,381600,Vehicle Mgt Leasing
South Lakeland District Council,http://opendatacommunities.org/id/district-council/south-lakeland,13/03/2016,Social Enterprise Admin,Highways & Transport Services,http://opendatacommunities.org/def/concept/finance/sercop/objective/107,ALLSTAR BUSINESS SOLUTIONS LTD (NCR),2631112,29/02/2016,55609,197.22,0,Fuel for car parks' vehicles starting 1,381600,Vehicle Mgt Leasing
South Lakeland District Council,http://opendatacommunities.org/id/district-council/south-lakeland,13/03/2016,Social Enterprise Admin,Cultural Environmental Regulatory & Planning Services,http://opendatacommunities.org/def/concept/finance/sercop/objective/104,ALLSTAR BUSINESS SOLUTIONS LTD (NCR),2631112,29/02/2016,55609,129.13,0,Fuel for car parks' vehicles starting 1,381600,Vehicle Mgt Leasing
South Lakeland District Council,http://opendatacommunities.org/id/district-council/south-lakeland,13/03/2016,Business Support Community Services,Internal Trading Accounts,,DENNIS EAGLE LTD,3794455,22/02/2016,55610,327.86,0,Isolator,381300,Vehicle Mgt Industrial
South Lakeland District Council,http://opendatacommunities.org/id/district-council/south-lakeland,13/03/2016,Business Support Community Services,Cultural Environmental Regulatory & Planning Services,http://opendatacommunities.org/def/concept/finance/sercop/objective/104,OCS GROUP LTD T/A CANNON HYGIENE LTD,1298292,03/02/2016,55611,12.26,0,Clinical waste collections - November,131011,Cleaning & Janitorial Cleaning Materials
South Lakeland District Council,http://opendatacommunities.org/id/district-council/south-lakeland,13/03/2016,Business Support Community Services,Internal Trading Accounts,,Driver Hire Lancaster,7762440,03/02/2016,55613,700.8,0,Agency driver - October 2015,380000,Vehicle Management
South Lakeland District Council,http://opendatacommunities.org/id/district-council/south-lakeland,13/03/2016,Business Support Community Services,Internal Trading Accounts,,DENNIS EAGLE LTD,3794455,03/02/2016,55614,122.12,0,Bushes,381300,Vehicle Mgt Industrial
South Lakeland District Council,http://opendatacommunities.org/id/district-council/south-lakeland,13/03/2016,Social Enterprise Admin,Highways & Transport Services,http://opendatacommunities.org/def/concept/finance/sercop/objective/107,ALLSTAR BUSINESS SOLUTIONS LTD (NCR),2631112,29/02/2016,55615,125.96,0,Fuel for car parks' vehicles starting 1,381600,Vehicle Mgt Leasing
South Lakeland District Council,http://opendatacommunities.org/id/district-council/south-lakeland,13/03/2016,Social Enterprise Admin,Highways & Transport Services,http://opendatacommunities.org/def/concept/finance/sercop/objective/107,ALLSTAR BUSINESS SOLUTIONS LTD (NCR),2631112,29/02/2016,55615,144.31,0,Fuel for car parks' vehicles starting 1,381600,Vehicle Mgt Leasing
South Lakeland District Council,http://opendatacommunities.org/id/district-council/south-lakeland,13/03/2016,Social Enterprise Admin,Cultural Environmental Regulatory & Planning Services,http://opendatacommunities.org/def/concept/finance/sercop/objective/104,ALLSTAR BUSINESS SOLUTIONS LTD (NCR),2631112,29/02/2016,55615,362.28,0,Fuel for car parks' vehicles starting 1,381600,Vehicle Mgt Leasing
South Lakeland District Council,http://opendatacommunities.org/id/district-council/south-lakeland,13/03/2016,Business Support Community Services,Internal Trading Accounts,,DENNIS EAGLE LTD,3794455,03/02/2016,55616,32.2,0,Bushes,381300,Vehicle Mgt Industrial
South Lakeland District Council,http://opendatacommunities.org/id/district-council/south-lakeland,13/03/2016,Business Support Community Services,Internal Trading Accounts,,DENNIS EAGLE LTD,3794455,03/02/2016,55617,238.18,0,Bushes,381300,Vehicle Mgt Industrial
South Lakeland District Council,http://opendatacommunities.org/id/district-council/south-lakeland,13/03/2016,Business Support Community Services,Internal Trading Accounts,,DENNIS EAGLE LTD,3794455,03/02/2016,55618,1125,0,Bushes,381300,Vehicle Mgt Industrial
South Lakeland District Council,http://opendatacommunities.org/id/district-council/south-lakeland,13/03/2016,Business Support Community Services,Cultural Environmental Regulatory & Planning Services,http://opendatacommunities.org/def/concept/finance/sercop/objective/104,WESTMORLAND VETERINARY GROUP,,10/02/2016,55619,92.04,0,Vet Inspections for Licensing Department,181500,Environment Animal Services
South Lakeland District Council,http://opendatacommunities.org/id/district-council/south-lakeland,13/03/2016,Business Support Community Services,Internal Trading Accounts,,DENNIS EAGLE LTD,3794455,03/02/2016,55620,62.79,0,Bushes,381300,Vehicle Mgt Industrial
South Lakeland District Council,http://opendatacommunities.org/id/district-council/south-lakeland,13/03/2016,Business Support Community Services,Internal Trading Accounts,,DENNIS EAGLE LTD,3794455,03/02/2016,55621,6.96,0,Bushes,381300,Vehicle Mgt Industrial
South Lakeland District Council,http://opendatacommunities.org/id/district-council/south-lakeland,13/03/2016,Business Support Community Services,Cultural Environmental Regulatory & Planning Services,http://opendatacommunities.org/def/concept/finance/sercop/objective/104,WESTMORLAND VETERINARY GROUP,,10/02/2016,55622,75.97,0,Vet Inspections for Licensing Department,181500,Environment Animal Services
South Lakeland District Council,http://opendatacommunities.org/id/district-council/south-lakeland,13/03/2016,Business Support Community Services,Internal Trading Accounts,,DENNIS EAGLE LTD,3794455,03/02/2016,55623,52.98,0,Bushes,381300,Vehicle Mgt Industrial
South Lakeland District Council,http://opendatacommunities.org/id/district-council/south-lakeland,13/03/2016,Business Support Community Services,Internal Trading Accounts,,DENNIS EAGLE LTD,3794455,03/02/2016,55624,19.4,0,Bushes,381300,Vehicle Mgt Industrial
South Lakeland District Council,http://opendatacommunities.org/id/district-council/south-lakeland,13/03/2016,Business Support Community Services,Cultural Environmental Regulatory & Planning Services,http://opendatacommunities.org/def/concept/finance/sercop/objective/104,WESTMORLAND VETERINARY GROUP,,10/02/2016,55625,69.27,0,Vet Inspections for Licensing Department,181500,Environment Animal Services
South Lakeland District Council,http://opendatacommunities.org/id/district-council/south-lakeland,13/03/2016,Business Support Community Services,Internal Trading Accounts,,HYDRAIR TRUCK & TRAILER PARTS LTD,,03/02/2016,55626,256,0,PArts,381500,Vehicle Mgt Parts
South Lakeland District Council,http://opendatacommunities.org/id/district-council/south-lakeland,13/03/2016,Business Support Community Services,Internal Trading Accounts,,HYDRAIR TRUCK & TRAILER PARTS LTD,,03/02/2016,55627,113.9,0,PArts,381500,Vehicle Mgt Parts
South Lakeland District Council,http://opendatacommunities.org/id/district-council/south-lakeland,13/03/2016,Business Support Community Services,Internal Trading Accounts,,HYDRAIR TRUCK & TRAILER PARTS LTD,,03/02/2016,55628,210.44,0,PArts,381500,Vehicle Mgt Parts
South Lakeland District Council,http://opendatacommunities.org/id/district-council/south-lakeland,13/03/2016,Business Support Community Services,Internal Trading Accounts,,HYDRAIR TRUCK & TRAILER PARTS LTD,,03/02/2016,55629,273.96,0,PArts,381500,Vehicle Mgt Parts
South Lakeland District Council,http://opendatacommunities.org/id/district-council/south-lakeland,13/03/2016,Business Support Community Services,Internal Trading Accounts,,DENNIS EAGLE LTD,3794455,03/02/2016,55630,264.24,0,Bushes,381300,Vehicle Mgt Industrial
South Lakeland District Council,http://opendatacommunities.org/id/district-council/south-lakeland,13/03/2016,Business Support Community Services,Internal Trading Accounts,,DENNIS EAGLE LTD,3794455,03/02/2016,55631,264.14,0,Bushes,381300,Vehicle Mgt Industrial
South Lakeland District Council,http://opendatacommunities.org/id/district-council/south-lakeland,13/03/2016,Business Support Community Services,Internal Trading Accounts,,DENNIS EAGLE LTD,3794455,03/02/2016,55632,7.9,0,Bushes,381300,Vehicle Mgt Industrial
South Lakeland District Council,http://opendatacommunities.org/id/district-council/south-lakeland,13/03/2016,Business Support Community Services,Internal Trading Accounts,,EK MOTOR FACTORS LTD,838524,03/02/2016,55633,90.98,0,Air filter,381400,Vehicle Mgt Maintenance
South Lakeland District Council,http://opendatacommunities.org/id/district-council/south-lakeland,13/03/2016,Business Support Community Services,Internal Trading Accounts,,DENNIS EAGLE LTD,3794455,03/02/2016,55634,581.92,0,Bushes,381300,Vehicle Mgt Industrial
South Lakeland District Council,http://opendatacommunities.org/id/district-council/south-lakeland,13/03/2016,Business Support Community Services,Internal Trading Accounts,,DENNIS EAGLE LTD,3794455,03/02/2016,55635,81,0,Bushes,381300,Vehicle Mgt Industrial
South Lakeland District Council,http://opendatacommunities.org/id/district-council/south-lakeland,13/03/2016,Business Support Community Services,Internal Trading Accounts,,EK MOTOR FACTORS LTD,838524,03/02/2016,55636,59.9,0,Air filter,381400,Vehicle Mgt Maintenance
South Lakeland District Council,http://opendatacommunities.org/id/district-council/south-lakeland,13/03/2016,Business Support Community Services,Internal Trading Accounts,,Fleetmatics (UK) Ltd,5265904,08/02/2016,55637,385,0,Key fobs,361000,Public Transport Fleet Management
South Lakeland District Council,http://opendatacommunities.org/id/district-council/south-lakeland,13/03/2016,Business Support Community Services,Internal Trading Accounts,,EK MOTOR FACTORS LTD,838524,03/02/2016,55639,46.7,0,Air filter,381400,Vehicle Mgt Maintenance
South Lakeland District Council,http://opendatacommunities.org/id/district-council/south-lakeland,13/03/2016,Business Support Community Services,Internal Trading Accounts,,VOLVO GROUP UK LTD,2190944,03/02/2016,55640,331,0,Repair fuel fault,381000,Vehicle Mgt Commercial
South Lakeland District Council,http://opendatacommunities.org/id/district-council/south-lakeland,13/03/2016,Business Support Community Services,Internal Trading Accounts,,A & W COMMERCIALS LTD,2630625,03/02/2016,55641,254.78,0,Repair clutch pipe,381400,Vehicle Mgt Maintenance
South Lakeland District Council,http://opendatacommunities.org/id/district-council/south-lakeland,13/03/2016,Business Support Community Services,Internal Trading Accounts,,A & W COMMERCIALS LTD,2630625,03/02/2016,55641,36.8,0,Repair clutch pipe,381400,Vehicle Mgt Maintenance
South Lakeland District Council,http://opendatacommunities.org/id/district-council/south-lakeland,13/03/2016,Business Support Community Services,Internal Trading Accounts,,CUMBRIA TRUCK CENTRE LTD,4298488,03/02/2016,55642,456.54,0,Call out,381300,Vehicle Mgt Industrial
South Lakeland District Council,http://opendatacommunities.org/id/district-council/south-lakeland,13/03/2016,Business Support Community Services,Internal Trading Accounts,,CUMBRIA TRUCK CENTRE LTD,4298488,03/02/2016,55643,144.54,0,Drag link,381300,Vehicle Mgt Industrial
South Lakeland District Council,http://opendatacommunities.org/id/district-council/south-lakeland,13/03/2016,Business Support Community Services,Internal Trading Accounts,,Preston Trade Parts Specialists,,03/02/2016,55644,17.18,0,Lamp,381400,Vehicle Mgt Maintenance
South Lakeland District Council,http://opendatacommunities.org/id/district-council/south-lakeland,13/03/2016,Business Support Community Services,Internal Trading Accounts,,Preston Trade Parts Specialists,,03/02/2016,55645,43.09,0,Lens,381400,Vehicle Mgt Maintenance
South Lakeland District Council,http://opendatacommunities.org/id/district-council/south-lakeland,13/03/2016,Business Support Community Services,Internal Trading Accounts,,EK MOTOR FACTORS LTD,838524,03/02/2016,55646,30.06,0,Air filter,381400,Vehicle Mgt Maintenance
South Lakeland District Council,http://opendatacommunities.org/id/district-council/south-lakeland,13/03/2016,Business Support Community Services,Internal Trading Accounts,,EK MOTOR FACTORS LTD,838524,03/02/2016,55647,25.51,0,Air filter,381400,Vehicle Mgt Maintenance
South Lakeland District Council,http://opendatacommunities.org/id/district-council/south-lakeland,13/03/2016,Business Support Community Services,Internal Trading Accounts,,EK MOTOR FACTORS LTD,838524,03/02/2016,55648,54.96,0,Air filter,381400,Vehicle Mgt Maintenance
South Lakeland District Council,http://opendatacommunities.org/id/district-council/south-lakeland,13/03/2016,Business Support Community Services,Internal Trading Accounts,,EK MOTOR FACTORS LTD,838524,03/02/2016,55649,-12.54,0,Air filter,381400,Vehicle Mgt Maintenance
South Lakeland District Council,http://opendatacommunities.org/id/district-council/south-lakeland,13/03/2016,Business Support Community Services,Internal Trading Accounts,,EK MOTOR FACTORS LTD,838524,03/02/2016,55650,187.7,0,Air filter,381400,Vehicle Mgt Maintenance
South Lakeland District Council,http://opendatacommunities.org/id/district-council/south-lakeland,13/03/2016,Business Support Community Services,Internal Trading Accounts,,EK MOTOR FACTORS LTD,838524,03/02/2016,55651,-60,0,Air filter,381400,Vehicle Mgt Maintenance
South Lakeland District Council,http://opendatacommunities.org/id/district-council/south-lakeland,13/03/2016,Business Support Community Services,Internal Trading Accounts,,DENNIS EAGLE LTD,3794455,03/02/2016,55652,337.75,0,Bushes,381300,Vehicle Mgt Industrial
South Lakeland District Council,http://opendatacommunities.org/id/district-council/south-lakeland,13/03/2016,ICT Group,Central Services,http://opendatacommunities.org/def/concept/finance/sercop/objective/102,System People Ltd,,03/02/2016,55653,540,0,Agency Contract fees for J,271100,ICT Consumables
South Lakeland District Council,http://opendatacommunities.org/id/district-council/south-lakeland,13/03/2016,Business Support Community Services,Housing Services,http://opendatacommunities.org/def/concept/finance/sercop/objective/108,Landlord,,03/02/2016,55655,400,0,Monthly rent ,250000,Housing
South Lakeland District Council,http://opendatacommunities.org/id/district-council/south-lakeland,13/03/2016,Business Support Community Services,Housing Services,http://opendatacommunities.org/def/concept/finance/sercop/objective/108,Landlord,,03/02/2016,55656,600,0,Monthly rent ,250000,Housing
South Lakeland District Council,http://opendatacommunities.org/id/district-council/south-lakeland,13/03/2016,Business Support Community Services,Housing Services,http://opendatacommunities.org/def/concept/finance/sercop/objective/108,Landlord,,03/02/2016,55657,400,0,Monthly rent ,250010,Housing Letting Agents
South Lakeland District Council,http://opendatacommunities.org/id/district-council/south-lakeland,13/03/2016,Printing Section,Central Services,http://opendatacommunities.org/def/concept/finance/sercop/objective/102,Konica Minolta Bus Solutions (UK) Ltd,,10/02/2016,55658,3471.58,0,Konica click charges for office,192000,Facilities Reprographics
South Lakeland District Council,http://opendatacommunities.org/id/district-council/south-lakeland,13/03/2016,Human Resources,Central Services,http://opendatacommunities.org/def/concept/finance/sercop/objective/102,HAYMARKET MEDIA GROUP LTD,267189,03/02/2016,55659,1330,0,Employee Relations Advisor post,171114,Education Literature
South Lakeland District Council,http://opendatacommunities.org/id/district-council/south-lakeland,13/03/2016,Social Enterprise Admin,Culture and Related Serv,http://opendatacommunities.org/def/concept/finance/sercop/objective/104,HYGIENE CLEANING SUPPLIES LTD,4753934,10/02/2016,55660,92.26,0,rectangular waste bin - black CB081,131011,Cleaning & Janitorial Cleaning Materials
South Lakeland District Council,http://opendatacommunities.org/id/district-council/south-lakeland,13/03/2016,Development Implementation,Cultural Environmental Regulatory & Planning Services,http://opendatacommunities.org/def/concept/finance/sercop/objective/104,HYGIENE CLEANING SUPPLIES LTD,4753934,08/02/2016,55661,7.99,0,"Supply of toilet rolls to Mintworks,",131011,Cleaning & Janitorial Cleaning Materials
South Lakeland District Council,http://opendatacommunities.org/id/district-council/south-lakeland,13/03/2016,Development Implementation,Central Services,http://opendatacommunities.org/def/concept/finance/sercop/objective/102,South Lakes Citizens Advice Bureau,6113551,03/02/2016,55662,4800,0,Financial Contribution to the move of,261200,HR Professional & Advisory Services
South Lakeland District Council,http://opendatacommunities.org/id/district-council/south-lakeland,13/03/2016,Development Implementation,Central Services,http://opendatacommunities.org/def/concept/finance/sercop/objective/102,NPS NORTH WEST LTD,6614601,03/02/2016,55663,1537,0,Solar Panel Feasibility for 124,391110,Construction Buildings Construction
South Lakeland District Council,http://opendatacommunities.org/id/district-council/south-lakeland,13/03/2016,Business Support Community Services,Central Services,http://opendatacommunities.org/def/concept/finance/sercop/objective/102,ALLSTAR BUSINESS SOLUTIONS LTD (NCR),2631112,29/02/2016,55665,183.42,0,PX12 ZDF - 18/01,381600,Vehicle Mgt Leasing
South Lakeland District Council,http://opendatacommunities.org/id/district-council/south-lakeland,13/03/2016,Business Support Community Services,Internal Trading Accounts,,ALLSTAR BUSINESS SOLUTIONS LTD (NCR),2631112,29/02/2016,55665,3122.05,0,PX12 ZDF - 18/01,381600,Vehicle Mgt Leasing
South Lakeland District Council,http://opendatacommunities.org/id/district-council/south-lakeland,13/03/2016,Business Support Community Services,Internal Trading Accounts,,ALLSTAR BUSINESS SOLUTIONS LTD (NCR),2631112,29/02/2016,55665,143.72,0,PX12 ZDF - 18/01,381600,Vehicle Mgt Leasing
South Lakeland District Council,http://opendatacommunities.org/id/district-council/south-lakeland,13/03/2016,Business Support Community Services,Internal Trading Accounts,,ALLSTAR BUSINESS SOLUTIONS LTD (NCR),2631112,29/02/2016,55665,12911.71,0,PX12 ZDF - 18/01,381600,Vehicle Mgt Leasing
South Lakeland District Council,http://opendatacommunities.org/id/district-council/south-lakeland,13/03/2016,Policy & Partnerships,Cultural Environmental Regulatory & Planning Services,http://opendatacommunities.org/def/concept/finance/sercop/objective/104,GRANTS- MISCELLANEOUS,,03/02/2016,55666,1000,0,After the flood of December 2015 the,201700,Financial Services Grants
South Lakeland District Council,http://opendatacommunities.org/id/district-council/south-lakeland,13/03/2016,Business Support Community Services,Cultural Environmental Regulatory & Planning Services,http://opendatacommunities.org/def/concept/finance/sercop/objective/104,ALLSTAR BUSINESS SOLUTIONS LTD (NCR),2631112,29/02/2016,55667,33.4,0,Fuel - 7 Jan 2016 - Private Water Van,381600,Vehicle Mgt Leasing
South Lakeland District Council,http://opendatacommunities.org/id/district-council/south-lakeland,13/03/2016,Business Support Community Services,Cultural Environmental Regulatory & Planning Services,http://opendatacommunities.org/def/concept/finance/sercop/objective/104,ALLSTAR BUSINESS SOLUTIONS LTD (NCR),2631112,29/02/2016,55668,30.12,0,Fuel - 28 Jan 2016 - Private Water Van,381600,Vehicle Mgt Leasing
South Lakeland District Council,http://opendatacommunities.org/id/district-council/south-lakeland,13/03/2016,Lake Wardens,Cultural Environmental Regulatory & Planning Services,http://opendatacommunities.org/def/concept/finance/sercop/objective/104,AUTOPARTS (CUMBRIA) LTD,2579204,03/02/2016,55669,6.3,0,2 x 1 metre length of 15.9mm internal,381500,Vehicle Mgt Parts
South Lakeland District Council,http://opendatacommunities.org/id/district-council/south-lakeland,13/03/2016,Business Support Community Services,Central Services,http://opendatacommunities.org/def/concept/finance/sercop/objective/102,Landlord,,03/02/2016,55671,600,0,Rent in advance ,250000,Housing
South Lakeland District Council,http://opendatacommunities.org/id/district-council/south-lakeland,13/03/2016,Business Support Community Services,Cultural Environmental Regulatory & Planning Services,http://opendatacommunities.org/def/concept/finance/sercop/objective/104,MILNTHORPE KENNELS & CATTERY,8932302,03/02/2016,55672,2541.67,0,Stray Dog Service 2015-16,181500,Environment Animal Services
South Lakeland District Council,http://opendatacommunities.org/id/district-council/south-lakeland,13/03/2016,Business Support Community Services,Central Services,http://opendatacommunities.org/def/concept/finance/sercop/objective/102,Landlord,,03/02/2016,55673,1470,0,Payment for rent ,250000,Housing
South Lakeland District Council,http://opendatacommunities.org/id/district-council/south-lakeland,13/03/2016,Business Support Community Services,Central Services,http://opendatacommunities.org/def/concept/finance/sercop/objective/102,Landlord,,03/02/2016,55674,1100,0,Rent in advance ,250000,Housing
South Lakeland District Council,http://opendatacommunities.org/id/district-council/south-lakeland,13/03/2016,Kendal Town Hall,Highways & Transport Services,http://opendatacommunities.org/def/concept/finance/sercop/objective/107,NPS NORTH WEST LTD,6614601,03/02/2016,55675,989,0,Feasibility study for a protected,391110,Construction Buildings Construction
South Lakeland District Council,http://opendatacommunities.org/id/district-council/south-lakeland,13/03/2016,Kendal Town Hall,Cultural Environmental Regulatory & Planning Services,http://opendatacommunities.org/def/concept/finance/sercop/objective/104,NPS NORTH WEST LTD,6614601,02/03/2016,55676,390.07,0,Design work associated with Windermere,391110,Construction Buildings Construction
South Lakeland District Council,http://opendatacommunities.org/id/district-council/south-lakeland,13/03/2016,Human Resources,Central Services,http://opendatacommunities.org/def/concept/finance/sercop/objective/102,OCEAN MEDIA GROUP LTD,1680420,29/02/2016,55678,2173,0,"Premium online listing,",191000,Facilities Advertising
South Lakeland District Council,http://opendatacommunities.org/id/district-council/south-lakeland,13/03/2016,Policy & Partnerships,Cultural Environmental Regulatory & Planning Services,http://opendatacommunities.org/def/concept/finance/sercop/objective/104,Ulverston Methodist Church,,08/02/2016,55679,18.75,0,Room hire for LAP meeting on 21/1/16,192110,Facilities Room Hire
South Lakeland District Council,http://opendatacommunities.org/id/district-council/south-lakeland,13/03/2016,Business Support Community Services,Internal Trading Accounts,,FUCHS LUBRICANTS (UK) PLC,2412689,08/02/2016,55685,1101.92,0,Oil,381100,Vehicle Mgt Fuel
South Lakeland District Council,http://opendatacommunities.org/id/district-council/south-lakeland,13/03/2016,Business Support Community Services,Internal Trading Accounts,,BRIAN ARMISTEAD LTD T/A SINKFALL RECYCLI,4133280,08/02/2016,55686,330.4,0,Green waste tipping - 2015/16,391110,Construction Buildings Construction
South Lakeland District Council,http://opendatacommunities.org/id/district-council/south-lakeland,13/03/2016,Revenues and Benefits,Central Services,http://opendatacommunities.org/def/concept/finance/sercop/objective/102,PITNEY BOWES LTD,182037,08/02/2016,55687,166.9,0,2015-2016   Stationery & office,301200,Mail Services� Postage
South Lakeland District Council,http://opendatacommunities.org/id/district-council/south-lakeland,13/03/2016,Social Enterprise Admin,Central Services,http://opendatacommunities.org/def/concept/finance/sercop/objective/102,ENVIROFIRST LTD,5999123,10/02/2016,55688,148.86,0,Lowther street wheelie bin mixed,182012,Environment Waste Management Recycling
South Lakeland District Council,http://opendatacommunities.org/id/district-council/south-lakeland,13/03/2016,Revenues and Benefits,Central Services,http://opendatacommunities.org/def/concept/finance/sercop/objective/102,BADENOCH & CLARK,1356186,08/02/2016,55689,466.73,0,Revs and Bens May 2015,261300,HR Recruitment & Assessment
South Lakeland District Council,http://opendatacommunities.org/id/district-council/south-lakeland,13/03/2016,Social Enterprise Admin,Central Services,http://opendatacommunities.org/def/concept/finance/sercop/objective/102,Land Data Community Interest Company,5417694,08/02/2016,55691,645,0,LOCAL LAND CHARGES TRAINING - 3 PERSONS,201700,Financial Services Grants
South Lakeland District Council,http://opendatacommunities.org/id/district-council/south-lakeland,13/03/2016,Social Enterprise Admin,Central Services,http://opendatacommunities.org/def/concept/finance/sercop/objective/102,WOOF'S OF SEDBERGH,,08/02/2016,55692,175,0,MINI BUS SITE VISITS FOR MEMBERS RE,361300,Public Transport Passenger Transport
South Lakeland District Council,http://opendatacommunities.org/id/district-council/south-lakeland,13/03/2016,Development Strategy,Cultural Environmental Regulatory & Planning Services,http://opendatacommunities.org/def/concept/finance/sercop/objective/104,RIVERBANK HOSPITALITY CATERING,,08/02/2016,55693,47.5,0,10 Traditional Taste Lunch Buffets @,111000,Catering Banquet & Catering
South Lakeland District Council,http://opendatacommunities.org/id/district-council/south-lakeland,13/03/2016,Business Support Community Services,Housing Services,http://opendatacommunities.org/def/concept/finance/sercop/objective/108,James Andrews Recruitment Solutions,6834852,08/02/2016,55694,906.25,0,Payment for - Housing,261400,HR Temporary & Agency Staff
South Lakeland District Council,http://opendatacommunities.org/id/district-council/south-lakeland,13/03/2016,Business Support Community Services,Cultural Environmental Regulatory & Planning Services,http://opendatacommunities.org/def/concept/finance/sercop/objective/104,WESTMORLAND VETERINARY GROUP,,08/02/2016,55695,85.56,0,Vet Inspections for Licensing Department,181500,Environment Animal Services
South Lakeland District Council,http://opendatacommunities.org/id/district-council/south-lakeland,13/03/2016,Business Support Community Services,Central Services,http://opendatacommunities.org/def/concept/finance/sercop/objective/102,KEEP BRITAIN TIDY,3496361,08/02/2016,55697,3000,0,Enforcement Academy - ,181600,Environment Street Cleansing
South Lakeland District Council,http://opendatacommunities.org/id/district-council/south-lakeland,13/03/2016,Business Support Community Services,Internal Trading Accounts,,CUMBRIA TRUCK CENTRE LTD,4298488,08/02/2016,55698,116,0,Drag link,381300,Vehicle Mgt Industrial
South Lakeland District Council,http://opendatacommunities.org/id/district-council/south-lakeland,13/03/2016,Business Support Community Services,Internal Trading Accounts,,BOC GASES,337663,08/02/2016,55699,280.93,0,Gas,371100,Utilities Gas
South Lakeland District Council,http://opendatacommunities.org/id/district-council/south-lakeland,13/03/2016,Business Support Community Services,Central Services,http://opendatacommunities.org/def/concept/finance/sercop/objective/102,IAN F NICHOLSON LTD,6768166,08/02/2016,55700,2425,0,30/12 flood waste collections,391110,Construction Buildings Construction
South Lakeland District Council,http://opendatacommunities.org/id/district-council/south-lakeland,13/03/2016,Business Support Community Services,Internal Trading Accounts,,HAKO MACHINES LIMITED,1414225,08/02/2016,55701,5043.99,0,Hire of KP63 WXW 01/02/16 - 31/03/16,131000,Cleaning & Janitorial Cleaning Materials
South Lakeland District Council,http://opendatacommunities.org/id/district-council/south-lakeland,13/03/2016,Business Support Community Services,Internal Trading Accounts,,BERENDSEN UK LTD,228604,08/02/2016,55702,225.47,0,Workwear hire 29/03/15 - 28/03/16,161000,Domestic Goods Commercial
South Lakeland District Council,http://opendatacommunities.org/id/district-council/south-lakeland,13/03/2016,Business Support Community Services,Internal Trading Accounts,,RIBBLESDALE AUTO ELECTRICS 1992 LTD,2732686,08/02/2016,55703,190,0,Bulbs,381500,Vehicle Mgt Parts
South Lakeland District Council,http://opendatacommunities.org/id/district-council/south-lakeland,13/03/2016,Business Support Community Services,Internal Trading Accounts,,RIBBLESDALE AUTO ELECTRICS 1992 LTD,2732686,08/02/2016,55704,23.38,0,Bulbs,381500,Vehicle Mgt Parts
South Lakeland District Council,http://opendatacommunities.org/id/district-council/south-lakeland,13/03/2016,Business Support Community Services,Internal Trading Accounts,,RIBBLESDALE AUTO ELECTRICS 1992 LTD,2732686,08/02/2016,55705,177.5,0,Bulbs,381500,Vehicle Mgt Parts
South Lakeland District Council,http://opendatacommunities.org/id/district-council/south-lakeland,13/03/2016,Development Implementation,Cultural Environmental Regulatory & Planning Services,http://opendatacommunities.org/def/concept/finance/sercop/objective/104,Highways England Company Ltd,9346363,08/02/2016,55706,8333.33,0,M6 Tourism Signage - Yorkshire Dales,230000,Highways
South Lakeland District Council,http://opendatacommunities.org/id/district-council/south-lakeland,13/03/2016,Policy & Partnerships,Cultural Environmental Regulatory & Planning Services,http://opendatacommunities.org/def/concept/finance/sercop/objective/104,Windermere First Responders,,08/02/2016,55707,900,0,To provide a further defibulator to,311300,Healthcare-Equipment
South Lakeland District Council,http://opendatacommunities.org/id/district-council/south-lakeland,13/03/2016,Human Resources,Central Services,http://opendatacommunities.org/def/concept/finance/sercop/objective/102,FORBES SOLICITORS,,08/02/2016,55708,52,0,Legal advice,281300,Legal Services Legal Opinion
South Lakeland District Council,http://opendatacommunities.org/id/district-council/south-lakeland,13/03/2016,Human Resources,Central Services,http://opendatacommunities.org/def/concept/finance/sercop/objective/102,FORBES SOLICITORS,,08/02/2016,55709,610.25,0,Legal advice,281300,Legal Services Legal Opinion
South Lakeland District Council,http://opendatacommunities.org/id/district-council/south-lakeland,13/03/2016,Environment and Housing,SLDC as Agent,,ABRITAS LTD,4101079,08/02/2016,55710,61.74,0,Cumbria Choice Data Storage & Recovery,151200,Consultancy Efficiency
South Lakeland District Council,http://opendatacommunities.org/id/district-council/south-lakeland,13/03/2016,Business Support Community Services,Housing Services,http://opendatacommunities.org/def/concept/finance/sercop/objective/108,Vigilant Security Services UK Ltd,5914271,08/02/2016,55711,3573.76,0,Monthly payment for the security Guard,192213,Facilities Security Manned Guarding
South Lakeland District Council,http://opendatacommunities.org/id/district-council/south-lakeland,13/03/2016,Human Resources,Central Services,http://opendatacommunities.org/def/concept/finance/sercop/objective/102,IOSH SERVICES LTD,1816826,08/02/2016,55712,20,0,replacement certificate for,221100,Health & Safety� Maintenance
South Lakeland District Council,http://opendatacommunities.org/id/district-council/south-lakeland,13/03/2016,Development Strategy,Central Services,http://opendatacommunities.org/def/concept/finance/sercop/objective/102,ROYAL TOWN PLANNING INSTITUTE,,08/02/2016,55713,285,0,To attend  Local Plan Making,908999,Public Bodies Not Elsewhere Classified
South Lakeland District Council,http://opendatacommunities.org/id/district-council/south-lakeland,13/03/2016,Financial Services,Central Services,http://opendatacommunities.org/def/concept/finance/sercop/objective/102,Fred Harvey Associates,,08/02/2016,55714,300,0,EU procurement support,150000,Consultancy
South Lakeland District Council,http://opendatacommunities.org/id/district-council/south-lakeland,13/03/2016,Human Resources,Central Services,http://opendatacommunities.org/def/concept/finance/sercop/objective/102,OH Acquisitions Ltd,7365943,08/02/2016,55715,780.53,0,Morning clinic on Wednesday,191800,Facilities Public Relations & Image
South Lakeland District Council,http://opendatacommunities.org/id/district-council/south-lakeland,13/03/2016,Human Resources,Central Services,http://opendatacommunities.org/def/concept/finance/sercop/objective/102,OH Acquisitions Ltd,7365943,08/02/2016,55716,177,0,Pre employment check ,191800,Facilities Public Relations & Image
South Lakeland District Council,http://opendatacommunities.org/id/district-council/south-lakeland,13/03/2016,Business Support Community Services,Internal Trading Accounts,,Hydrodec (UK) Ltd T/A OSS Group,8652156,08/02/2016,55717,110,0,Remove waste oil filters,182015,Environment Waste Mgt Waste Disposal
South Lakeland District Council,http://opendatacommunities.org/id/district-council/south-lakeland,13/03/2016,Social Enterprise Admin,Highways & Transport Services,http://opendatacommunities.org/def/concept/finance/sercop/objective/107,Essential Fleet Services Ltd,3337954,08/02/2016,55718,215.27,0,Hire of 3 Citroen Nemo vans for the,152200,Consultancy Technical & Feasibility
South Lakeland District Council,http://opendatacommunities.org/id/district-council/south-lakeland,13/03/2016,Social Enterprise Admin,Highways & Transport Services,http://opendatacommunities.org/def/concept/finance/sercop/objective/107,Essential Fleet Services Ltd,3337954,08/02/2016,55719,215.27,0,Hire of 3 Citroen Nemo vans for the,152200,Consultancy Technical & Feasibility
South Lakeland District Council,http://opendatacommunities.org/id/district-council/south-lakeland,13/03/2016,Social Enterprise Admin,Highways & Transport Services,http://opendatacommunities.org/def/concept/finance/sercop/objective/107,Essential Fleet Services Ltd,3337954,08/02/2016,55720,215.27,0,Hire of 3 Citroen Nemo vans for the,152200,Consultancy Technical & Feasibility
South Lakeland District Council,http://opendatacommunities.org/id/district-council/south-lakeland,13/03/2016,Business Support Community Services,Internal Trading Accounts,,ARCO LIMITED,133804,17/02/2016,55721,37.98,0,PPE 2015/16,141100,Clothing Protective
South Lakeland District Council,http://opendatacommunities.org/id/district-council/south-lakeland,13/03/2016,Social Enterprise Admin,External Trading Accounts,,J S Cleaning Services,,08/02/2016,55722,990,0,"Cleaning Ulverston Market Hall, Town",131010,Cleaning & Janitorial Cleaning Materials
South Lakeland District Council,http://opendatacommunities.org/id/district-council/south-lakeland,13/03/2016,Legal Services,Internal Trading Accounts,,PENNINGTONS (KENDAL) LIMITED,434649,17/02/2016,55723,2000,0,Annual charge from April 2015 to March,182013,Environment Waste Mgt Waste Collection
South Lakeland District Council,http://opendatacommunities.org/id/district-council/south-lakeland,13/03/2016,Human Resources,Central Services,http://opendatacommunities.org/def/concept/finance/sercop/objective/102,CIVICA UK LTD,1628868,29/02/2016,55724,325,0,Year end workshop,271600,ICT Software Customised & Bespoke
South Lakeland District Council,http://opendatacommunities.org/id/district-council/south-lakeland,13/03/2016,Social Enterprise Admin,Cultural Environmental Regulatory & Planning Services,http://opendatacommunities.org/def/concept/finance/sercop/objective/104,B & J METALS (SKIP HIRE) LTD,4634318,10/02/2016,55725,420,0,Grounds waste disposal - Sandylands Road,182011,Environment Waste Management Consumables
South Lakeland District Council,http://opendatacommunities.org/id/district-council/south-lakeland,13/03/2016,Business Support Community Services,Housing Services,http://opendatacommunities.org/def/concept/finance/sercop/objective/108,KENDAL SECURITY CENTRE LTD,3179893,08/02/2016,55726,105,0,Two new locks fitted at Flat 1a,192212,Facilities Security Equipment
South Lakeland District Council,http://opendatacommunities.org/id/district-council/south-lakeland,13/03/2016,Business Support Community Services,Housing Services,http://opendatacommunities.org/def/concept/finance/sercop/objective/108,KENDAL SECURITY CENTRE LTD,3179893,08/02/2016,55727,80,0,"Lock change at Lowther Park, Kendal",192212,Facilities Security Equipment
South Lakeland District Council,http://opendatacommunities.org/id/district-council/south-lakeland,13/03/2016,Social Enterprise Admin,Highways & Transport Services,http://opendatacommunities.org/def/concept/finance/sercop/objective/107,METRIC GROUP LIMITED,2560839,08/02/2016,55728,693,0,Web hosting and web tariff editor for 66,359999,Street & Traffic Not Elsewhere Classifie
South Lakeland District Council,http://opendatacommunities.org/id/district-council/south-lakeland,13/03/2016,Revenues and Benefits,,,Kendal BID Ltd,8986243,08/02/2016,55729,262.27,0,Collection figures for November &,201700,Financial Services Grants
South Lakeland District Council,http://opendatacommunities.org/id/district-council/south-lakeland,13/03/2016,Business Support Community Services,Housing Services,http://opendatacommunities.org/def/concept/finance/sercop/objective/108,GATES TRAVEL SERVICE,,08/02/2016,55730,30.9,0,Train ticket for DC from,261600,HR Travel & Subsistence
South Lakeland District Council,http://opendatacommunities.org/id/district-council/south-lakeland,13/03/2016,Human Resources,Central Services,http://opendatacommunities.org/def/concept/finance/sercop/objective/102,DISCLOSURE AND BARRING SERVICE,,08/02/2016,55731,93,0,Disclosure checks,202100,Financial Services Subscriptions
South Lakeland District Council,http://opendatacommunities.org/id/district-council/south-lakeland,13/03/2016,Human Resources,SLDC as Agent,,DISCLOSURE AND BARRING SERVICE,,08/02/2016,55731,264,0,Disclosure checks,202100,Financial Services Subscriptions
South Lakeland District Council,http://opendatacommunities.org/id/district-council/south-lakeland,13/03/2016,Business Support Community Services,Cultural Environmental Regulatory & Planning Services,http://opendatacommunities.org/def/concept/finance/sercop/objective/104,Public Health England,,10/02/2016,55732,75.18,0,Cockle Sample Testing,221100,Health & Safety� Maintenance
South Lakeland District Council,http://opendatacommunities.org/id/district-council/south-lakeland,13/03/2016,Business Support Community Services,Cultural Environmental Regulatory & Planning Services,http://opendatacommunities.org/def/concept/finance/sercop/objective/104,BLACKPOOL BOROUGH COUNCIL,,08/02/2016,55733,755,0,Northern Coastal Sub Group Fee 2015/16,202100,Financial Services Subscriptions
South Lakeland District Council,http://opendatacommunities.org/id/district-council/south-lakeland,13/03/2016,Coronation Hall,Cultural Environmental Regulatory & Planning Services,http://opendatacommunities.org/def/concept/finance/sercop/objective/104,PETTY CASH CORONATION HALL A/C 60822930,,08/02/2016,55734,177.33,0,Coronation Hall Petty Cash from 16,201400,Financial Services C Tax & Bus Rates
South Lakeland District Council,http://opendatacommunities.org/id/district-council/south-lakeland,13/03/2016,Financial Services,Central Services,http://opendatacommunities.org/def/concept/finance/sercop/objective/102,CIPP,4227998,08/02/2016,55735,150,0,3 payroll places legislative update,261500,HR Training & Conferences
South Lakeland District Council,http://opendatacommunities.org/id/district-council/south-lakeland,13/03/2016,Human Resources,Central Services,http://opendatacommunities.org/def/concept/finance/sercop/objective/102,KENDAL COLLEGE,,08/02/2016,55736,3000,0,Aspiring Managers Programme,908999,Public Bodies Not Elsewhere Classified
South Lakeland District Council,http://opendatacommunities.org/id/district-council/south-lakeland,13/03/2016,Human Resources,Central Services,http://opendatacommunities.org/def/concept/finance/sercop/objective/102,KENDAL COLLEGE,,08/02/2016,55737,350,0,29.04.15 13:3015:00 E-Forms,908999,Public Bodies Not Elsewhere Classified
South Lakeland District Council,http://opendatacommunities.org/id/district-council/south-lakeland,13/03/2016,Development Implementation,Cultural Environmental Regulatory & Planning Services,http://opendatacommunities.org/def/concept/finance/sercop/objective/104,NEWSQUEST MEDIA GROUP LTD,3102566,10/02/2016,55738,300,0,A 5x9 advertising strip in Westmorland,191000,Facilities Advertising
South Lakeland District Council,http://opendatacommunities.org/id/district-council/south-lakeland,13/03/2016,Business Support Community Services,Internal Trading Accounts,,DENNIS EAGLE LTD,3794455,17/02/2016,55739,1930.52,0,Isolator,381300,Vehicle Mgt Industrial
South Lakeland District Council,http://opendatacommunities.org/id/district-council/south-lakeland,13/03/2016,Revenues and Benefits,SLDC as Agent,,ROYAL MAIL GROUP PLC,,08/02/2016,55740,1649.13,0,2015-2016 Postal Charges a/c 0198123013,301200,Mail Services� Postage
South Lakeland District Council,http://opendatacommunities.org/id/district-council/south-lakeland,13/03/2016,Social Enterprise Admin,Cultural Environmental Regulatory & Planning Services,http://opendatacommunities.org/def/concept/finance/sercop/objective/104,NEWSQUEST MEDIA GROUP LTD,3102566,10/02/2016,55741,77,0,PUBLIC NOTICES FOR PLANNING 1 APRIL - 31,191000,Facilities Advertising
South Lakeland District Council,http://opendatacommunities.org/id/district-council/south-lakeland,13/03/2016,Business Support Community Services,Internal Trading Accounts,,JOHNSTON SWEEPERS LTD,199841,17/02/2016,55742,215.27,0,Vibrator,181600,Environment Street Cleansing
South Lakeland District Council,http://opendatacommunities.org/id/district-council/south-lakeland,13/03/2016,Social Enterprise Admin,Highways & Transport Services,http://opendatacommunities.org/def/concept/finance/sercop/objective/107,CURRENCY TECH LTD,4376601,08/02/2016,55743,39.95,0,2 x boxes of 20 Thermal till rolls 57 x,151200,Consultancy Efficiency
South Lakeland District Council,http://opendatacommunities.org/id/district-council/south-lakeland,13/03/2016,ICT Group,Central Services,http://opendatacommunities.org/def/concept/finance/sercop/objective/102,NORTHGATE VEHICLE HIRE LTD,1434157,08/02/2016,55744,15.14,0,Car hire for GM (01/02/2016),381600,Vehicle Mgt Leasing
South Lakeland District Council,http://opendatacommunities.org/id/district-council/south-lakeland,13/03/2016,Electoral Services,Central Services,http://opendatacommunities.org/def/concept/finance/sercop/objective/102,ROYAL MAIL GROUP PLC,,15/02/2016,55745,72.58,0,Electoral Registration Top Up Postage on,301200,Mail Services� Postage
South Lakeland District Council,http://opendatacommunities.org/id/district-council/south-lakeland,13/03/2016,Revenues and Benefits,Central Services,http://opendatacommunities.org/def/concept/finance/sercop/objective/102,HBINFO LTD,5779046,08/02/2016,55746,399,0,Subscription 2016 - 2017,201400,Financial Services C Tax & Bus Rates
South Lakeland District Council,http://opendatacommunities.org/id/district-council/south-lakeland,13/03/2016,Revenues and Benefits,Central Services,http://opendatacommunities.org/def/concept/finance/sercop/objective/102,CIVICA UK LTD,1628868,08/02/2016,55747,1800,0,"Licence, Support and Maintenance - Local",271600,ICT Software Customised & Bespoke
South Lakeland District Council,http://opendatacommunities.org/id/district-council/south-lakeland,13/03/2016,Business Support Community Services,Internal Trading Accounts,,SOLWAY DAF,1393710,08/02/2016,55751,168.41,0,Taper,381000,Vehicle Mgt Commercial
South Lakeland District Council,http://opendatacommunities.org/id/district-council/south-lakeland,13/03/2016,Business Support Community Services,Internal Trading Accounts,,SOLWAY DAF,1393710,08/02/2016,55752,57.44,0,Taper,381000,Vehicle Mgt Commercial
South Lakeland District Council,http://opendatacommunities.org/id/district-council/south-lakeland,13/03/2016,Business Support Community Services,Internal Trading Accounts,,RIBBLESDALE AUTO ELECTRICS 1992 LTD,2732686,08/02/2016,55753,168,0,LEDs,381500,Vehicle Mgt Parts
South Lakeland District Council,http://opendatacommunities.org/id/district-council/south-lakeland,13/03/2016,Business Support Community Services,Internal Trading Accounts,,RIBBLESDALE AUTO ELECTRICS 1992 LTD,2732686,08/02/2016,55754,94.38,0,LEDs,381500,Vehicle Mgt Parts
South Lakeland District Council,http://opendatacommunities.org/id/district-council/south-lakeland,13/03/2016,Business Support Community Services,Internal Trading Accounts,,RIBBLESDALE AUTO ELECTRICS 1992 LTD,2732686,08/02/2016,55755,131.6,0,LEDs,381500,Vehicle Mgt Parts
South Lakeland District Council,http://opendatacommunities.org/id/district-council/south-lakeland,13/03/2016,Business Support Community Services,Internal Trading Accounts,,RIBBLESDALE AUTO ELECTRICS 1992 LTD,2732686,08/02/2016,55756,120,0,LEDs,381500,Vehicle Mgt Parts
South Lakeland District Council,http://opendatacommunities.org/id/district-council/south-lakeland,13/03/2016,Business Support Community Services,Internal Trading Accounts,,RIBBLESDALE AUTO ELECTRICS 1992 LTD,2732686,08/02/2016,55757,-33.9,0,LEDs,381500,Vehicle Mgt Parts
South Lakeland District Council,http://opendatacommunities.org/id/district-council/south-lakeland,13/03/2016,Business Support Community Services,Internal Trading Accounts,,SOLWAY DAF,1393710,08/02/2016,55758,10.23,0,Taper,381000,Vehicle Mgt Commercial
South Lakeland District Council,http://opendatacommunities.org/id/district-council/south-lakeland,13/03/2016,Business Support Community Services,Internal Trading Accounts,,TAYLOR ENGINEERING & FABRICATIONS LTD,4989359,17/02/2016,55759,22.21,0,Valves,391200,Construction Engineering
South Lakeland District Council,http://opendatacommunities.org/id/district-council/south-lakeland,13/03/2016,Business Support Community Services,Internal Trading Accounts,,SOLWAY DAF,1393710,08/02/2016,55760,115.16,0,Taper,381000,Vehicle Mgt Commercial
South Lakeland District Council,http://opendatacommunities.org/id/district-council/south-lakeland,13/03/2016,Development Implementation,Cultural Environmental Regulatory & Planning Services,http://opendatacommunities.org/def/concept/finance/sercop/objective/104,SKV Communications,3495502,08/02/2016,55761,1879,0,Continuation of Provision of,191800,Facilities Public Relations & Image
South Lakeland District Council,http://opendatacommunities.org/id/district-council/south-lakeland,13/03/2016,Development Implementation,Cultural Environmental Regulatory & Planning Services,http://opendatacommunities.org/def/concept/finance/sercop/objective/104,WiFi Spark Ltd,,08/02/2016,55762,402.18,0,Kendal Town Centre Wifi - 12 months,271800,ICT Telecommunications Mobile
South Lakeland District Council,http://opendatacommunities.org/id/district-council/south-lakeland,13/03/2016,Environment and Housing,Housing Services,http://opendatacommunities.org/def/concept/finance/sercop/objective/108,CUMBRIA RURAL HOUSING TRUST,2920997,10/02/2016,55763,621.82,0,CLT/self-build support 2015-16,250000,Housing
South Lakeland District Council,http://opendatacommunities.org/id/district-council/south-lakeland,13/03/2016,Development Implementation,Cultural Environmental Regulatory & Planning Services,http://opendatacommunities.org/def/concept/finance/sercop/objective/104,ADECCO UK LIMITED,593232,10/02/2016,55764,549.86,0,Economic Development Project Officer -,261400,HR Temporary & Agency Staff
South Lakeland District Council,http://opendatacommunities.org/id/district-council/south-lakeland,13/03/2016,Development Implementation,Cultural Environmental Regulatory & Planning Services,http://opendatacommunities.org/def/concept/finance/sercop/objective/104,ADECCO UK LIMITED,593232,10/02/2016,55765,515.76,0,Economic Development Project Officer -,261400,HR Temporary & Agency Staff
South Lakeland District Council,http://opendatacommunities.org/id/district-council/south-lakeland,13/03/2016,Development Implementation,Cultural Environmental Regulatory & Planning Services,http://opendatacommunities.org/def/concept/finance/sercop/objective/104,ADECCO UK LIMITED,593232,10/02/2016,55766,217,0,VW - Shop Counts (14hours @,261400,HR Temporary & Agency Staff
South Lakeland District Council,http://opendatacommunities.org/id/district-council/south-lakeland,13/03/2016,Development Implementation,Cultural Environmental Regulatory & Planning Services,http://opendatacommunities.org/def/concept/finance/sercop/objective/104,ADECCO UK LIMITED,593232,10/02/2016,55767,68.2,0,Economic Development Project Officer -,261400,HR Temporary & Agency Staff
South Lakeland District Council,http://opendatacommunities.org/id/district-council/south-lakeland,13/03/2016,Technical Team,Central Services,http://opendatacommunities.org/def/concept/finance/sercop/objective/102,ADECCO UK LIMITED,593232,17/02/2016,55768,267.96,0,AGENCY WORKER - SUPPORT ASSISTANT,261400,HR Temporary & Agency Staff
South Lakeland District Council,http://opendatacommunities.org/id/district-council/south-lakeland,13/03/2016,Social Enterprise Admin,SLDC as Agent,,PAY BY PHONE (PAYPOINT),,10/02/2016,55769,94.66,0,Pay-by-phone charges from 1 April 2015,351400,Street & Traffic Traffic Control
South Lakeland District Council,http://opendatacommunities.org/id/district-council/south-lakeland,13/03/2016,Business Support Community Services,Internal Trading Accounts,,Collett Transport Services,2843547,08/02/2016,55770,3465,0,Hire of RCVs,361000,Public Transport Fleet Management
South Lakeland District Council,http://opendatacommunities.org/id/district-council/south-lakeland,13/03/2016,Business Support Community Services,Internal Trading Accounts,,Harry Park Tyres Ltd,8131208,08/02/2016,55771,67,0,Puncture,381500,Vehicle Mgt Parts
South Lakeland District Council,http://opendatacommunities.org/id/district-council/south-lakeland,13/03/2016,Business Support Community Services,Internal Trading Accounts,,Harry Park Tyres Ltd,8131208,08/02/2016,55772,10,0,Puncture,381500,Vehicle Mgt Parts
South Lakeland District Council,http://opendatacommunities.org/id/district-council/south-lakeland,13/03/2016,Business Support Community Services,Internal Trading Accounts,,Harry Park Tyres Ltd,8131208,08/02/2016,55773,1365,0,Puncture,381500,Vehicle Mgt Parts
South Lakeland District Council,http://opendatacommunities.org/id/district-council/south-lakeland,13/03/2016,Business Support Community Services,Internal Trading Accounts,,RIBBLE FUEL OILS,,08/02/2016,55774,1033.4,0,Gas oil for Canal Head,381100,Vehicle Mgt Fuel
South Lakeland District Council,http://opendatacommunities.org/id/district-council/south-lakeland,13/03/2016,Business Support Community Services,Internal Trading Accounts,,Collett Transport Services,2843547,08/02/2016,55775,2835,0,Hire of RCVs,361000,Public Transport Fleet Management
South Lakeland District Council,http://opendatacommunities.org/id/district-council/south-lakeland,13/03/2016,Democratic Services,Central Services,http://opendatacommunities.org/def/concept/finance/sercop/objective/102,Data TV Ltd,8587584,08/02/2016,55776,2125,0,Media training for Shadow Cabinet,261500,HR Training & Conferences
South Lakeland District Council,http://opendatacommunities.org/id/district-council/south-lakeland,13/03/2016,Business Support Community Services,Internal Trading Accounts,,J R RICHARDSON LTD,2225792,08/02/2016,55777,176.42,0,Vehicle washing consumables,381500,Vehicle Mgt Parts
South Lakeland District Council,http://opendatacommunities.org/id/district-council/south-lakeland,13/03/2016,Business Support Community Services,Housing Services,http://opendatacommunities.org/def/concept/finance/sercop/objective/108,My Dream Cleaners Ltd,9839482,08/02/2016,55778,315,0,Cleaner at Town View Fields,131320,Cleaning & Janitorial Cleaning Service
South Lakeland District Council,http://opendatacommunities.org/id/district-council/south-lakeland,13/03/2016,Business Support Community Services,Internal Trading Accounts,,K S INTERNATIONAL LTD,2703321,08/02/2016,55779,191,0,Brake pads,381500,Vehicle Mgt Parts
South Lakeland District Council,http://opendatacommunities.org/id/district-council/south-lakeland,13/03/2016,Financial Services,Central Services,http://opendatacommunities.org/def/concept/finance/sercop/objective/102,CIPFA,2376684,08/02/2016,55780,540,0,5 x attendance at CIPFA year end,202100,Financial Services Subscriptions
South Lakeland District Council,http://opendatacommunities.org/id/district-council/south-lakeland,13/03/2016,Business Support Community Services,Internal Trading Accounts,,FAUN ZOELLER (UK) LTD,751804,08/02/2016,55781,62.48,0,Switches,381400,Vehicle Mgt Maintenance
South Lakeland District Council,http://opendatacommunities.org/id/district-council/south-lakeland,13/03/2016,Business Support Community Services,Internal Trading Accounts,,FAUN ZOELLER (UK) LTD,751804,10/02/2016,55782,502.74,0,Coil,381400,Vehicle Mgt Maintenance
South Lakeland District Council,http://opendatacommunities.org/id/district-council/south-lakeland,13/03/2016,Financial Services,Central Services,http://opendatacommunities.org/def/concept/finance/sercop/objective/102,CIPFA,2376684,08/02/2016,55783,540,0,5 x attendance at CIPFA year end,202100,Financial Services Subscriptions
South Lakeland District Council,http://opendatacommunities.org/id/district-council/south-lakeland,13/03/2016,Business Support Community Services,Internal Trading Accounts,,FAUN ZOELLER (UK) LTD,751804,08/02/2016,55784,400,0,Display,381400,Vehicle Mgt Maintenance
South Lakeland District Council,http://opendatacommunities.org/id/district-council/south-lakeland,13/03/2016,Human Resources,Central Services,http://opendatacommunities.org/def/concept/finance/sercop/objective/102,FORBES SOLICITORS,,08/02/2016,55785,26,0,Legal advice,281300,Legal Services Legal Opinion
South Lakeland District Council,http://opendatacommunities.org/id/district-council/south-lakeland,13/03/2016,Social Enterprise Admin,Highways & Transport Services,http://opendatacommunities.org/def/concept/finance/sercop/objective/107,CREDIT CALL LTD (NCR),,29/02/2016,55786,380.27,0,Credit Call Commission  2015/16,209999,Financial Services Not Elsewhere Classif
South Lakeland District Council,http://opendatacommunities.org/id/district-council/south-lakeland,13/03/2016,Environment and Housing,Housing,http://opendatacommunities.org/def/concept/finance/sercop/objective/108,ENVIRONMENT & HOUSING GRANTS,,08/02/2016,55788,7222.69,0,"First and Second Floors, 13 Lowther",201700,Financial Services Grants
South Lakeland District Council,http://opendatacommunities.org/id/district-council/south-lakeland,13/03/2016,Human Resources,Central Services,http://opendatacommunities.org/def/concept/finance/sercop/objective/102,Indicator - FL Memo Ltd,3599719,10/02/2016,55789,124.95,0,employment memo,201400,Financial Services C Tax & Bus Rates
South Lakeland District Council,http://opendatacommunities.org/id/district-council/south-lakeland,13/03/2016,Business Support Community Services,Housing Services,http://opendatacommunities.org/def/concept/finance/sercop/objective/108,KENDAL SECURITY CENTRE LTD,3179893,10/02/2016,55790,95,0,"New lock fitted at Caroline Street,",192212,Facilities Security Equipment
South Lakeland District Council,http://opendatacommunities.org/id/district-council/south-lakeland,13/03/2016,Social Enterprise Admin,Housing,http://opendatacommunities.org/def/concept/finance/sercop/objective/108,CONTINENTAL LANDSCAPES LTD,2108452,17/02/2016,55791,3000,0,For the removal of playground equipment,391310,Construction Open Spaces Construction
South Lakeland District Council,http://opendatacommunities.org/id/district-council/south-lakeland,13/03/2016,ICT Group,Central Services,http://opendatacommunities.org/def/concept/finance/sercop/objective/102,Insight Direct (Uk) Ltd,2579852,10/02/2016,55792,389.7,0,30 x 4GB Ram 204-pin,271200,ICT Hardware
South Lakeland District Council,http://opendatacommunities.org/id/district-council/south-lakeland,13/03/2016,Business Support Community Services,Transport Planning Policy,http://opendatacommunities.org/def/concept/finance/sercop/objective/107,ARCO LIMITED,133804,17/02/2016,55794,5.65,0,PPE 2015/16,141100,Clothing Protective
South Lakeland District Council,http://opendatacommunities.org/id/district-council/south-lakeland,13/03/2016,Business Support Community Services,Central Services,http://opendatacommunities.org/def/concept/finance/sercop/objective/102,ARCO LIMITED,133804,17/02/2016,55794,479.12,0,PPE 2015/16,141100,Clothing Protective
South Lakeland District Council,http://opendatacommunities.org/id/district-council/south-lakeland,13/03/2016,Business Support Community Services,Internal Trading Accounts,,ARCO LIMITED,133804,17/02/2016,55794,519.82,0,PPE 2015/16,141100,Clothing Protective
South Lakeland District Council,http://opendatacommunities.org/id/district-council/south-lakeland,13/03/2016,Business Support Community Services,Internal Trading Accounts,,ARCO LIMITED,133804,17/02/2016,55794,60.16,0,PPE 2015/16,141100,Clothing Protective
South Lakeland District Council,http://opendatacommunities.org/id/district-council/south-lakeland,13/03/2016,Business Support Community Services,Internal Trading Accounts,,ARCO LIMITED,133804,17/02/2016,55794,87.44,0,PPE 2015/16,141100,Clothing Protective
South Lakeland District Council,http://opendatacommunities.org/id/district-council/south-lakeland,13/03/2016,Business Support Community Services,Transport Planning Policy,http://opendatacommunities.org/def/concept/finance/sercop/objective/107,ARCO LIMITED,133804,17/02/2016,55795,30.05,0,PPE 2015/16,141100,Clothing Protective
South Lakeland District Council,http://opendatacommunities.org/id/district-council/south-lakeland,13/03/2016,Business Support Community Services,Internal Trading Accounts,,ARCO LIMITED,133804,17/02/2016,55796,60.84,0,Rigger boots,141100,Clothing Protective
South Lakeland District Council,http://opendatacommunities.org/id/district-council/south-lakeland,13/03/2016,Business Support Community Services,Internal Trading Accounts,,A & W COMMERCIALS LTD,2630625,17/02/2016,55797,304.92,0,Hose,381400,Vehicle Mgt Maintenance
South Lakeland District Council,http://opendatacommunities.org/id/district-council/south-lakeland,13/03/2016,Human Resources,Central Services,http://opendatacommunities.org/def/concept/finance/sercop/objective/102,FLORENCE MADDEN,,10/02/2016,55798,1677.4,0,8 days group 2 Effective Leadership,261500,HR Training & Conferences
South Lakeland District Council,http://opendatacommunities.org/id/district-council/south-lakeland,13/03/2016,Policy & Partnerships,Central Services,http://opendatacommunities.org/def/concept/finance/sercop/objective/102,NORTHGATE VEHICLE HIRE LTD,1434157,10/02/2016,55799,15.14,0,Transport for LC on 2/2/16,381600,Vehicle Mgt Leasing
South Lakeland District Council,http://opendatacommunities.org/id/district-council/south-lakeland,13/03/2016,Policy & Partnerships,Cultural Environmental Regulatory & Planning Services,http://opendatacommunities.org/def/concept/finance/sercop/objective/104,South Lakeland Credit Union,,10/02/2016,55800,50000,0,Contribution to South Lakes Credit Union,201700,Financial Services Grants
South Lakeland District Council,http://opendatacommunities.org/id/district-council/south-lakeland,13/03/2016,Policy & Partnerships,Cultural Environmental Regulatory & Planning Services,http://opendatacommunities.org/def/concept/finance/sercop/objective/104,GRANTS- MISCELLANEOUS,,10/02/2016,55801,510,0,The funding will be part of the overall,201700,Financial Services Grants
South Lakeland District Council,http://opendatacommunities.org/id/district-council/south-lakeland,13/03/2016,Social Enterprise Admin,Cultural Environmental Regulatory & Planning Services,http://opendatacommunities.org/def/concept/finance/sercop/objective/104,AMENITY TREE CARE LTD,4141279,10/02/2016,55802,620,0,tree work at Lake Road car park,241600,Horticultural Trees & Shrubs
South Lakeland District Council,http://opendatacommunities.org/id/district-council/south-lakeland,13/03/2016,Policy & Partnerships,Cultural Environmental Regulatory & Planning Services,http://opendatacommunities.org/def/concept/finance/sercop/objective/104,KENDAL TOWN COUNCIL,,10/02/2016,55803,1000,0,"Defibrillator for Far Cross Lane, links",908000,Public Bodies Council support services
South Lakeland District Council,http://opendatacommunities.org/id/district-council/south-lakeland,13/03/2016,Revenues and Benefits,Central Services,http://opendatacommunities.org/def/concept/finance/sercop/objective/102,BADENOCH & CLARK,1356186,10/02/2016,55804,406.72,0,Revs and Bens May 2015,261300,HR Recruitment & Assessment
South Lakeland District Council,http://opendatacommunities.org/id/district-council/south-lakeland,13/03/2016,Business Support Community Services,Cultural Environmental Regulatory & Planning Services,http://opendatacommunities.org/def/concept/finance/sercop/objective/104,INSTITUTE OF LICENSING (EVENTS) LTD,5710898,10/02/2016,55806,145,0,IOL Course 1st March 2016 @ Carlisle,202100,Financial Services Subscriptions
South Lakeland District Council,http://opendatacommunities.org/id/district-council/south-lakeland,13/03/2016,Social Enterprise Admin,Culture and Related Serv,http://opendatacommunities.org/def/concept/finance/sercop/objective/104,NPS NORTH WEST LTD,6614601,10/02/2016,55808,635.18,0,Work to replace the traditional wood,391110,Construction Buildings Construction
South Lakeland District Council,http://opendatacommunities.org/id/district-council/south-lakeland,13/03/2016,Policy & Partnerships,Cultural Environmental Regulatory & Planning Services,http://opendatacommunities.org/def/concept/finance/sercop/objective/104,GRANTS- MISCELLANEOUS,,10/02/2016,55809,300,0,Henna artist for White Noise,201700,Financial Services Grants
South Lakeland District Council,http://opendatacommunities.org/id/district-council/south-lakeland,13/03/2016,Development Implementation,Cultural Environmental Regulatory & Planning Services,http://opendatacommunities.org/def/concept/finance/sercop/objective/104,PS BUSINESS MATTERS,8147185,17/02/2016,55810,2000,0,Kendal Futures Programme Support,151900,Consultancy Management
South Lakeland District Council,http://opendatacommunities.org/id/district-council/south-lakeland,13/03/2016,Kendal Town Hall,Cultural Environmental Regulatory & Planning Services,http://opendatacommunities.org/def/concept/finance/sercop/objective/104,THE CATERING PARTNERSHIP,3150517,24/02/2016,55811,137.95,0,Call out to look at the Amika dishwasher,111100,Catering Equipment & Utensils
South Lakeland District Council,http://opendatacommunities.org/id/district-council/south-lakeland,13/03/2016,Social Enterprise Admin,Culture and Related Serv,http://opendatacommunities.org/def/concept/finance/sercop/objective/104,NORTECH RADIO TELEPHONES LTD,1879815,10/02/2016,55812,466.33,0,Icom IC-M87 marine VHF handheld two way,270000,Information Communications Technology
South Lakeland District Council,http://opendatacommunities.org/id/district-council/south-lakeland,13/03/2016,Social Enterprise Admin,Cultural Environmental Regulatory & Planning Services,http://opendatacommunities.org/def/concept/finance/sercop/objective/104,Nepro Ltd,,10/02/2016,55813,7560,0,Ulverston Leisure Site Masterplan Study,151900,Consultancy Management
South Lakeland District Council,http://opendatacommunities.org/id/district-council/south-lakeland,13/03/2016,Legal Services,Central Services,http://opendatacommunities.org/def/concept/finance/sercop/objective/102,GATES TRAVEL SERVICE,,10/02/2016,55814,20.5,0,Rail fare for attending,261600,HR Travel & Subsistence
South Lakeland District Council,http://opendatacommunities.org/id/district-council/south-lakeland,13/03/2016,Legal Services,Central Services,http://opendatacommunities.org/def/concept/finance/sercop/objective/102,GATES TRAVEL SERVICE,,10/02/2016,55815,20.5,0,Rail fare for attending,261600,HR Travel & Subsistence
South Lakeland District Council,http://opendatacommunities.org/id/district-council/south-lakeland,13/03/2016,Development Implementation,Central Services,http://opendatacommunities.org/def/concept/finance/sercop/objective/102,NPS NORTH WEST LTD,6614601,10/02/2016,55816,38333.33,0,Professional Property Services for,391110,Construction Buildings Construction
South Lakeland District Council,http://opendatacommunities.org/id/district-council/south-lakeland,13/03/2016,Financial Services,Central Services,http://opendatacommunities.org/def/concept/finance/sercop/objective/102,DUE NORTH LTD,4499218,10/02/2016,55817,2140,0,Licence for Procontract The Chest,271600,ICT Software Customised & Bespoke
South Lakeland District Council,http://opendatacommunities.org/id/district-council/south-lakeland,13/03/2016,Policy & Partnerships,Cultural Environmental Regulatory & Planning Services,http://opendatacommunities.org/def/concept/finance/sercop/objective/104,ABSOLUTE DIGITAL PRINT LTD,4705547,17/02/2016,55818,288,0,Banner for White Noise - originally,191600,Facilities Printing
South Lakeland District Council,http://opendatacommunities.org/id/district-council/south-lakeland,13/03/2016,Social Enterprise Admin,Highways & Transport Services,http://opendatacommunities.org/def/concept/finance/sercop/objective/107,BEMROSE BOOTH PARAGON LTD,4891375,24/02/2016,55819,1128.75,0,187500 Aura self-adhesive pay and,191600,Facilities Printing
South Lakeland District Council,http://opendatacommunities.org/id/district-council/south-lakeland,13/03/2016,Business Support Community Services,Housing Services,http://opendatacommunities.org/def/concept/finance/sercop/objective/108,James Andrews Recruitment Solutions,6834852,17/02/2016,55820,768.75,0,Payment for - Housing,261400,HR Temporary & Agency Staff
South Lakeland District Council,http://opendatacommunities.org/id/district-council/south-lakeland,13/03/2016,Environment and Housing,Housing,http://opendatacommunities.org/def/concept/finance/sercop/objective/108,Mitre Housing Association,,10/02/2016,55821,100000,0,Affordable Housing Grant: St Andrews,250000,Housing
South Lakeland District Council,http://opendatacommunities.org/id/district-council/south-lakeland,13/03/2016,Coronation Hall,Cultural Environmental Regulatory & Planning Services,http://opendatacommunities.org/def/concept/finance/sercop/objective/104,Monster Monster,,10/02/2016,55822,1200,0,"Work on Facebook and Twitter for April,",999999,Unclassifiable
South Lakeland District Council,http://opendatacommunities.org/id/district-council/south-lakeland,13/03/2016,Business Support Community Services,Cultural Environmental Regulatory & Planning Services,http://opendatacommunities.org/def/concept/finance/sercop/objective/104,INTELLIGENT DATA SYSTEMS (UK) LTD,5148878,10/02/2016,55824,62.5,0,IDS CHECKS FOR TAXIS DRIVERS,271510,ICT Application Service Provision
South Lakeland District Council,http://opendatacommunities.org/id/district-council/south-lakeland,13/03/2016,Business Support Community Services,Housing Services,http://opendatacommunities.org/def/concept/finance/sercop/objective/108,Landlord,,10/02/2016,55826,500,0,Monthly rent,202000,Financial Services Rents
South Lakeland District Council,http://opendatacommunities.org/id/district-council/south-lakeland,13/03/2016,Business Support Community Services,Housing Services,http://opendatacommunities.org/def/concept/finance/sercop/objective/108,Landlord,,10/02/2016,55827,400,0,Monthly rent,250000,Housing
South Lakeland District Council,http://opendatacommunities.org/id/district-council/south-lakeland,13/03/2016,Business Support Community Services,Housing Services,http://opendatacommunities.org/def/concept/finance/sercop/objective/108,Landlord,,10/02/2016,55828,520,0,Monthly rent,202000,Financial Services Rents
South Lakeland District Council,http://opendatacommunities.org/id/district-council/south-lakeland,13/03/2016,Business Support Community Services,Housing Services,http://opendatacommunities.org/def/concept/finance/sercop/objective/108,Landlord,,10/02/2016,55829,520,0,Monthly rent,202000,Financial Services Rents
South Lakeland District Council,http://opendatacommunities.org/id/district-council/south-lakeland,13/03/2016,Business Support Community Services,Housing Services,http://opendatacommunities.org/def/concept/finance/sercop/objective/108,Landlord,7121028,10/02/2016,55830,400,0,Monthly rent,202000,Financial Services Rents
South Lakeland District Council,http://opendatacommunities.org/id/district-council/south-lakeland,13/03/2016,Business Support Community Services,Housing Services,http://opendatacommunities.org/def/concept/finance/sercop/objective/108,Landlord,,10/02/2016,55831,520,0,Monthly rent,202000,Financial Services Rents
South Lakeland District Council,http://opendatacommunities.org/id/district-council/south-lakeland,13/03/2016,Business Support Community Services,Housing Services,http://opendatacommunities.org/def/concept/finance/sercop/objective/108,Landlord,,10/02/2016,55832,520,0,Monthly rent,202000,Financial Services Rents
South Lakeland District Council,http://opendatacommunities.org/id/district-council/south-lakeland,13/03/2016,Business Support Community Services,Housing Services,http://opendatacommunities.org/def/concept/finance/sercop/objective/108,Landlord,,10/02/2016,55833,600,0,Monthly rent,250000,Housing
South Lakeland District Council,http://opendatacommunities.org/id/district-council/south-lakeland,13/03/2016,Environmental Protection,Cultural Environmental Regulatory & Planning Services,http://opendatacommunities.org/def/concept/finance/sercop/objective/104,CUMBRIA WASTE RECYCLING LTD,3162439,22/02/2016,55834,89.12,0,Cemetery Bin waste collection,182012,Environment Waste Management Recycling
South Lakeland District Council,http://opendatacommunities.org/id/district-council/south-lakeland,13/03/2016,Social Enterprise Admin,Central Services,http://opendatacommunities.org/def/concept/finance/sercop/objective/102,CUMBRIA WASTE RECYCLING LTD,3162439,17/02/2016,55835,31.12,0,Langstone House Wheelie bin collection,182012,Environment Waste Management Recycling
South Lakeland District Council,http://opendatacommunities.org/id/district-council/south-lakeland,13/03/2016,Environmental Protection,Cultural Environmental Regulatory & Planning Services,http://opendatacommunities.org/def/concept/finance/sercop/objective/104,CUMBRIA WASTE RECYCLING LTD,3162439,22/02/2016,55836,48.33,0,Cemetery Bin waste collection,182012,Environment Waste Management Recycling
South Lakeland District Council,http://opendatacommunities.org/id/district-council/south-lakeland,13/03/2016,Environmental Protection,Cultural Environmental Regulatory & Planning Services,http://opendatacommunities.org/def/concept/finance/sercop/objective/104,CUMBRIA WASTE RECYCLING LTD,3162439,22/02/2016,55837,58.81,0,Cemetery Bin waste collection,182012,Environment Waste Management Recycling
South Lakeland District Council,http://opendatacommunities.org/id/district-council/south-lakeland,13/03/2016,Coronation Hall,Cultural Environmental Regulatory & Planning Services,http://opendatacommunities.org/def/concept/finance/sercop/objective/104,CUMBRIA WASTE RECYCLING LTD,3162439,15/02/2016,55838,90.86,0,"Emptying of skips from Coronation Hall,",182012,Environment Waste Management Recycling
South Lakeland District Council,http://opendatacommunities.org/id/district-council/south-lakeland,13/03/2016,Environmental Protection,Cultural Environmental Regulatory & Planning Services,http://opendatacommunities.org/def/concept/finance/sercop/objective/104,CUMBRIA WASTE RECYCLING LTD,3162439,22/02/2016,55839,74.3,0,Cemetery Bin waste collection,182012,Environment Waste Management Recycling
South Lakeland District Council,http://opendatacommunities.org/id/district-council/south-lakeland,13/03/2016,Lake Wardens,Cultural Environmental Regulatory & Planning Services,http://opendatacommunities.org/def/concept/finance/sercop/objective/104,CUMBRIA WASTE RECYCLING LTD,3162439,15/02/2016,55840,126.44,0,Emptying of Refuse Wheelie Bins held at,182012,Environment Waste Management Recycling
South Lakeland District Council,http://opendatacommunities.org/id/district-council/south-lakeland,13/03/2016,Coronation Hall,External Trading Accounts,,CUMBRIA WASTE RECYCLING LTD,3162439,15/02/2016,55841,491.01,0,"Emptying of skips from Market Hall,",182012,Environment Waste Management Recycling
South Lakeland District Council,http://opendatacommunities.org/id/district-council/south-lakeland,13/03/2016,Environmental Protection,Cultural Environmental Regulatory & Planning Services,http://opendatacommunities.org/def/concept/finance/sercop/objective/104,CUMBRIA WASTE RECYCLING LTD,3162439,22/02/2016,55842,79.64,0,Cemetery Bin waste collection,182012,Environment Waste Management Recycling
South Lakeland District Council,http://opendatacommunities.org/id/district-council/south-lakeland,13/03/2016,Social Enterprise Admin,Central Services,http://opendatacommunities.org/def/concept/finance/sercop/objective/102,CUMBRIA WASTE RECYCLING LTD,3162439,17/02/2016,55843,234.78,0,SLH wheelie bin and skip emptying,182012,Environment Waste Management Recycling
South Lakeland District Council,http://opendatacommunities.org/id/district-council/south-lakeland,13/03/2016,Kendal Town Hall,Cultural Environmental Regulatory & Planning Services,http://opendatacommunities.org/def/concept/finance/sercop/objective/104,CUMBRIA WASTE RECYCLING LTD,3162439,24/02/2016,55844,156.75,0,Weekly collection of the bins at Kendal,182012,Environment Waste Management Recycling
South Lakeland District Council,http://opendatacommunities.org/id/district-council/south-lakeland,13/03/2016,Social Enterprise Admin,Central Services,http://opendatacommunities.org/def/concept/finance/sercop/objective/102,CUMBRIA WASTE RECYCLING LTD,3162439,17/02/2016,55845,144.04,0,I wheelie bin  exchange on a monthly,182012,Environment Waste Management Recycling
South Lakeland District Council,http://opendatacommunities.org/id/district-council/south-lakeland,13/03/2016,Environmental Protection,Cultural Environmental Regulatory & Planning Services,http://opendatacommunities.org/def/concept/finance/sercop/objective/104,CUMBRIA WASTE RECYCLING LTD,3162439,22/02/2016,55846,27.32,0,Cemetery Bin waste collection,182012,Environment Waste Management Recycling
South Lakeland District Council,http://opendatacommunities.org/id/district-council/south-lakeland,13/03/2016,Social Enterprise Admin,Highways & Transport Services,http://opendatacommunities.org/def/concept/finance/sercop/objective/107,CUMBRIA WASTE RECYCLING LTD,3162439,17/02/2016,55847,57.22,0,Wheelie bin at Westmorland Multi-Storey,182012,Environment Waste Management Recycling
South Lakeland District Council,http://opendatacommunities.org/id/district-council/south-lakeland,13/03/2016,Environmental Protection,Cultural Environmental Regulatory & Planning Services,http://opendatacommunities.org/def/concept/finance/sercop/objective/104,CUMBRIA WASTE RECYCLING LTD,3162439,22/02/2016,55848,31.12,0,Cemetery Bin waste collection,182012,Environment Waste Management Recycling
South Lakeland District Council,http://opendatacommunities.org/id/district-council/south-lakeland,13/03/2016,Lake Wardens,Cultural Environmental Regulatory & Planning Services,http://opendatacommunities.org/def/concept/finance/sercop/objective/104,CUMBRIA WASTE RECYCLING LTD,3162439,24/02/2016,55849,112.64,0,Emptying of Refuse Wheelie Bins held at,182012,Environment Waste Management Recycling
South Lakeland District Council,http://opendatacommunities.org/id/district-council/south-lakeland,13/03/2016,Development Implementation,Cultural Environmental Regulatory & Planning Services,http://opendatacommunities.org/def/concept/finance/sercop/objective/104,Ulverston BID Company Ltd,9761005,15/02/2016,55851,345,0,Costs Associated for Ulverston BID set,201700,Financial Services Grants
South Lakeland District Council,http://opendatacommunities.org/id/district-council/south-lakeland,13/03/2016,Revenues and Benefits,,,Ulverston BID Company Ltd,9761005,15/02/2016,55852,2389.34,0,Collection figures for January 2016,201700,Financial Services Grants
South Lakeland District Council,http://opendatacommunities.org/id/district-council/south-lakeland,13/03/2016,Lake Wardens,Cultural Environmental Regulatory & Planning Services,http://opendatacommunities.org/def/concept/finance/sercop/objective/104,JETTIES & MOORINGS,,15/02/2016,55853,490,0,Replacing of New Double Block Holiday,291400,Arts & Leisure Services Sport & Fitness
South Lakeland District Council,http://opendatacommunities.org/id/district-council/south-lakeland,13/03/2016,Development Implementation,Central Services,http://opendatacommunities.org/def/concept/finance/sercop/objective/102,NPS NORTH WEST LTD,6614601,15/02/2016,55854,2118.99,0,"Castle Dairy - Further Rescue, Survey &",391110,Construction Buildings Construction
South Lakeland District Council,http://opendatacommunities.org/id/district-council/south-lakeland,13/03/2016,Development Implementation,Central Services,http://opendatacommunities.org/def/concept/finance/sercop/objective/102,Gatenby Sanderson Ltd - Interim Leadersh,,15/02/2016,55855,6144,0,6th Interim Asset Manager,261413,HR- Temporary Staff- Professional
South Lakeland District Council,http://opendatacommunities.org/id/district-council/south-lakeland,13/03/2016,Kendal Town Hall,Central Services,http://opendatacommunities.org/def/concept/finance/sercop/objective/102,HYGIENE CLEANING SUPPLIES LTD,4753934,15/02/2016,55858,112,0,1 x 6 Biowipe plus (red),131011,Cleaning & Janitorial Cleaning Materials
South Lakeland District Council,http://opendatacommunities.org/id/district-council/south-lakeland,13/03/2016,Kendal Town Hall,Cultural Environmental Regulatory & Planning Services,http://opendatacommunities.org/def/concept/finance/sercop/objective/104,HYGIENE CLEANING SUPPLIES LTD,4753934,15/02/2016,55858,125.62,0,1 x 6 Biowipe plus (red),131011,Cleaning & Janitorial Cleaning Materials
South Lakeland District Council,http://opendatacommunities.org/id/district-council/south-lakeland,13/03/2016,Social Enterprise Admin,Highways & Transport Services,http://opendatacommunities.org/def/concept/finance/sercop/objective/107,HYGIENE CLEANING SUPPLIES LTD,4753934,24/02/2016,55859,9.2,0,Bulk pack toilet tissue 2 ply,131011,Cleaning & Janitorial Cleaning Materials
South Lakeland District Council,http://opendatacommunities.org/id/district-council/south-lakeland,13/03/2016,Business Support Community Services,Internal Trading Accounts,,HAKO MACHINES LIMITED,1414225,17/02/2016,55860,60.08,0,Hose,131000,Cleaning & Janitorial Cleaning Materials
South Lakeland District Council,http://opendatacommunities.org/id/district-council/south-lakeland,13/03/2016,Human Resources,Central Services,http://opendatacommunities.org/def/concept/finance/sercop/objective/102,Taylors Solicitors,,22/02/2016,55861,250,0,Settlement Agreement,280000,Legal Services
South Lakeland District Council,http://opendatacommunities.org/id/district-council/south-lakeland,13/03/2016,Human Resources,Central Services,http://opendatacommunities.org/def/concept/finance/sercop/objective/102,Taylors Solicitors,,22/02/2016,55862,250,0,Settlement Agreement,280000,Legal Services
South Lakeland District Council,http://opendatacommunities.org/id/district-council/south-lakeland,13/03/2016,Human Resources,Central Services,http://opendatacommunities.org/def/concept/finance/sercop/objective/102,Taylors Solicitors,,22/02/2016,55863,250,0,Settlement Agreement,280000,Legal Services
South Lakeland District Council,http://opendatacommunities.org/id/district-council/south-lakeland,13/03/2016,Social Enterprise Admin,Cultural Environmental Regulatory & Planning Services,http://opendatacommunities.org/def/concept/finance/sercop/objective/104,CAPITA SYMONDS LTD,3173410,15/02/2016,55864,2551.92,0,ARBORICULTURE SERVICES,390000,Construction
South Lakeland District Council,http://opendatacommunities.org/id/district-council/south-lakeland,13/03/2016,Social Enterprise Admin,Cultural Environmental Regulatory & Planning Services,http://opendatacommunities.org/def/concept/finance/sercop/objective/104,CAPITA SYMONDS LTD,3173410,15/02/2016,55864,1701.28,0,ARBORICULTURE SERVICES,390000,Construction
South Lakeland District Council,http://opendatacommunities.org/id/district-council/south-lakeland,13/03/2016,Financial Services,Central Services,http://opendatacommunities.org/def/concept/finance/sercop/objective/102,Capita Secure Information Solutions Ltd,1593831,22/02/2016,55866,-475,0,Crystal Reports Server Embedded 2013 -,271600,ICT Software Customised & Bespoke
South Lakeland District Council,http://opendatacommunities.org/id/district-council/south-lakeland,13/03/2016,Social Enterprise Admin,Cultural Environmental Regulatory & Planning Services,http://opendatacommunities.org/def/concept/finance/sercop/objective/104,AMENITY TREE CARE LTD,4141279,15/02/2016,55867,635,0,tree work at Lake Road car park,241600,Horticultural Trees & Shrubs
South Lakeland District Council,http://opendatacommunities.org/id/district-council/south-lakeland,13/03/2016,Social Enterprise Admin,Highways & Transport Services,http://opendatacommunities.org/def/concept/finance/sercop/objective/107,Masterstaff Limited,2777593,15/02/2016,55868,455.1,0,Staff for Westmorland SC car park inc,261300,HR Recruitment & Assessment
South Lakeland District Council,http://opendatacommunities.org/id/district-council/south-lakeland,13/03/2016,Social Enterprise Admin,Highways & Transport Services,http://opendatacommunities.org/def/concept/finance/sercop/objective/107,G4S SECURE SOLUTIONS (UK) LTD,1046019,15/02/2016,55869,874.84,0,Patrol Services for South Lakeland House,192213,Facilities Security Manned Guarding
South Lakeland District Council,http://opendatacommunities.org/id/district-council/south-lakeland,13/03/2016,Business Support Community Services,Internal Trading Accounts,,BRIAN ARMISTEAD LTD T/A SINKFALL RECYCLI,4133280,17/02/2016,55871,756.8,0,Green waste tipping - 2015/16,391110,Construction Buildings Construction
South Lakeland District Council,http://opendatacommunities.org/id/district-council/south-lakeland,13/03/2016,ICT Group,Central Services,http://opendatacommunities.org/def/concept/finance/sercop/objective/102,System People Ltd,,15/02/2016,55872,666,0,Agency Contract fees ,271100,ICT Consumables
South Lakeland District Council,http://opendatacommunities.org/id/district-council/south-lakeland,13/03/2016,Human Resources,Non-Service Payments,,COMPUTERSHARE VOUCHER SERVICES LTD,4968447,15/02/2016,55873,1110,0,child care vouchers,202100,Financial Services Subscriptions
South Lakeland District Council,http://opendatacommunities.org/id/district-council/south-lakeland,13/03/2016,Human Resources,Central Services,http://opendatacommunities.org/def/concept/finance/sercop/objective/102,COMPUTERSHARE VOUCHER SERVICES LTD,4968447,15/02/2016,55874,41.63,0,child care vouchers,202100,Financial Services Subscriptions
South Lakeland District Council,http://opendatacommunities.org/id/district-council/south-lakeland,13/03/2016,Human Resources,Non-Service Payments,,BUSY BEES BENEFITS LTD,6758298,15/02/2016,55875,413,0,child care vouchers,202100,Financial Services Subscriptions
South Lakeland District Council,http://opendatacommunities.org/id/district-council/south-lakeland,13/03/2016,Human Resources,Central Services,http://opendatacommunities.org/def/concept/finance/sercop/objective/102,BUSY BEES BENEFITS LTD,6758298,15/02/2016,55876,14.46,0,child care vouchers,202100,Financial Services Subscriptions
South Lakeland District Council,http://opendatacommunities.org/id/district-council/south-lakeland,13/03/2016,Policy & Partnerships,Cultural Environmental Regulatory & Planning Services,http://opendatacommunities.org/def/concept/finance/sercop/objective/104,LAKELAND RADIO LTD,4031744,15/02/2016,55877,250,0,Lakeland Radio advert for White Noise,182015,Environment Waste Mgt Waste Disposal
South Lakeland District Council,http://opendatacommunities.org/id/district-council/south-lakeland,13/03/2016,Coronation Hall,Cultural Environmental Regulatory & Planning Services,http://opendatacommunities.org/def/concept/finance/sercop/objective/104,OCS GROUP LTD T/A CANNON HYGIENE LTD,1298292,15/02/2016,55878,245.82,0,Medical waste and sanitary disposal to,131011,Cleaning & Janitorial Cleaning Materials
South Lakeland District Council,http://opendatacommunities.org/id/district-council/south-lakeland,13/03/2016,Social Enterprise Admin,Culture and Related Serv,http://opendatacommunities.org/def/concept/finance/sercop/objective/104,RS COMPONENTS LTD,1002091,15/02/2016,55879,213.73,0,Plastic floor standing cabinet -,101100,Building Electrical
South Lakeland District Council,http://opendatacommunities.org/id/district-council/south-lakeland,13/03/2016,Revenues and Benefits,Central Services,http://opendatacommunities.org/def/concept/finance/sercop/objective/102,ROYAL MAIL GROUP PLC,,15/02/2016,55880,68.48,0,2015-2016 Postal Charges a/c 0055114000,301200,Mail Services� Postage
South Lakeland District Council,http://opendatacommunities.org/id/district-council/south-lakeland,13/03/2016,Revenues and Benefits,SLDC as Agent,,ROYAL MAIL GROUP PLC,,15/02/2016,55881,1283.23,0,2015-2016 Postal Charges a/c 0198123013,301200,Mail Services� Postage
South Lakeland District Council,http://opendatacommunities.org/id/district-council/south-lakeland,13/03/2016,Lake Wardens,Cultural Environmental Regulatory & Planning Services,http://opendatacommunities.org/def/concept/finance/sercop/objective/104,MARINE WAREHOUSE LIMITED,5152483,24/02/2016,55882,183.27,0,Service of 11 x Staff/Boat PPE,221000,Health & Safety� Products
South Lakeland District Council,http://opendatacommunities.org/id/district-council/south-lakeland,13/03/2016,Coronation Hall,Cultural Environmental Regulatory & Planning Services,http://opendatacommunities.org/def/concept/finance/sercop/objective/104,Ulverston Amateur Operatic Society,,15/02/2016,55883,55,0,Stewards for Friday Night Live on 5,291300,Arts & Leisure Services Performing Arts
South Lakeland District Council,http://opendatacommunities.org/id/district-council/south-lakeland,13/03/2016,ICT Group,Central Services,http://opendatacommunities.org/def/concept/finance/sercop/objective/102,System People Ltd,,15/02/2016,55885,540,0,Agency Contract fees ,271100,ICT Consumables
South Lakeland District Council,http://opendatacommunities.org/id/district-council/south-lakeland,13/03/2016,ICT Group,Central Services,http://opendatacommunities.org/def/concept/finance/sercop/objective/102,System People Ltd,,15/02/2016,55886,621,0,Agency Contract fees ,271100,ICT Consumables
South Lakeland District Council,http://opendatacommunities.org/id/district-council/south-lakeland,13/03/2016,Electoral Services,Central Services,http://opendatacommunities.org/def/concept/finance/sercop/objective/102,SHAW & SONS LTD,176653,15/02/2016,55887,89.7,0,PO Sundries Packs for County By-Election,191600,Facilities Printing
South Lakeland District Council,http://opendatacommunities.org/id/district-council/south-lakeland,13/03/2016,Electoral Services,Central Services,http://opendatacommunities.org/def/concept/finance/sercop/objective/102,SCI PRINT LTD,,15/02/2016,55888,1047.07,0,Coniston Neighbourhood Plan Referendum,191600,Facilities Printing
South Lakeland District Council,http://opendatacommunities.org/id/district-council/south-lakeland,13/03/2016,Electoral Services,Central Services,http://opendatacommunities.org/def/concept/finance/sercop/objective/102,SCI PRINT LTD,,15/02/2016,55889,453.96,0,PV Refresh Printing,191600,Facilities Printing
South Lakeland District Council,http://opendatacommunities.org/id/district-council/south-lakeland,13/03/2016,Electoral Services,Central Services,http://opendatacommunities.org/def/concept/finance/sercop/objective/102,SCI PRINT LTD,,15/02/2016,55889,787.02,0,PV Refresh Printing,191600,Facilities Printing
South Lakeland District Council,http://opendatacommunities.org/id/district-council/south-lakeland,13/03/2016,Social Enterprise Admin,External Trading Accounts,,APEX RADIO SYSTEMS LTD,2485670,15/02/2016,55892,68,0,Annual base station and licence fee for,913000,Technical Support Equipment
South Lakeland District Council,http://opendatacommunities.org/id/district-council/south-lakeland,13/03/2016,Financial Services,Central Services,http://opendatacommunities.org/def/concept/finance/sercop/objective/102,CIPP,4227998,15/02/2016,55893,100,0,NPC 1 exam resit TH 24/03/16,261500,HR Training & Conferences
South Lakeland District Council,http://opendatacommunities.org/id/district-council/south-lakeland,13/03/2016,Business Support Community Services,Housing Services,http://opendatacommunities.org/def/concept/finance/sercop/objective/108,STONECROSS MANOR HOTEL,,15/02/2016,55900,533.33,0,Accommodation ,261500,HR Training & Conferences
South Lakeland District Council,http://opendatacommunities.org/id/district-council/south-lakeland,13/03/2016,Environment and Housing,Housing,http://opendatacommunities.org/def/concept/finance/sercop/objective/108,Skelwith & Langdale Community Land Trust,,29/02/2016,55901,22726,0,Affordable Housing 2nd Grant Payment for,201710,Financial Services-Grants-Charitable
South Lakeland District Council,http://opendatacommunities.org/id/district-council/south-lakeland,13/03/2016,Environment and Housing,Housing,http://opendatacommunities.org/def/concept/finance/sercop/objective/108,Skelwith & Langdale Community Land Trust,,29/02/2016,55901,17274,0,Affordable Housing 2nd Grant Payment for,201710,Financial Services-Grants-Charitable
South Lakeland District Council,http://opendatacommunities.org/id/district-council/south-lakeland,13/03/2016,Business Support Community Services,Internal Trading Accounts,,Romaquip Ltd,,22/02/2016,55902,114.64,0,Keys,381000,Vehicle Mgt Commercial
South Lakeland District Council,http://opendatacommunities.org/id/district-council/south-lakeland,13/03/2016,Business Support Community Services,Internal Trading Accounts,,H WICKS (LINDAL) LTD,754590,22/02/2016,55903,1954.72,0,"Gate fees, handling & baling of",182012,Environment Waste Management Recycling
South Lakeland District Council,http://opendatacommunities.org/id/district-council/south-lakeland,13/03/2016,Business Support Community Services,Internal Trading Accounts,,TEAL PATENTS LTD,3212208,22/02/2016,55904,233.1,0,Wash,111100,Catering Equipment & Utensils
South Lakeland District Council,http://opendatacommunities.org/id/district-council/south-lakeland,13/03/2016,Policy & Partnerships,Cultural Environmental Regulatory & Planning Services,http://opendatacommunities.org/def/concept/finance/sercop/objective/104,Lunesdale Hall,,22/02/2016,55905,16,0,LAP booking,192110,Facilities Room Hire
South Lakeland District Council,http://opendatacommunities.org/id/district-council/south-lakeland,13/03/2016,Customer Services,Central Services,http://opendatacommunities.org/def/concept/finance/sercop/objective/102,SHRED-IT,4047194,17/02/2016,55906,261.33,0,Removal of confidential waste,279999,ICT Not Elsewhere Classified
South Lakeland District Council,http://opendatacommunities.org/id/district-council/south-lakeland,13/03/2016,ICT Group,Central Services,http://opendatacommunities.org/def/concept/finance/sercop/objective/102,Insight Direct (Uk) Ltd,2579852,15/02/2016,55907,69.1,0,Belkin video cable HDMI / DVI - 1.8 m,271200,ICT Hardware
South Lakeland District Council,http://opendatacommunities.org/id/district-council/south-lakeland,13/03/2016,Business Support Community Services,Transport Planning Policy,http://opendatacommunities.org/def/concept/finance/sercop/objective/107,ARCO LIMITED,133804,17/02/2016,55908,12.86,0,PPE 2015/16,141100,Clothing Protective
South Lakeland District Council,http://opendatacommunities.org/id/district-council/south-lakeland,13/03/2016,ICT Group,Central Services,http://opendatacommunities.org/def/concept/finance/sercop/objective/102,SWITCHSHOP LTD,3771032,15/02/2016,55909,11886.51,0,HP 5130-48G-PoE+-4SFP+ EI Switch,270000,Information Communications Technology
South Lakeland District Council,http://opendatacommunities.org/id/district-council/south-lakeland,13/03/2016,Financial Services,Central Services,http://opendatacommunities.org/def/concept/finance/sercop/objective/102,CIPP,4227998,15/02/2016,55910,2592,0,15/06/16 Study day cert 2 D,261500,HR Training & Conferences
South Lakeland District Council,http://opendatacommunities.org/id/district-council/south-lakeland,13/03/2016,Financial Services,Central Services,http://opendatacommunities.org/def/concept/finance/sercop/objective/102,CIPFA,2376684,15/02/2016,55913,270,0,5 x attendance at CIPFA year end,202100,Financial Services Subscriptions
South Lakeland District Council,http://opendatacommunities.org/id/district-council/south-lakeland,13/03/2016,Social Enterprise Admin,Cultural Environmental Regulatory & Planning Services,http://opendatacommunities.org/def/concept/finance/sercop/objective/104,ALLSTAR BUSINESS SOLUTIONS LTD (NCR),2631112,29/02/2016,55914,70.57,0,Parks fuel  Jan 2016 - March 2016,381600,Vehicle Mgt Leasing
South Lakeland District Council,http://opendatacommunities.org/id/district-council/south-lakeland,13/03/2016,Social Enterprise Admin,Central Services,http://opendatacommunities.org/def/concept/finance/sercop/objective/102,CONTINENTAL LANDSCAPES LTD,2108452,15/02/2016,55915,1008,0,Borrans Park Flood clean up work - 2.5,391310,Construction Open Spaces Construction
South Lakeland District Council,http://opendatacommunities.org/id/district-council/south-lakeland,13/03/2016,Social Enterprise Admin,Central Services,http://opendatacommunities.org/def/concept/finance/sercop/objective/102,CONTINENTAL LANDSCAPES LTD,2108452,15/02/2016,55916,996,0,Rothay park flood clean up work - 1,391310,Construction Open Spaces Construction
South Lakeland District Council,http://opendatacommunities.org/id/district-council/south-lakeland,13/03/2016,Business Support Community Services,Internal Trading Accounts,,RIBBLESDALE AUTO ELECTRICS 1992 LTD,2732686,17/02/2016,55918,43,0,LEDs,381500,Vehicle Mgt Parts
South Lakeland District Council,http://opendatacommunities.org/id/district-council/south-lakeland,13/03/2016,Business Support Community Services,Internal Trading Accounts,,Harry Park Tyres Ltd,8131208,17/02/2016,55919,110,0,Puncture,381500,Vehicle Mgt Parts
South Lakeland District Council,http://opendatacommunities.org/id/district-council/south-lakeland,13/03/2016,Business Support Community Services,Internal Trading Accounts,,Preston Trade Parts Specialists,,17/02/2016,55920,31.36,0,Lamp,381400,Vehicle Mgt Maintenance
South Lakeland District Council,http://opendatacommunities.org/id/district-council/south-lakeland,13/03/2016,Business Support Community Services,Internal Trading Accounts,,Driver Hire Lancaster,7762440,17/02/2016,55921,570,0,Agency driver - October 2015,380000,Vehicle Management
South Lakeland District Council,http://opendatacommunities.org/id/district-council/south-lakeland,13/03/2016,Business Support Community Services,Internal Trading Accounts,,TECHNIJET LTD,2776601,17/02/2016,55922,137.17,0,Service & repair pressure washers,139999,Cleaning & Janitorial Not Elsewhere Clas
South Lakeland District Council,http://opendatacommunities.org/id/district-council/south-lakeland,13/03/2016,Business Support Community Services,Internal Trading Accounts,,K S INTERNATIONAL LTD,2703321,17/02/2016,55923,56,0,Bushes,381500,Vehicle Mgt Parts
South Lakeland District Council,http://opendatacommunities.org/id/district-council/south-lakeland,13/03/2016,Business Support Community Services,Internal Trading Accounts,,EK MOTOR FACTORS LTD,838524,17/02/2016,55924,5.95,0,Exhaust,381400,Vehicle Mgt Maintenance
South Lakeland District Council,http://opendatacommunities.org/id/district-council/south-lakeland,13/03/2016,Business Support Community Services,Internal Trading Accounts,,EK MOTOR FACTORS LTD,838524,17/02/2016,55925,169,0,Exhaust,381400,Vehicle Mgt Maintenance
South Lakeland District Council,http://opendatacommunities.org/id/district-council/south-lakeland,13/03/2016,Business Support Community Services,Internal Trading Accounts,,EK MOTOR FACTORS LTD,838524,17/02/2016,55926,527.7,0,Fuel filter,381400,Vehicle Mgt Maintenance
South Lakeland District Council,http://opendatacommunities.org/id/district-council/south-lakeland,13/03/2016,Business Support Community Services,Internal Trading Accounts,,K S INTERNATIONAL LTD,2703321,17/02/2016,55927,240,0,Bushes,381500,Vehicle Mgt Parts
South Lakeland District Council,http://opendatacommunities.org/id/district-council/south-lakeland,13/03/2016,Business Support Community Services,Internal Trading Accounts,,RIBBLESDALE AUTO ELECTRICS 1992 LTD,2732686,17/02/2016,55928,64.98,0,LEDs,381500,Vehicle Mgt Parts
South Lakeland District Council,http://opendatacommunities.org/id/district-council/south-lakeland,13/03/2016,Business Support Community Services,Internal Trading Accounts,,Harry Park Tyres Ltd,8131208,17/02/2016,55929,194.5,0,Puncture,381500,Vehicle Mgt Parts
South Lakeland District Council,http://opendatacommunities.org/id/district-council/south-lakeland,13/03/2016,Business Support Community Services,Internal Trading Accounts,,EK MOTOR FACTORS LTD,838524,17/02/2016,55930,5.25,0,Exhaust,381400,Vehicle Mgt Maintenance
South Lakeland District Council,http://opendatacommunities.org/id/district-council/south-lakeland,13/03/2016,Business Support Community Services,Internal Trading Accounts,,EK MOTOR FACTORS LTD,838524,17/02/2016,55931,62.07,0,Brake pads,381400,Vehicle Mgt Maintenance
South Lakeland District Council,http://opendatacommunities.org/id/district-council/south-lakeland,13/03/2016,Business Support Community Services,Internal Trading Accounts,,EK MOTOR FACTORS LTD,838524,17/02/2016,55932,17.81,0,Oil filter,381400,Vehicle Mgt Maintenance
South Lakeland District Council,http://opendatacommunities.org/id/district-council/south-lakeland,13/03/2016,Business Support Community Services,Internal Trading Accounts,,EK MOTOR FACTORS LTD,838524,17/02/2016,55933,5.95,0,Oil filter,381400,Vehicle Mgt Maintenance
South Lakeland District Council,http://opendatacommunities.org/id/district-council/south-lakeland,13/03/2016,Business Support Community Services,Internal Trading Accounts,,EK MOTOR FACTORS LTD,838524,17/02/2016,55934,9.51,0,Oil filter,381400,Vehicle Mgt Maintenance
South Lakeland District Council,http://opendatacommunities.org/id/district-council/south-lakeland,13/03/2016,Business Support Community Services,Internal Trading Accounts,,EK MOTOR FACTORS LTD,838524,17/02/2016,55935,88.11,0,Oil filter,381400,Vehicle Mgt Maintenance
South Lakeland District Council,http://opendatacommunities.org/id/district-council/south-lakeland,13/03/2016,Business Support Community Services,Internal Trading Accounts,,EK MOTOR FACTORS LTD,838524,17/02/2016,55936,-20.11,0,Oil filter,381400,Vehicle Mgt Maintenance
South Lakeland District Council,http://opendatacommunities.org/id/district-council/south-lakeland,13/03/2016,Business Support Community Services,Internal Trading Accounts,,EK MOTOR FACTORS LTD,838524,17/02/2016,55937,103.52,0,Oil filter,381400,Vehicle Mgt Maintenance
South Lakeland District Council,http://opendatacommunities.org/id/district-council/south-lakeland,13/03/2016,Business Support Community Services,Internal Trading Accounts,,EK MOTOR FACTORS LTD,838524,17/02/2016,55938,-60,0,Oil filter,381400,Vehicle Mgt Maintenance
South Lakeland District Council,http://opendatacommunities.org/id/district-council/south-lakeland,13/03/2016,Business Support Community Services,Internal Trading Accounts,,EK MOTOR FACTORS LTD,838524,17/02/2016,55939,28.81,0,Oil filter,381400,Vehicle Mgt Maintenance
South Lakeland District Council,http://opendatacommunities.org/id/district-council/south-lakeland,13/03/2016,Business Support Community Services,Internal Trading Accounts,,TAYLOR ENGINEERING & FABRICATIONS LTD,4989359,17/02/2016,55940,35.35,0,Valves,391200,Construction Engineering
South Lakeland District Council,http://opendatacommunities.org/id/district-council/south-lakeland,13/03/2016,Business Support Community Services,Internal Trading Accounts,,EK MOTOR FACTORS LTD,838524,17/02/2016,55941,22.91,0,Oil filter,381400,Vehicle Mgt Maintenance
South Lakeland District Council,http://opendatacommunities.org/id/district-council/south-lakeland,13/03/2016,Business Support Community Services,Internal Trading Accounts,,EK MOTOR FACTORS LTD,838524,17/02/2016,55942,-6.33,0,Oil filter,381400,Vehicle Mgt Maintenance
South Lakeland District Council,http://opendatacommunities.org/id/district-council/south-lakeland,13/03/2016,Business Support Community Services,Internal Trading Accounts,,DENNIS EAGLE LTD,3794455,17/02/2016,55943,140.63,0,Isolator,381300,Vehicle Mgt Industrial
South Lakeland District Council,http://opendatacommunities.org/id/district-council/south-lakeland,13/03/2016,Business Support Community Services,Internal Trading Accounts,,DENNIS EAGLE LTD,3794455,17/02/2016,55944,91.41,0,Isolator,381300,Vehicle Mgt Industrial
South Lakeland District Council,http://opendatacommunities.org/id/district-council/south-lakeland,13/03/2016,Business Support Community Services,Internal Trading Accounts,,DENNIS EAGLE LTD,3794455,17/02/2016,55945,11.12,0,Isolator,381300,Vehicle Mgt Industrial
South Lakeland District Council,http://opendatacommunities.org/id/district-council/south-lakeland,13/03/2016,Business Support Community Services,Internal Trading Accounts,,DENNIS EAGLE LTD,3794455,17/02/2016,55946,66.08,0,Isolator,381300,Vehicle Mgt Industrial
South Lakeland District Council,http://opendatacommunities.org/id/district-council/south-lakeland,13/03/2016,Business Support Community Services,Internal Trading Accounts,,VOLVO GROUP UK LTD,2190944,17/02/2016,55947,75,0,Pump,381000,Vehicle Mgt Commercial
South Lakeland District Council,http://opendatacommunities.org/id/district-council/south-lakeland,13/03/2016,Business Support Community Services,Internal Trading Accounts,,DENNIS EAGLE LTD,3794455,17/02/2016,55948,56.34,0,Isolator,381300,Vehicle Mgt Industrial
South Lakeland District Council,http://opendatacommunities.org/id/district-council/south-lakeland,13/03/2016,Business Support Community Services,Internal Trading Accounts,,FAUN ZOELLER (UK) LTD,751804,17/02/2016,55949,74.98,0,Coil,381400,Vehicle Mgt Maintenance
South Lakeland District Council,http://opendatacommunities.org/id/district-council/south-lakeland,13/03/2016,Business Support Community Services,Internal Trading Accounts,,DENNIS EAGLE LTD,3794455,17/02/2016,55950,78.18,0,Isolator,381300,Vehicle Mgt Industrial
South Lakeland District Council,http://opendatacommunities.org/id/district-council/south-lakeland,13/03/2016,Business Support Community Services,Internal Trading Accounts,,DENNIS EAGLE LTD,3794455,17/02/2016,55951,56.32,0,Isolator,381300,Vehicle Mgt Industrial
South Lakeland District Council,http://opendatacommunities.org/id/district-council/south-lakeland,13/03/2016,Business Support Community Services,Internal Trading Accounts,,Driver Hire Lancaster,7762440,17/02/2016,55952,456,0,Agency driver - October 2015,380000,Vehicle Management
South Lakeland District Council,http://opendatacommunities.org/id/district-council/south-lakeland,13/03/2016,Business Support Community Services,Internal Trading Accounts,,M G D LTD,,17/02/2016,55953,35,0,MOTs 01/04/15 - 31/03/16,381400,Vehicle Mgt Maintenance
South Lakeland District Council,http://opendatacommunities.org/id/district-council/south-lakeland,13/03/2016,Business Support Community Services,Internal Trading Accounts,,DENNIS EAGLE LTD,3794455,17/02/2016,55954,264.24,0,Bushes,381300,Vehicle Mgt Industrial
South Lakeland District Council,http://opendatacommunities.org/id/district-council/south-lakeland,13/03/2016,Business Support Community Services,Internal Trading Accounts,,E & D E TOWERS,,17/02/2016,55955,323,0,Repair SL161,381400,Vehicle Mgt Maintenance
South Lakeland District Council,http://opendatacommunities.org/id/district-council/south-lakeland,13/03/2016,Business Support Community Services,Internal Trading Accounts,,SOLWAY DAF,1393710,17/02/2016,55956,52.19,0,Taper,381000,Vehicle Mgt Commercial
South Lakeland District Council,http://opendatacommunities.org/id/district-council/south-lakeland,13/03/2016,Business Support Community Services,Central Services,http://opendatacommunities.org/def/concept/finance/sercop/objective/102,Masterstaff Limited,2777593,22/02/2016,55958,985.29,0,W/E 12/12,261300,HR Recruitment & Assessment
South Lakeland District Council,http://opendatacommunities.org/id/district-council/south-lakeland,13/03/2016,Business Support Community Services,Internal Trading Accounts,,Masterstaff Limited,2777593,22/02/2016,55958,4736.68,0,W/E 12/12,261300,HR Recruitment & Assessment
South Lakeland District Council,http://opendatacommunities.org/id/district-council/south-lakeland,13/03/2016,ICT Group,Central Services,http://opendatacommunities.org/def/concept/finance/sercop/objective/102,BRITISH TELECOMMUNICATIONS PLC (DD),,29/02/2016,55959,58.13,0,Town View Fields Broadband,279999,ICT Not Elsewhere Classified
South Lakeland District Council,http://opendatacommunities.org/id/district-council/south-lakeland,13/03/2016,ICT Group,Central Services,http://opendatacommunities.org/def/concept/finance/sercop/objective/102,VODAFONE LIMITED,1471587,17/02/2016,55960,72,0,2015/16 - Mobile phone costs including,271800,ICT Telecommunications Mobile
South Lakeland District Council,http://opendatacommunities.org/id/district-council/south-lakeland,13/03/2016,ICT Group,Central Services,http://opendatacommunities.org/def/concept/finance/sercop/objective/102,BRITISH TELECOMMUNICATIONS PLC,1800000,17/02/2016,55961,181.75,0,Line Rental for Mintworks,279999,ICT Not Elsewhere Classified
South Lakeland District Council,http://opendatacommunities.org/id/district-council/south-lakeland,13/03/2016,Business Support Community Services,Internal Trading Accounts,,CUMBRIA WASTE RECYCLING LTD,3162439,17/02/2016,55962,1316.34,0,Skip emptying at Ecclerigg & Ulverston,182012,Environment Waste Management Recycling
South Lakeland District Council,http://opendatacommunities.org/id/district-council/south-lakeland,13/03/2016,Business Support Community Services,Internal Trading Accounts,,CUMBRIA WASTE RECYCLING LTD,3162439,17/02/2016,55963,216,0,Skip emptying at Ecclerigg & Ulverston,182012,Environment Waste Management Recycling
South Lakeland District Council,http://opendatacommunities.org/id/district-council/south-lakeland,13/03/2016,Business Support Community Services,Cultural Environmental Regulatory & Planning Services,http://opendatacommunities.org/def/concept/finance/sercop/objective/104,OCS GROUP LTD T/A CANNON HYGIENE LTD,1298292,17/02/2016,55964,12.5,0,Clinical waste collections - December,131011,Cleaning & Janitorial Cleaning Materials
South Lakeland District Council,http://opendatacommunities.org/id/district-council/south-lakeland,13/03/2016,Business Support Community Services,Central Services,http://opendatacommunities.org/def/concept/finance/sercop/objective/102,Masterstaff Limited,2777593,17/02/2016,55965,324.62,0,Agency staff - January 2016,261300,HR Recruitment & Assessment
South Lakeland District Council,http://opendatacommunities.org/id/district-council/south-lakeland,13/03/2016,Business Support Community Services,Internal Trading Accounts,,Masterstaff Limited,2777593,17/02/2016,55965,4132.38,0,Agency staff - January 2016,261300,HR Recruitment & Assessment
South Lakeland District Council,http://opendatacommunities.org/id/district-council/south-lakeland,13/03/2016,Business Support Community Services,Internal Trading Accounts,,TECHNIJET LTD,2776601,17/02/2016,55966,78.02,0,Service & repair pressure washers,139999,Cleaning & Janitorial Not Elsewhere Clas
South Lakeland District Council,http://opendatacommunities.org/id/district-council/south-lakeland,13/03/2016,Business Support Community Services,Internal Trading Accounts,,ARCO LIMITED,133804,24/02/2016,55967,37.6,0,PPE 2015/16,141100,Clothing Protective
South Lakeland District Council,http://opendatacommunities.org/id/district-council/south-lakeland,13/03/2016,Business Support Community Services,Internal Trading Accounts,,Licence Bureau Ltd,4819897,17/02/2016,55968,604.7,0,Licence checks,380000,Vehicle Management
South Lakeland District Council,http://opendatacommunities.org/id/district-council/south-lakeland,13/03/2016,Business Support Community Services,Central Services,http://opendatacommunities.org/def/concept/finance/sercop/objective/102,IAN F NICHOLSON LTD,6768166,17/02/2016,55969,1050,0,30/12 flood waste collections,391110,Construction Buildings Construction
South Lakeland District Council,http://opendatacommunities.org/id/district-council/south-lakeland,13/03/2016,Business Support Community Services,Internal Trading Accounts,,FST CONSUMABLES LTD,1342012,17/02/2016,55970,169.7,0,Consumables 01/04/15 - 31/03/16,101600,Building Hand Tools
South Lakeland District Council,http://opendatacommunities.org/id/district-council/south-lakeland,13/03/2016,Business Support Community Services,Internal Trading Accounts,,CUMBRIA WASTE MANAGEMENT LIMITED,2665973,22/02/2016,55971,64.84,0,COTC cover at Ulverston & Ecclerigg,182015,Environment Waste Mgt Waste Disposal
South Lakeland District Council,http://opendatacommunities.org/id/district-council/south-lakeland,13/03/2016,Business Support Community Services,Internal Trading Accounts,,CUMBRIA WASTE MANAGEMENT LIMITED,2665973,22/02/2016,55971,32.66,0,COTC cover at Ulverston & Ecclerigg,182015,Environment Waste Mgt Waste Disposal
South Lakeland District Council,http://opendatacommunities.org/id/district-council/south-lakeland,13/03/2016,Business Support Community Services,Internal Trading Accounts,,CUMBRIA WASTE MANAGEMENT LIMITED,2665973,22/02/2016,55972,195,0,COTC cover at Ulverston & Ecclerigg,182015,Environment Waste Mgt Waste Disposal
South Lakeland District Council,http://opendatacommunities.org/id/district-council/south-lakeland,13/03/2016,Business Support Community Services,Internal Trading Accounts,,EK MOTOR FACTORS LTD,838524,17/02/2016,55973,3.3,0,Oil filter,381400,Vehicle Mgt Maintenance
South Lakeland District Council,http://opendatacommunities.org/id/district-council/south-lakeland,13/03/2016,Business Support Community Services,Internal Trading Accounts,,EK MOTOR FACTORS LTD,838524,17/02/2016,55974,80,0,Oil filter,381400,Vehicle Mgt Maintenance
South Lakeland District Council,http://opendatacommunities.org/id/district-council/south-lakeland,13/03/2016,Business Support Community Services,Internal Trading Accounts,,EK MOTOR FACTORS LTD,838524,17/02/2016,55975,11.49,0,Pads,381400,Vehicle Mgt Maintenance
South Lakeland District Council,http://opendatacommunities.org/id/district-council/south-lakeland,13/03/2016,Business Support Community Services,Internal Trading Accounts,,EK MOTOR FACTORS LTD,838524,17/02/2016,55976,47.78,0,Oil filter,381400,Vehicle Mgt Maintenance
South Lakeland District Council,http://opendatacommunities.org/id/district-council/south-lakeland,13/03/2016,Business Support Community Services,Internal Trading Accounts,,DENNIS EAGLE LTD,3794455,17/02/2016,55977,7.53,0,Isolator,381300,Vehicle Mgt Industrial
South Lakeland District Council,http://opendatacommunities.org/id/district-council/south-lakeland,13/03/2016,Business Support Community Services,Internal Trading Accounts,,DENNIS EAGLE LTD,3794455,17/02/2016,55978,96.18,0,Isolator,381300,Vehicle Mgt Industrial
South Lakeland District Council,http://opendatacommunities.org/id/district-council/south-lakeland,13/03/2016,Business Support Community Services,Internal Trading Accounts,,LAKELAND TRUCKS LTD,2464423,17/02/2016,55979,179.44,0,Rrpair SL218,381400,Vehicle Mgt Maintenance
South Lakeland District Council,http://opendatacommunities.org/id/district-council/south-lakeland,13/03/2016,Business Support Community Services,Internal Trading Accounts,,HAKO MACHINES LIMITED,1414225,17/02/2016,55980,100.46,0,Mirror,131000,Cleaning & Janitorial Cleaning Materials
South Lakeland District Council,http://opendatacommunities.org/id/district-council/south-lakeland,13/03/2016,Business Support Community Services,Internal Trading Accounts,,TAYLOR ENGINEERING & FABRICATIONS LTD,4989359,17/02/2016,55981,234.81,0,Valves,391200,Construction Engineering
South Lakeland District Council,http://opendatacommunities.org/id/district-council/south-lakeland,13/03/2016,Business Support Community Services,Internal Trading Accounts,,SOLWAY DAF,1393710,17/02/2016,55982,286.9,0,Taper,381000,Vehicle Mgt Commercial
South Lakeland District Council,http://opendatacommunities.org/id/district-council/south-lakeland,13/03/2016,Business Support Community Services,Internal Trading Accounts,,SOLWAY DAF,1393710,17/02/2016,55983,165.63,0,Taper,381000,Vehicle Mgt Commercial
South Lakeland District Council,http://opendatacommunities.org/id/district-council/south-lakeland,13/03/2016,Business Support Community Services,Internal Trading Accounts,,M G D LTD,,17/02/2016,55984,35,0,MOTs 01/04/15 - 31/03/16,381400,Vehicle Mgt Maintenance
South Lakeland District Council,http://opendatacommunities.org/id/district-council/south-lakeland,13/03/2016,Business Support Community Services,Internal Trading Accounts,,NORTHGATE VEHICLE HIRE LTD,1434157,17/02/2016,55985,66.6,0,Mercedes sprinter,381600,Vehicle Mgt Leasing
South Lakeland District Council,http://opendatacommunities.org/id/district-council/south-lakeland,13/03/2016,Business Support Community Services,Internal Trading Accounts,,EK MOTOR FACTORS LTD,838524,17/02/2016,55986,506.64,0,Oil filter,381400,Vehicle Mgt Maintenance
South Lakeland District Council,http://opendatacommunities.org/id/district-council/south-lakeland,13/03/2016,Business Support Community Services,Internal Trading Accounts,,M G D LTD,,17/02/2016,55987,35,0,MOTs 01/04/15 - 31/03/16,381400,Vehicle Mgt Maintenance
South Lakeland District Council,http://opendatacommunities.org/id/district-council/south-lakeland,13/03/2016,Business Support Community Services,Internal Trading Accounts,,CUMBRIA TRUCK CENTRE LTD,4298488,17/02/2016,55988,20.14,0,Parts,381300,Vehicle Mgt Industrial
South Lakeland District Council,http://opendatacommunities.org/id/district-council/south-lakeland,13/03/2016,Social Enterprise Admin,Highways & Transport Services,http://opendatacommunities.org/def/concept/finance/sercop/objective/107,Masterstaff Limited,2777593,17/02/2016,55989,488.4,0,Staff for Westmorland SC car park inc,261300,HR Recruitment & Assessment
South Lakeland District Council,http://opendatacommunities.org/id/district-council/south-lakeland,13/03/2016,Customer Services,Cultural Environmental Regulatory & Planning Services,http://opendatacommunities.org/def/concept/finance/sercop/objective/104,RIGHT 2 WORK,,24/02/2016,55990,3292,0,bulky waste payments,321010,Social Care Adult Advice & Counselling
South Lakeland District Council,http://opendatacommunities.org/id/district-council/south-lakeland,13/03/2016,Social Enterprise Admin,Cultural Environmental Regulatory & Planning Services,http://opendatacommunities.org/def/concept/finance/sercop/objective/104,NEWSQUEST MEDIA GROUP LTD,3102566,22/02/2016,55991,95,0,PUBLIC NOTICES FOR PLANNING 1 APRIL - 31,191000,Facilities Advertising
South Lakeland District Council,http://opendatacommunities.org/id/district-council/south-lakeland,13/03/2016,Development Implementation,Culture and Related Serv,http://opendatacommunities.org/def/concept/finance/sercop/objective/104,CUMBRIA COUNTY COUNCIL,,22/02/2016,55992,91088.5,0,Grant contribution for year 1 for Glebe,908000,Public Bodies Council support services
South Lakeland District Council,http://opendatacommunities.org/id/district-council/south-lakeland,13/03/2016,Development Strategy,Central Services,http://opendatacommunities.org/def/concept/finance/sercop/objective/102,HAYMARKET MEDIA GROUP LTD,267189,24/02/2016,55993,224.25,0,to attend Planning for,171114,Education Literature
South Lakeland District Council,http://opendatacommunities.org/id/district-council/south-lakeland,13/03/2016,Development Strategy,Cultural Environmental Regulatory & Planning Services,http://opendatacommunities.org/def/concept/finance/sercop/objective/104,HAYMARKET MEDIA GROUP LTD,267189,24/02/2016,55993,224.25,0,to attend Planning for,171114,Education Literature
South Lakeland District Council,http://opendatacommunities.org/id/district-council/south-lakeland,13/03/2016,Kendal Town Hall,Highways & Transport Services,http://opendatacommunities.org/def/concept/finance/sercop/objective/107,ARCO LIMITED,133804,17/02/2016,55994,292,0,2 x Arco GORE-TEX Hi-Vis Coat Yellow,141100,Clothing Protective
South Lakeland District Council,http://opendatacommunities.org/id/district-council/south-lakeland,13/03/2016,Social Enterprise Admin,Central Services,http://opendatacommunities.org/def/concept/finance/sercop/objective/102,FLORENCE MADDEN,,17/02/2016,55996,675,0,NLP Business Practitioner course,261500,HR Training & Conferences
South Lakeland District Council,http://opendatacommunities.org/id/district-council/south-lakeland,13/03/2016,Human Resources,Central Services,http://opendatacommunities.org/def/concept/finance/sercop/objective/102,FLORENCE MADDEN,,17/02/2016,55997,2516.1,0,8 days group 2 Effective Leadership,261500,HR Training & Conferences
South Lakeland District Council,http://opendatacommunities.org/id/district-council/south-lakeland,13/03/2016,Business Support Community Services,Internal Trading Accounts,,AINSWORTH'S GARAGE,,22/02/2016,55998,25,0,Tighten wheels,381400,Vehicle Mgt Maintenance
South Lakeland District Council,http://opendatacommunities.org/id/district-council/south-lakeland,13/03/2016,Development Implementation,Cultural Environmental Regulatory & Planning Services,http://opendatacommunities.org/def/concept/finance/sercop/objective/104,ADECCO UK LIMITED,593232,17/02/2016,55999,56.6,0,VW - Shop Counts (14hours @,261400,HR Temporary & Agency Staff
South Lakeland District Council,http://opendatacommunities.org/id/district-council/south-lakeland,13/03/2016,Development Implementation,Cultural Environmental Regulatory & Planning Services,http://opendatacommunities.org/def/concept/finance/sercop/objective/104,ADECCO UK LIMITED,593232,17/02/2016,56000,502.98,0,Economic Development Project Officer -,261400,HR Temporary & Agency Staff
South Lakeland District Council,http://opendatacommunities.org/id/district-council/south-lakeland,13/03/2016,Social Enterprise Admin,Cultural Environmental Regulatory & Planning Services,http://opendatacommunities.org/def/concept/finance/sercop/objective/104,RIVERBANK HOSPITALITY CATERING,,22/02/2016,56006,90,0,CATERING FOR MEETING 3/2/2016,111000,Catering Banquet & Catering
South Lakeland District Council,http://opendatacommunities.org/id/district-council/south-lakeland,13/03/2016,Social Enterprise Admin,Highways & Transport Services,http://opendatacommunities.org/def/concept/finance/sercop/objective/107,NORTHGATE VEHICLE HIRE LTD,1434157,24/02/2016,56008,99.2,0,Continuation of van  hire till 9/2/16,381600,Vehicle Mgt Leasing
South Lakeland District Council,http://opendatacommunities.org/id/district-council/south-lakeland,13/03/2016,Social Enterprise Admin,Highways & Transport Services,http://opendatacommunities.org/def/concept/finance/sercop/objective/107,NORTHGATE VEHICLE HIRE LTD,1434157,24/02/2016,56009,99.2,0,Continuation of van  hire till 9/2/16,381600,Vehicle Mgt Leasing
South Lakeland District Council,http://opendatacommunities.org/id/district-council/south-lakeland,13/03/2016,Business Support Community Services,Internal Trading Accounts,,NORTHGATE VEHICLE HIRE LTD,1434157,17/02/2016,56010,44.4,0,Mercedes sprinter,381600,Vehicle Mgt Leasing
South Lakeland District Council,http://opendatacommunities.org/id/district-council/south-lakeland,13/03/2016,Social Enterprise Admin,Highways & Transport Services,http://opendatacommunities.org/def/concept/finance/sercop/objective/107,MOUCHEL LTD,1686040,17/02/2016,56011,10000,0,ICPS Licence and Support 1 April to 31,351400,Street & Traffic Traffic Control
South Lakeland District Council,http://opendatacommunities.org/id/district-council/south-lakeland,13/03/2016,Social Enterprise Admin,Culture and Related Serv,http://opendatacommunities.org/def/concept/finance/sercop/objective/104,KELTIC,8658742,22/02/2016,56013,36.8,0,Mens cap cover - colour black.,141000,Clothing Childrens & Adults
South Lakeland District Council,http://opendatacommunities.org/id/district-council/south-lakeland,13/03/2016,Financial Services,Central Services,http://opendatacommunities.org/def/concept/finance/sercop/objective/102,MEANTIME INFORMATION TECHNOLOGIES LTD,2589414,17/02/2016,56014,499,0,Annual Licance fee for the Procurement,271515,ICT Website Development
South Lakeland District Council,http://opendatacommunities.org/id/district-council/south-lakeland,13/03/2016,Technical Team,Cultural Environmental Regulatory & Planning Services,http://opendatacommunities.org/def/concept/finance/sercop/objective/104,NORTHGATE VEHICLE HIRE LTD,1434157,22/02/2016,56015,19.2,0,CAR FOR TRAVEL TO MANCHESTER 10 FEBRUARY,381600,Vehicle Mgt Leasing
South Lakeland District Council,http://opendatacommunities.org/id/district-council/south-lakeland,13/03/2016,Business Support Community Services,Cultural Environmental Regulatory & Planning Services,http://opendatacommunities.org/def/concept/finance/sercop/objective/104,ALLSTAR BUSINESS SOLUTIONS LTD (NCR),2631112,29/02/2016,56016,33.28,0,Fuel - Private Water Van - 10 February,381600,Vehicle Mgt Leasing
South Lakeland District Council,http://opendatacommunities.org/id/district-council/south-lakeland,13/03/2016,Business Support Community Services,Internal Trading Accounts,,E & D E TOWERS,,17/02/2016,56017,355.04,0,Repair SL162,381400,Vehicle Mgt Maintenance
South Lakeland District Council,http://opendatacommunities.org/id/district-council/south-lakeland,13/03/2016,Development Implementation,Central Services,http://opendatacommunities.org/def/concept/finance/sercop/objective/102,NPS NORTH WEST LTD,6614601,17/02/2016,56019,1932.85,0,Flood Damage Work - January 2016,391110,Construction Buildings Construction
South Lakeland District Council,http://opendatacommunities.org/id/district-council/south-lakeland,13/03/2016,Business Support Community Services,Cultural Environmental Regulatory & Planning Services,http://opendatacommunities.org/def/concept/finance/sercop/objective/104,North Country Leisure,3683103,22/02/2016,56020,5000,0,Contribution towards costs of 2016 Swim,291400,Arts & Leisure Services Sport & Fitness
South Lakeland District Council,http://opendatacommunities.org/id/district-council/south-lakeland,13/03/2016,Business Support Community Services,Internal Trading Accounts,,KLEENOIL FILTRATION LTD,2040801,17/02/2016,56021,138.5,0,Filters,101700,Building Heating & Air Conditioning
South Lakeland District Council,http://opendatacommunities.org/id/district-council/south-lakeland,13/03/2016,Lake Wardens,SLDC as Agent,,LAKE DISTRICT NATIONAL PARK AUTHORITY,,24/02/2016,56022,424.12,0,Monthly Invoices for 2015/2016 for boat,201700,Financial Services Grants
South Lakeland District Council,http://opendatacommunities.org/id/district-council/south-lakeland,13/03/2016,Lake Wardens,Cultural Environmental Regulatory & Planning Services,http://opendatacommunities.org/def/concept/finance/sercop/objective/104,WCF FUELS-NW,,17/02/2016,56023,1044,0,3000 Litres of Red Diesel,381100,Vehicle Mgt Fuel
South Lakeland District Council,http://opendatacommunities.org/id/district-council/south-lakeland,13/03/2016,Social Enterprise Admin,Cultural Environmental Regulatory & Planning Services,http://opendatacommunities.org/def/concept/finance/sercop/objective/104,FURNESS NEWSPAPERS LTD,1155841,24/02/2016,56024,233.1,0,PUBLIC NOTICES FOR PLANNING 1 APRIL 2015,191000,Facilities Advertising
South Lakeland District Council,http://opendatacommunities.org/id/district-council/south-lakeland,13/03/2016,Business Support Community Services,Internal Trading Accounts,,BRIAN ARMISTEAD LTD T/A SINKFALL RECYCLI,4133280,22/02/2016,56025,356.4,0,Green waste tipping - 2015/16,391110,Construction Buildings Construction
South Lakeland District Council,http://opendatacommunities.org/id/district-council/south-lakeland,13/03/2016,Business Support Community Services,Central Services,http://opendatacommunities.org/def/concept/finance/sercop/objective/102,CIVICA UK LTD,1628868,22/02/2016,56026,14280.4,0,"CGPM005014 - Licence, Support and",271600,ICT Software Customised & Bespoke
South Lakeland District Council,http://opendatacommunities.org/id/district-council/south-lakeland,13/03/2016,Business Support Community Services,Housing Services,http://opendatacommunities.org/def/concept/finance/sercop/objective/108,CIVICA UK LTD,1628868,22/02/2016,56026,4393.97,0,"CGPM005014 - Licence, Support and",271600,ICT Software Customised & Bespoke
South Lakeland District Council,http://opendatacommunities.org/id/district-council/south-lakeland,13/03/2016,Business Support Community Services,Housing Services,http://opendatacommunities.org/def/concept/finance/sercop/objective/108,CIVICA UK LTD,1628868,22/02/2016,56026,3295.48,0,"CGPM005014 - Licence, Support and",271600,ICT Software Customised & Bespoke
South Lakeland District Council,http://opendatacommunities.org/id/district-council/south-lakeland,13/03/2016,Business Support Community Services,Housing Services,http://opendatacommunities.org/def/concept/finance/sercop/objective/108,Clarke & Co Property Ltd,6643813,17/02/2016,56028,205,0,Rent in advance at Flat,250000,Housing
South Lakeland District Council,http://opendatacommunities.org/id/district-council/south-lakeland,13/03/2016,Business Support Community Services,Housing Services,http://opendatacommunities.org/def/concept/finance/sercop/objective/108,Landlord,,17/02/2016,56029,890,0,Monthly rent ,250000,Housing
South Lakeland District Council,http://opendatacommunities.org/id/district-council/south-lakeland,13/03/2016,Business Support Community Services,Housing Services,http://opendatacommunities.org/def/concept/finance/sercop/objective/108,Landlord,,17/02/2016,56030,1190,0,Monthly rent ,202000,Financial Services Rents
South Lakeland District Council,http://opendatacommunities.org/id/district-council/south-lakeland,13/03/2016,Business Support Community Services,Housing Services,http://opendatacommunities.org/def/concept/finance/sercop/objective/108,Landlord,8672920,17/02/2016,56031,400,0,Monthly rent ,202000,Financial Services Rents
South Lakeland District Council,http://opendatacommunities.org/id/district-council/south-lakeland,13/03/2016,Business Support Community Services,Housing Services,http://opendatacommunities.org/def/concept/finance/sercop/objective/108,Landlord,,17/02/2016,56032,520,0,Monthly rent ,250010,Housing Letting Agents
South Lakeland District Council,http://opendatacommunities.org/id/district-council/south-lakeland,13/03/2016,Legal Services,Central Services,http://opendatacommunities.org/def/concept/finance/sercop/objective/102,Sellick Partnership Group Ltd,4156002,17/02/2016,56034,1387,0,Fees for (Agency staff) from,281300,Legal Services Legal Opinion
South Lakeland District Council,http://opendatacommunities.org/id/district-council/south-lakeland,13/03/2016,Legal Services,Central Services,http://opendatacommunities.org/def/concept/finance/sercop/objective/102,Sellick Partnership Group Ltd,4156002,17/02/2016,56035,1415.5,0,Fees for (Agency staff) from,281300,Legal Services Legal Opinion
South Lakeland District Council,http://opendatacommunities.org/id/district-council/south-lakeland,13/03/2016,Legal Services,Central Services,http://opendatacommunities.org/def/concept/finance/sercop/objective/102,WEIGHTMANS LLP,OC326117,17/02/2016,56036,617,0,Fees re: Bankruptcy Proceedings - G,281300,Legal Services Legal Opinion
South Lakeland District Council,http://opendatacommunities.org/id/district-council/south-lakeland,13/03/2016,Policy & Partnerships,Cultural Environmental Regulatory & Planning Services,http://opendatacommunities.org/def/concept/finance/sercop/objective/104,GRANTS- MISCELLANEOUS,,17/02/2016,56037,953.54,0,To help with the clean up and repairs of,201700,Financial Services Grants
South Lakeland District Council,http://opendatacommunities.org/id/district-council/south-lakeland,13/03/2016,Environment and Housing,Housing,http://opendatacommunities.org/def/concept/finance/sercop/objective/108,ENVIRONMENT & HOUSING GRANTS,,17/02/2016,56038,26847.52,0,"Bricroft North Road,",201700,Financial Services Grants
South Lakeland District Council,http://opendatacommunities.org/id/district-council/south-lakeland,13/03/2016,Development Implementation,Planning and Development,,Grange & District Chamber of Trade &,,17/02/2016,56042,1760,0,EPF Grant - Grange Town Map Signage,151000,Consultancy Business
South Lakeland District Council,http://opendatacommunities.org/id/district-council/south-lakeland,13/03/2016,Development Implementation,Planning and Development,,SEDBERGH PARISH COUNCIL,,17/02/2016,56043,1500,0,EPF Grant - Jubilee Fountain Restoration,908000,Public Bodies Council support services
South Lakeland District Council,http://opendatacommunities.org/id/district-council/south-lakeland,13/03/2016,Development Implementation,Cultural Environmental Regulatory & Planning Services,http://opendatacommunities.org/def/concept/finance/sercop/objective/104,Frazer PA Services,,17/02/2016,56044,200,0,"Reception Duties @ 124 Highgate, Kendal",150000,Consultancy
South Lakeland District Council,http://opendatacommunities.org/id/district-council/south-lakeland,13/03/2016,ICT Group,Central Services,http://opendatacommunities.org/def/concept/finance/sercop/objective/102,Insight Direct (Uk) Ltd,2579852,17/02/2016,56045,68.94,0,2 x Plantronics Blackwire 320-M Headsets,271200,ICT Hardware
South Lakeland District Council,http://opendatacommunities.org/id/district-council/south-lakeland,13/03/2016,ICT Group,Central Services,http://opendatacommunities.org/def/concept/finance/sercop/objective/102,Insight Direct (Uk) Ltd,2579852,17/02/2016,56046,25.86,0,2 x Plantronics Blackwire 320-M Headsets,271200,ICT Hardware
South Lakeland District Council,http://opendatacommunities.org/id/district-council/south-lakeland,13/03/2016,Business Support Community Services,Housing Services,http://opendatacommunities.org/def/concept/finance/sercop/objective/108,James Andrews Recruitment Solutions,6834852,22/02/2016,56047,725,0,Payment for - Housing,261400,HR Temporary & Agency Staff
South Lakeland District Council,http://opendatacommunities.org/id/district-council/south-lakeland,13/03/2016,Coronation Hall,Cultural Environmental Regulatory & Planning Services,http://opendatacommunities.org/def/concept/finance/sercop/objective/104,OPTECH FIBRES LTD,5442069,17/02/2016,56049,308,0,Nomadix Licence Renewal - 1 year,271200,ICT Hardware
South Lakeland District Council,http://opendatacommunities.org/id/district-council/south-lakeland,13/03/2016,Policy & Partnerships,Central Services,http://opendatacommunities.org/def/concept/finance/sercop/objective/102,GATES TRAVEL SERVICE,,17/02/2016,56050,95.5,0,Train Tickets for DS 18/2/16,261600,HR Travel & Subsistence
South Lakeland District Council,http://opendatacommunities.org/id/district-council/south-lakeland,13/03/2016,Social Enterprise Admin,Cultural Environmental Regulatory & Planning Services,http://opendatacommunities.org/def/concept/finance/sercop/objective/104,HAYMARKET MEDIA GROUP LTD,267189,22/02/2016,56052,1159,0,DCP ONLINE SUBSCRIPTION (ACCESS TO,171114,Education Literature
South Lakeland District Council,http://opendatacommunities.org/id/district-council/south-lakeland,13/03/2016,Human Resources,Central Services,http://opendatacommunities.org/def/concept/finance/sercop/objective/102,EMPLOYMENT PAGES LTD,7363099,29/02/2016,56053,581.4,0,Advert for Assistant Property Records,261400,HR Temporary & Agency Staff
South Lakeland District Council,http://opendatacommunities.org/id/district-council/south-lakeland,13/03/2016,Revenues and Benefits,Central Services,http://opendatacommunities.org/def/concept/finance/sercop/objective/102,BADENOCH & CLARK,1356186,22/02/2016,56054,280.04,0,DCMay 2015,261300,HR Recruitment & Assessment
South Lakeland District Council,http://opendatacommunities.org/id/district-council/south-lakeland,13/03/2016,Business Support Community Services,Cultural Environmental Regulatory & Planning Services,http://opendatacommunities.org/def/concept/finance/sercop/objective/104,OCS GROUP LTD T/A CANNON HYGIENE LTD,1298292,22/02/2016,56055,2272.23,0,Clinical waste collections - Feb & Mar,131011,Cleaning & Janitorial Cleaning Materials
South Lakeland District Council,http://opendatacommunities.org/id/district-council/south-lakeland,13/03/2016,Business Support Community Services,Internal Trading Accounts,,HYDRAIR TRUCK & TRAILER PARTS LTD,,24/02/2016,56056,256,0,Brake chamber,381500,Vehicle Mgt Parts
South Lakeland District Council,http://opendatacommunities.org/id/district-council/south-lakeland,13/03/2016,Business Support Community Services,Internal Trading Accounts,,HYDRAIR TRUCK & TRAILER PARTS LTD,,24/02/2016,56057,207.48,0,Brake chamber,381500,Vehicle Mgt Parts
South Lakeland District Council,http://opendatacommunities.org/id/district-council/south-lakeland,13/03/2016,Business Support Community Services,Internal Trading Accounts,,HYDRAIR TRUCK & TRAILER PARTS LTD,,24/02/2016,56058,-30,0,Brake chamber,381500,Vehicle Mgt Parts
South Lakeland District Council,http://opendatacommunities.org/id/district-council/south-lakeland,13/03/2016,Business Support Community Services,Internal Trading Accounts,,HYDRAIR TRUCK & TRAILER PARTS LTD,,24/02/2016,56059,42.46,0,Brake chamber,381500,Vehicle Mgt Parts
South Lakeland District Council,http://opendatacommunities.org/id/district-council/south-lakeland,13/03/2016,Business Support Community Services,Internal Trading Accounts,,HYDRAIR TRUCK & TRAILER PARTS LTD,,24/02/2016,56060,35.52,0,Brake chamber,381500,Vehicle Mgt Parts
South Lakeland District Council,http://opendatacommunities.org/id/district-council/south-lakeland,13/03/2016,Business Support Community Services,Internal Trading Accounts,,HYDRAIR TRUCK & TRAILER PARTS LTD,,24/02/2016,56061,84.38,0,Brake chamber,381500,Vehicle Mgt Parts
South Lakeland District Council,http://opendatacommunities.org/id/district-council/south-lakeland,13/03/2016,Business Support Community Services,Internal Trading Accounts,,ALLSTAR BUSINESS SOLUTIONS LTD (NCR),2631112,29/02/2016,56062,3228.81,0,Fuel to 15/02,381600,Vehicle Mgt Leasing
South Lakeland District Council,http://opendatacommunities.org/id/district-council/south-lakeland,13/03/2016,Business Support Community Services,Internal Trading Accounts,,ALLSTAR BUSINESS SOLUTIONS LTD (NCR),2631112,29/02/2016,56062,260.33,0,Fuel to 15/02,381600,Vehicle Mgt Leasing
South Lakeland District Council,http://opendatacommunities.org/id/district-council/south-lakeland,13/03/2016,Business Support Community Services,Internal Trading Accounts,,ALLSTAR BUSINESS SOLUTIONS LTD (NCR),2631112,29/02/2016,56062,11101.32,0,Fuel to 15/02,381600,Vehicle Mgt Leasing
South Lakeland District Council,http://opendatacommunities.org/id/district-council/south-lakeland,13/03/2016,Business Support Community Services,Internal Trading Accounts,,K S INTERNATIONAL LTD,2703321,22/02/2016,56063,320,0,Bushes,381500,Vehicle Mgt Parts
South Lakeland District Council,http://opendatacommunities.org/id/district-council/south-lakeland,13/03/2016,Business Support Community Services,Internal Trading Accounts,,CUMBRIA TRUCK CENTRE LTD,4298488,22/02/2016,56064,130.66,0,Brake shoes,381300,Vehicle Mgt Industrial
South Lakeland District Council,http://opendatacommunities.org/id/district-council/south-lakeland,13/03/2016,Business Support Community Services,Internal Trading Accounts,,EK MOTOR FACTORS LTD,838524,22/02/2016,56065,51.61,0,Exhaust,381400,Vehicle Mgt Maintenance
South Lakeland District Council,http://opendatacommunities.org/id/district-council/south-lakeland,13/03/2016,Business Support Community Services,Internal Trading Accounts,,EK MOTOR FACTORS LTD,838524,22/02/2016,56066,4,0,Exhaust,381400,Vehicle Mgt Maintenance
South Lakeland District Council,http://opendatacommunities.org/id/district-council/south-lakeland,13/03/2016,Business Support Community Services,Cultural Environmental Regulatory & Planning Services,http://opendatacommunities.org/def/concept/finance/sercop/objective/104,CUMBRIA WASTE RECYCLING LTD,3162439,22/02/2016,56067,12017.3,0,Empty recycling banks in 2015/16,182012,Environment Waste Management Recycling
South Lakeland District Council,http://opendatacommunities.org/id/district-council/south-lakeland,13/03/2016,Business Support Community Services,Central Services,http://opendatacommunities.org/def/concept/finance/sercop/objective/102,CUMBRIA WASTE RECYCLING LTD,3162439,22/02/2016,56068,10070,0,Flood damaged waste collections,182012,Environment Waste Management Recycling
South Lakeland District Council,http://opendatacommunities.org/id/district-council/south-lakeland,13/03/2016,Business Support Community Services,Internal Trading Accounts,,M G D LTD,,22/02/2016,56069,70,0,MOTs 01/04/15 - 31/03/16,381400,Vehicle Mgt Maintenance
South Lakeland District Council,http://opendatacommunities.org/id/district-council/south-lakeland,13/03/2016,Business Support Community Services,Internal Trading Accounts,,M G D LTD,,22/02/2016,56069,35,0,MOTs 01/04/15 - 31/03/16,381400,Vehicle Mgt Maintenance
South Lakeland District Council,http://opendatacommunities.org/id/district-council/south-lakeland,13/03/2016,Business Support Community Services,Central Services,http://opendatacommunities.org/def/concept/finance/sercop/objective/102,TOUCHDOWN OFFICES LTD,4844444,22/02/2016,56070,291.17,0,Call charges 2015/16,271700,ICT Telecommunications Fixed
South Lakeland District Council,http://opendatacommunities.org/id/district-council/south-lakeland,13/03/2016,Human Resources,Central Services,http://opendatacommunities.org/def/concept/finance/sercop/objective/102,PILAT EUROPE LTD,4207292,22/02/2016,56071,1125,0,Gauge Job Evaluation System Period:,271600,ICT Software Customised & Bespoke
South Lakeland District Council,http://opendatacommunities.org/id/district-council/south-lakeland,13/03/2016,Development Implementation,Cultural Environmental Regulatory & Planning Services,http://opendatacommunities.org/def/concept/finance/sercop/objective/104,CUMBRIA WASTE RECYCLING LTD,3162439,22/02/2016,56072,98.76,0,"Waste Collection @ 124 Highgate, Kendal",182012,Environment Waste Management Recycling
South Lakeland District Council,http://opendatacommunities.org/id/district-council/south-lakeland,13/03/2016,Financial Services,SLDC as Agent,,MAPS LEGAL ASSISTANCE,,22/02/2016,56073,547.5,0,Renewal of Motor Legal Insurance Policy,281300,Legal Services Legal Opinion
South Lakeland District Council,http://opendatacommunities.org/id/district-council/south-lakeland,13/03/2016,Business Support Community Services,Internal Trading Accounts,,RIBBLESDALE AUTO ELECTRICS 1992 LTD,2732686,22/02/2016,56075,169.44,0,LEDs,381500,Vehicle Mgt Parts
South Lakeland District Council,http://opendatacommunities.org/id/district-council/south-lakeland,13/03/2016,Social Enterprise Admin,Highways & Transport Services,http://opendatacommunities.org/def/concept/finance/sercop/objective/107,ALLSTAR BUSINESS SOLUTIONS LTD (NCR),2631112,29/02/2016,56076,89.04,0,Fuel for Cash Collectors until 31 March,381600,Vehicle Mgt Leasing
South Lakeland District Council,http://opendatacommunities.org/id/district-council/south-lakeland,13/03/2016,Social Enterprise Admin,Highways & Transport Services,http://opendatacommunities.org/def/concept/finance/sercop/objective/107,ALLSTAR BUSINESS SOLUTIONS LTD (NCR),2631112,29/02/2016,56076,151.56,0,Fuel for Cash Collectors until 31 March,381600,Vehicle Mgt Leasing
South Lakeland District Council,http://opendatacommunities.org/id/district-council/south-lakeland,13/03/2016,Financial Services,SLDC as Agent,,KIRKLAND TRUST (KENDAL),,22/02/2016,56086,3363.25,0,15/16 Income,201700,Financial Services Grants
South Lakeland District Council,http://opendatacommunities.org/id/district-council/south-lakeland,13/03/2016,Development Implementation,Cultural Environmental Regulatory & Planning Services,http://opendatacommunities.org/def/concept/finance/sercop/objective/104,KBS Business Consultancy,,22/02/2016,56087,1712.5,0,Continuation of Business Support,150000,Consultancy
South Lakeland District Council,http://opendatacommunities.org/id/district-council/south-lakeland,13/03/2016,Revenues and Benefits,Central Services,http://opendatacommunities.org/def/concept/finance/sercop/objective/102,LOOMIS UK LTD,3200432,22/02/2016,56088,105.54,0,2015-16  Langstone House Surcharge,192200,Facilities Security
South Lakeland District Council,http://opendatacommunities.org/id/district-council/south-lakeland,13/03/2016,Revenues and Benefits,Highways & Transport Services,http://opendatacommunities.org/def/concept/finance/sercop/objective/107,LOOMIS UK LTD,3200432,22/02/2016,56088,951.24,0,2015-16  Langstone House Surcharge,192200,Facilities Security
South Lakeland District Council,http://opendatacommunities.org/id/district-council/south-lakeland,13/03/2016,Business Support Community Services,Internal Trading Accounts,,ARCO LIMITED,133804,24/02/2016,56089,-43.68,0,PPE 2015/16,141100,Clothing Protective
South Lakeland District Council,http://opendatacommunities.org/id/district-council/south-lakeland,13/03/2016,Development Management,Cultural Environmental Regulatory & Planning Services,http://opendatacommunities.org/def/concept/finance/sercop/objective/104,Ronnie Haddow Chimney Services,,22/02/2016,56090,100,0,Checking Stoves in connection with Part,131310,Cleaning & Janitorial Cleaning Service
South Lakeland District Council,http://opendatacommunities.org/id/district-council/south-lakeland,13/03/2016,Business Support Community Services,Internal Trading Accounts,,GARWOOD EUROPE LTD,4333504,29/02/2016,56091,38.64,0,Seal,182011,Environment Waste Management Consumables
South Lakeland District Council,http://opendatacommunities.org/id/district-council/south-lakeland,13/03/2016,Revenues and Benefits,Central Services,http://opendatacommunities.org/def/concept/finance/sercop/objective/102,MERITEC LTD,3224622,22/02/2016,56092,139.5,0,2015 -2016 RAB Processing Contract and,391200,Construction Engineering
South Lakeland District Council,http://opendatacommunities.org/id/district-council/south-lakeland,13/03/2016,Revenues and Benefits,Central Services,http://opendatacommunities.org/def/concept/finance/sercop/objective/102,IRRV (L & C BRANCH),,22/02/2016,56093,100,0,Supported Accommodation Workshop,201700,Financial Services Grants
South Lakeland District Council,http://opendatacommunities.org/id/district-council/south-lakeland,13/03/2016,Revenues and Benefits,SLDC as Agent,,ROYAL MAIL GROUP PLC,,22/02/2016,56094,1766.86,0,2015-2016 Postal Charges a/c 0198123013,301200,Mail Services� Postage
South Lakeland District Council,http://opendatacommunities.org/id/district-council/south-lakeland,13/03/2016,Business Support Community Services,Cultural Environmental Regulatory & Planning Services,http://opendatacommunities.org/def/concept/finance/sercop/objective/104,NEWSQUEST MEDIA GROUP LTD,3102566,24/02/2016,56098,410,0,Public Notice Hackey Carriage,191000,Facilities Advertising
South Lakeland District Council,http://opendatacommunities.org/id/district-council/south-lakeland,13/03/2016,Social Enterprise Admin,Cultural Environmental Regulatory & Planning Services,http://opendatacommunities.org/def/concept/finance/sercop/objective/104,NEWSQUEST MEDIA GROUP LTD,3102566,24/02/2016,56099,95,0,PUBLIC NOTICES FOR PLANNING 1 APRIL - 31,191000,Facilities Advertising
South Lakeland District Council,http://opendatacommunities.org/id/district-council/south-lakeland,13/03/2016,Business Support Community Services,Housing Services,http://opendatacommunities.org/def/concept/finance/sercop/objective/108,CAPTAIN FRENCH SURGERY,,22/02/2016,56100,25,0,Medical report ,311600,Healthcare Services
South Lakeland District Council,http://opendatacommunities.org/id/district-council/south-lakeland,13/03/2016,Democratic Services,Central Services,http://opendatacommunities.org/def/concept/finance/sercop/objective/102,Assoc of Democratic Services Off *COURSE,7068088,22/02/2016,56102,1415,0,ADSO Certificate in Democratic Services,202100,Financial Services Subscriptions
South Lakeland District Council,http://opendatacommunities.org/id/district-council/south-lakeland,13/03/2016,Business Support Community Services,Internal Trading Accounts,,VOLVO GROUP UK LTD,2190944,22/02/2016,56105,375,0,Sensor,381000,Vehicle Mgt Commercial
South Lakeland District Council,http://opendatacommunities.org/id/district-council/south-lakeland,13/03/2016,Business Support Community Services,Internal Trading Accounts,,Masterstaff Limited,2777593,22/02/2016,56106,4382.96,0,Agency staff - February 2016,261300,HR Recruitment & Assessment
South Lakeland District Council,http://opendatacommunities.org/id/district-council/south-lakeland,13/03/2016,Business Support Community Services,Internal Trading Accounts,,PIER 1 METALWORKS LTD,4291520,22/02/2016,56107,100,0,Repair SL001,391200,Construction Engineering
South Lakeland District Council,http://opendatacommunities.org/id/district-council/south-lakeland,13/03/2016,Business Support Community Services,Internal Trading Accounts,,AUTOMOTIVE GLAZING SOLUTIONS,5922870,22/02/2016,56108,45,0,Repair windscreen,381400,Vehicle Mgt Maintenance
South Lakeland District Council,http://opendatacommunities.org/id/district-council/south-lakeland,13/03/2016,Policy & Partnerships,Cultural Environmental Regulatory & Planning Services,http://opendatacommunities.org/def/concept/finance/sercop/objective/104,The Knotted Project,,22/02/2016,56110,100,0,Workshop at the White Noise Festival,171115,Education School Musical Instruments
South Lakeland District Council,http://opendatacommunities.org/id/district-council/south-lakeland,13/03/2016,Policy & Partnerships,Cultural Environmental Regulatory & Planning Services,http://opendatacommunities.org/def/concept/finance/sercop/objective/104,STAINTON PARISH COUNCIL,,22/02/2016,56111,250,0,Village notice boards.,908000,Public Bodies Council support services
South Lakeland District Council,http://opendatacommunities.org/id/district-council/south-lakeland,13/03/2016,Policy & Partnerships,Central Services,http://opendatacommunities.org/def/concept/finance/sercop/objective/102,NORTHGATE VEHICLE HIRE LTD,1434157,24/02/2016,56112,30.28,0,Transport from 11/2/16 till,381600,Vehicle Mgt Leasing
South Lakeland District Council,http://opendatacommunities.org/id/district-council/south-lakeland,13/03/2016,Social Enterprise Admin,Highways & Transport Services,http://opendatacommunities.org/def/concept/finance/sercop/objective/107,Masterstaff Limited,2777593,22/02/2016,56117,366.3,0,Staff for Westmorland SC car park inc,261300,HR Recruitment & Assessment
South Lakeland District Council,http://opendatacommunities.org/id/district-council/south-lakeland,13/03/2016,Environment and Housing,Housing Services,http://opendatacommunities.org/def/concept/finance/sercop/objective/108,GROWING CONCERNS LANDSCAPING,,22/02/2016,56120,1131.99,0,Payments for Handy Person Scheme,391200,Construction Engineering
South Lakeland District Council,http://opendatacommunities.org/id/district-council/south-lakeland,13/03/2016,Business Support Community Services,Central Services,http://opendatacommunities.org/def/concept/finance/sercop/objective/102,CRAEMER UK LTD,2574815,24/02/2016,56130,12558,0,"240L Plastic Wheeld Bin, Fully Compliant",182012,Environment Waste Management Recycling
South Lakeland District Council,http://opendatacommunities.org/id/district-council/south-lakeland,13/03/2016,ICT Group,Central Services,http://opendatacommunities.org/def/concept/finance/sercop/objective/102,Insight Direct (Uk) Ltd,2579852,22/02/2016,56131,38.99,0,Logitech wireless trackball M570 mouse,271200,ICT Hardware
South Lakeland District Council,http://opendatacommunities.org/id/district-council/south-lakeland,13/03/2016,ICT Group,Central Services,http://opendatacommunities.org/def/concept/finance/sercop/objective/102,Insight Direct (Uk) Ltd,2579852,22/02/2016,56132,649.67,0,4 x APC Back-UPS 700VA/405 Watt Surge,271200,ICT Hardware
South Lakeland District Council,http://opendatacommunities.org/id/district-council/south-lakeland,13/03/2016,Business Support Community Services,Housing Services,http://opendatacommunities.org/def/concept/finance/sercop/objective/108,My Dream Cleaners Ltd,9839482,22/02/2016,56133,375,0,Cleaner at Town View Fields,131320,Cleaning & Janitorial Cleaning Service
South Lakeland District Council,http://opendatacommunities.org/id/district-council/south-lakeland,13/03/2016,Business Support Community Services,Internal Trading Accounts,,EK MOTOR FACTORS LTD,838524,22/02/2016,56134,-19.04,0,Motor,381400,Vehicle Mgt Maintenance
South Lakeland District Council,http://opendatacommunities.org/id/district-council/south-lakeland,13/03/2016,ICT Group,Cultural Environmental Regulatory & Planning Services,http://opendatacommunities.org/def/concept/finance/sercop/objective/104,PROBRAND LTD,2653446,22/02/2016,56136,199.06,0,Adobe Acrobat Standard DC License,271600,ICT Software Customised & Bespoke
South Lakeland District Council,http://opendatacommunities.org/id/district-council/south-lakeland,13/03/2016,Policy & Partnerships,Cultural Environmental Regulatory & Planning Services,http://opendatacommunities.org/def/concept/finance/sercop/objective/104,HIGHLIGHTS PRODUCTIONS LTD,,22/02/2016,56137,3500,0,Strategic cultural partnership - year 3,291400,Arts & Leisure Services Sport & Fitness
South Lakeland District Council,http://opendatacommunities.org/id/district-council/south-lakeland,13/03/2016,Human Resources,Central Services,http://opendatacommunities.org/def/concept/finance/sercop/objective/102,IOSH Services Ltd (Books),,22/02/2016,56138,500,0,Working safely 4.0 books,220000,Health and Safety
South Lakeland District Council,http://opendatacommunities.org/id/district-council/south-lakeland,13/03/2016,Revenues and Benefits,Central Services,http://opendatacommunities.org/def/concept/finance/sercop/objective/102,PITNEY BOWES LTD,182037,22/02/2016,56139,198.2,0,2015-2016   Stationery & office,301200,Mail Services� Postage
South Lakeland District Council,http://opendatacommunities.org/id/district-council/south-lakeland,13/03/2016,Business Support Community Services,Internal Trading Accounts,,ARCO LIMITED,133804,24/02/2016,56140,-14.35,0,PPE 2015/16,141100,Clothing Protective
South Lakeland District Council,http://opendatacommunities.org/id/district-council/south-lakeland,13/03/2016,Human Resources,Central Services,http://opendatacommunities.org/def/concept/finance/sercop/objective/102,HEMMING GROUP LTD,490200,22/02/2016,56141,2850,0,Job Advert,192200,Facilities Security
South Lakeland District Council,http://opendatacommunities.org/id/district-council/south-lakeland,13/03/2016,Business Support Community Services,Internal Trading Accounts,,DAVID HAYTON LTD,2312632,24/02/2016,56142,15.24,0,Rubbers,381500,Vehicle Mgt Parts
South Lakeland District Council,http://opendatacommunities.org/id/district-council/south-lakeland,13/03/2016,Coronation Hall,Cultural Environmental Regulatory & Planning Services,http://opendatacommunities.org/def/concept/finance/sercop/objective/104,Ulverston Amateur Operatic Society,,24/02/2016,56145,55,0,Stewards for Leyland Band - February,291300,Arts & Leisure Services Performing Arts
South Lakeland District Council,http://opendatacommunities.org/id/district-council/south-lakeland,13/03/2016,ICT Group,Central Services,http://opendatacommunities.org/def/concept/finance/sercop/objective/102,Insight Direct (Uk) Ltd,2579852,24/02/2016,56146,44.1,0,2 x Plantronics Blackwire 320-M Headset,271200,ICT Hardware
South Lakeland District Council,http://opendatacommunities.org/id/district-council/south-lakeland,13/03/2016,ICT Group,Central Services,http://opendatacommunities.org/def/concept/finance/sercop/objective/102,Insight Direct (Uk) Ltd,2579852,24/02/2016,56147,479.85,0,Optoma ML750ST Short Throw LED DLP,271200,ICT Hardware
South Lakeland District Council,http://opendatacommunities.org/id/district-council/south-lakeland,13/03/2016,ICT Group,Central Services,http://opendatacommunities.org/def/concept/finance/sercop/objective/102,Insight Direct (Uk) Ltd,2579852,24/02/2016,56148,51.72,0,2 x Plantronics Blackwire 320-M Headset,271200,ICT Hardware
South Lakeland District Council,http://opendatacommunities.org/id/district-council/south-lakeland,13/03/2016,Human Resources,Central Services,http://opendatacommunities.org/def/concept/finance/sercop/objective/102,KENTDALE FIRST AID TRAINING,,24/02/2016,56149,90,0,PO'N refresher course,261500,HR Training & Conferences
South Lakeland District Council,http://opendatacommunities.org/id/district-council/south-lakeland,13/03/2016,Business Support Community Services,Housing Services,http://opendatacommunities.org/def/concept/finance/sercop/objective/108,GATES TRAVEL SERVICE,,24/02/2016,56150,25.7,0,Train ticket ,261600,HR Travel & Subsistence
South Lakeland District Council,http://opendatacommunities.org/id/district-council/south-lakeland,13/03/2016,Business Support Community Services,Internal Trading Accounts,,ARCO LIMITED,133804,24/02/2016,56151,118.4,0,PPE 2015/16,141100,Clothing Protective
South Lakeland District Council,http://opendatacommunities.org/id/district-council/south-lakeland,13/03/2016,Business Support Community Services,Transport Planning Policy,http://opendatacommunities.org/def/concept/finance/sercop/objective/107,ARCO LIMITED,133804,24/02/2016,56152,56.35,0,PPE 2015/16,141100,Clothing Protective
South Lakeland District Council,http://opendatacommunities.org/id/district-council/south-lakeland,13/03/2016,Business Support Community Services,Internal Trading Accounts,,ARCO LIMITED,133804,24/02/2016,56152,22.3,0,PPE 2015/16,141100,Clothing Protective
South Lakeland District Council,http://opendatacommunities.org/id/district-council/south-lakeland,13/03/2016,Business Support Community Services,Internal Trading Accounts,,ARCO LIMITED,133804,24/02/2016,56152,574.46,0,PPE 2015/16,141100,Clothing Protective
South Lakeland District Council,http://opendatacommunities.org/id/district-council/south-lakeland,13/03/2016,Business Support Community Services,Transport Planning Policy,http://opendatacommunities.org/def/concept/finance/sercop/objective/107,ARCO LIMITED,133804,24/02/2016,56153,21.38,0,PPE 2015/16,141100,Clothing Protective
South Lakeland District Council,http://opendatacommunities.org/id/district-council/south-lakeland,13/03/2016,Business Support Community Services,Internal Trading Accounts,,HAKO MACHINES LIMITED,1414225,24/02/2016,56156,28.98,0,Rain cap,131000,Cleaning & Janitorial Cleaning Materials
South Lakeland District Council,http://opendatacommunities.org/id/district-council/south-lakeland,13/03/2016,Business Support Community Services,Internal Trading Accounts,,DENNIS EAGLE LTD,3794455,24/02/2016,56157,23.59,0,Hoses,381300,Vehicle Mgt Industrial
South Lakeland District Council,http://opendatacommunities.org/id/district-council/south-lakeland,13/03/2016,Business Support Community Services,Internal Trading Accounts,,CUMBRIA TRUCK CENTRE LTD,4298488,24/02/2016,56158,157.68,0,Spring,381300,Vehicle Mgt Industrial
South Lakeland District Council,http://opendatacommunities.org/id/district-council/south-lakeland,13/03/2016,Business Support Community Services,Internal Trading Accounts,,Preston Trade Parts Specialists,,24/02/2016,56159,26.2,0,Part,381400,Vehicle Mgt Maintenance
South Lakeland District Council,http://opendatacommunities.org/id/district-council/south-lakeland,13/03/2016,Business Support Community Services,Internal Trading Accounts,,LANCASTER TRAINING SERVICES LTD,1447612,24/02/2016,56160,46.25,0,Training 2015/16,261500,HR Training & Conferences
South Lakeland District Council,http://opendatacommunities.org/id/district-council/south-lakeland,13/03/2016,Business Support Community Services,Internal Trading Accounts,,LANCASTER TRAINING SERVICES LTD,1447612,24/02/2016,56160,92.5,0,Training 2015/16,261500,HR Training & Conferences
South Lakeland District Council,http://opendatacommunities.org/id/district-council/south-lakeland,13/03/2016,Business Support Community Services,Internal Trading Accounts,,LANCASTER TRAINING SERVICES LTD,1447612,24/02/2016,56160,323.75,0,Training 2015/16,261500,HR Training & Conferences
South Lakeland District Council,http://opendatacommunities.org/id/district-council/south-lakeland,13/03/2016,Business Support Community Services,Internal Trading Accounts,,FAUN ZOELLER (UK) LTD,751804,24/02/2016,56161,896.05,0,Repair SL032,381400,Vehicle Mgt Maintenance
South Lakeland District Council,http://opendatacommunities.org/id/district-council/south-lakeland,13/03/2016,Development Implementation,Cultural Environmental Regulatory & Planning Services,http://opendatacommunities.org/def/concept/finance/sercop/objective/104,ADECCO UK LIMITED,593232,29/02/2016,56162,723.54,0,Economic Development Project Officer -,261400,HR Temporary & Agency Staff
South Lakeland District Council,http://opendatacommunities.org/id/district-council/south-lakeland,13/03/2016,Development Implementation,Cultural Environmental Regulatory & Planning Services,http://opendatacommunities.org/def/concept/finance/sercop/objective/104,ADECCO UK LIMITED,593232,29/02/2016,56163,683.8,0,Economic Development Project Officer -,261400,HR Temporary & Agency Staff
South Lakeland District Council,http://opendatacommunities.org/id/district-council/south-lakeland,13/03/2016,Development Implementation,Cultural Environmental Regulatory & Planning Services,http://opendatacommunities.org/def/concept/finance/sercop/objective/104,ADECCO UK LIMITED,593232,29/02/2016,56164,451.83,0,Economic Development Project Officer -,261400,HR Temporary & Agency Staff
South Lakeland District Council,http://opendatacommunities.org/id/district-council/south-lakeland,13/03/2016,Technical Team,Central Services,http://opendatacommunities.org/def/concept/finance/sercop/objective/102,ADECCO UK LIMITED,593232,29/02/2016,56165,274.12,0,AGENCY WORKER - SUPPORT ASSISTANT,261400,HR Temporary & Agency Staff
South Lakeland District Council,http://opendatacommunities.org/id/district-council/south-lakeland,13/03/2016,Technical Team,Central Services,http://opendatacommunities.org/def/concept/finance/sercop/objective/102,ADECCO UK LIMITED,593232,29/02/2016,56166,369.6,0,AGENCY WORKER - SUPPORT ASSISTANT,261400,HR Temporary & Agency Staff
South Lakeland District Council,http://opendatacommunities.org/id/district-council/south-lakeland,13/03/2016,Coronation Hall,Cultural Environmental Regulatory & Planning Services,http://opendatacommunities.org/def/concept/finance/sercop/objective/104,PSR Marquee Hire,,29/02/2016,56168,32,0,"To hire 4 x 5'6"" round tables for",291000,Arts & Leisure Services Events
South Lakeland District Council,http://opendatacommunities.org/id/district-council/south-lakeland,13/03/2016,Social Enterprise Admin,Central Services,http://opendatacommunities.org/def/concept/finance/sercop/objective/102,MARGARET BARROW INTERIORS LTD T/A MBI,,29/02/2016,56181,910,0,2 x OC97HA Orthopaedica chairs with seat,211200,Furniture & Soft Furn Office Furniture
South Lakeland District Council,http://opendatacommunities.org/id/district-council/south-lakeland,13/03/2016,Development Implementation,Planning and Development,,Link Contracting Services Ltd,2461502,29/02/2016,56183,1995.63,0,"Refurbishment of 124 Highgate, Kendal",391111,Construction Buildings Repair & Mtce
South Lakeland District Council,http://opendatacommunities.org/id/district-council/south-lakeland,13/03/2016,Technical Team,Central Services,http://opendatacommunities.org/def/concept/finance/sercop/objective/102,CIVICA UK LTD,1628868,29/02/2016,56184,1500,0,GAZETTEER SUPPORT MAINTENANCE 1 April,271600,ICT Software Customised & Bespoke
South Lakeland District Council,http://opendatacommunities.org/id/district-council/south-lakeland,13/03/2016,Social Enterprise Admin,Cultural Environmental Regulatory & Planning Services,http://opendatacommunities.org/def/concept/finance/sercop/objective/104,CIVICA UK LTD,1628868,29/02/2016,56185,4019.14,0,PLANNING FASTSUITE SOFTWARE RENEWAL,271600,ICT Software Customised & Bespoke
South Lakeland District Council,http://opendatacommunities.org/id/district-council/south-lakeland,13/03/2016,Social Enterprise Admin,Cultural Environmental Regulatory & Planning Services,http://opendatacommunities.org/def/concept/finance/sercop/objective/104,CIVICA UK LTD,1628868,29/02/2016,56185,8038.29,0,PLANNING FASTSUITE SOFTWARE RENEWAL,271600,ICT Software Customised & Bespoke
South Lakeland District Council,http://opendatacommunities.org/id/district-council/south-lakeland,13/03/2016,Social Enterprise Admin,Central Services,http://opendatacommunities.org/def/concept/finance/sercop/objective/102,CIVICA UK LTD,1628868,29/02/2016,56185,4019.16,0,PLANNING FASTSUITE SOFTWARE RENEWAL,271600,ICT Software Customised & Bespoke
South Lakeland District Council,http://opendatacommunities.org/id/district-council/south-lakeland,13/03/2016,Policy & Partnerships,Cultural Environmental Regulatory & Planning Services,http://opendatacommunities.org/def/concept/finance/sercop/objective/104,MILNTHORPE PARISH COUNCIL,,24/02/2016,56186,300,0,Contribution to the purchase of a,908000,Public Bodies Council support services
South Lakeland District Council,http://opendatacommunities.org/id/district-council/south-lakeland,13/03/2016,Human Resources,Central Services,http://opendatacommunities.org/def/concept/finance/sercop/objective/102,MIDLAND SOFTWARE LTD,1852206,29/02/2016,56187,161.74,0,ESS 23rd December,271600,ICT Software Customised & Bespoke
South Lakeland District Council,http://opendatacommunities.org/id/district-council/south-lakeland,13/03/2016,Human Resources,Central Services,http://opendatacommunities.org/def/concept/finance/sercop/objective/102,MIDLAND SOFTWARE LTD,1852206,29/02/2016,56188,3060.88,0,Software Maintenance iTrent Rental 01,271600,ICT Software Customised & Bespoke
South Lakeland District Council,http://opendatacommunities.org/id/district-council/south-lakeland,13/03/2016,ICT Group,Central Services,http://opendatacommunities.org/def/concept/finance/sercop/objective/102,PROBRAND LTD,2653446,29/02/2016,56189,450,0,LBC118/45N0238  Lenovo - ThinkPad 90W,271600,ICT Software Customised & Bespoke
South Lakeland District Council,http://opendatacommunities.org/id/district-council/south-lakeland,13/03/2016,Business Support Community Services,Housing Services,http://opendatacommunities.org/def/concept/finance/sercop/objective/108,Landlord,7803122,24/02/2016,56190,500,0,Monthly rent ,250000,Housing
South Lakeland District Council,http://opendatacommunities.org/id/district-council/south-lakeland,13/03/2016,Business Support Community Services,Housing Services,http://opendatacommunities.org/def/concept/finance/sercop/objective/108,Landlord,,24/02/2016,56191,500,0,Monthly rent ,202000,Financial Services Rents
South Lakeland District Council,http://opendatacommunities.org/id/district-council/south-lakeland,13/03/2016,Business Support Community Services,Housing Services,http://opendatacommunities.org/def/concept/finance/sercop/objective/108,Landlord,,24/02/2016,56192,520,0,Monthly rent ,202000,Financial Services Rents
